Workbook

Sheet Menu
F2: This file contains the excel tables of the rates contained in the published Schedule of Standard Prices for Eskom tariffs.
F4: 2018/19 SCHEDULE OF STANDARD PRICES FOR ESKOM TARIFFS 1 April 2018 to 31 March 2019 for Non-Local Authority supplies, and 1 July 2018 to 30 June 2019 for Local Authority supplies.
H6: Click on the arrow to select the tariff
H7: Non-local authority | J7: Local Authority
F8: ê | G8: WEPS | H8: u | J8: u
F9: ê | G9: Megaflex | H9: u | J9: u
F10: ê | G10: Nightsave large Urban | H10: u | J10: u
F11: ê | G11: Miniflex | H11: u | J11: u
F12: ê | G12: Nightsave small | H12: u | J12: u
F13: ê | G13: Businessrate | H13: u | J13: u
F14: ê | G14: Public lighting | H14: u | J14: u
F15: ê | G15: Ruraflex | H15: u | J15: u
F16: ê | G16: Nightsave rural | H16: u | J16: u
F17: ê | G17: Landrate tariffs | H17: u | J17: u
F18: ê | G18: Homepower tariffs | H18: u | J18: u
F19: ê | G19: Homelight tariffs | H19: u | J19: n/a
F20: ê | G20: Transmission use of system charges | H20: u | J20: u
F21: ê | G21: Distribution use of system charges | H21: u | J21: u
F22: ê | G22: Megaflex Gen | H22: u | J22: n/a
F23: ê | G23: Ruraflex Gen | H23: u | J23: n/a
F24: ê | G24: Muniflex Urban | H24: n/a | J24: u
F25: ê | G25: Muniflex Rural | H25: n/a | J25: u

Sheet WEPS inc
G1: Back to menu
A2: Non-municipal | G2: WEPS | R2: Non-local authority
J4: Active energy charge [c/kWh] | V4: Transmission network charges [R/kVA/m]
H5: Transmission zone | J5: High demand season [Jun - Aug] | P5: Low demand season [Sep - May]
I6: Voltage | J6: Peak | L6: Standard | N6: Off Peak | P6: Peak | R6: Standard | T6: Off Peak
A7: Tariff | B7: Tariff nameBillcode | C7: Tx zone | D7: Voltage | E7: Billcode | K7: VAT incl | M7: VAT incl | O7: VAT incl | Q7: VAT incl | S7: VAT incl | U7: VAT incl | W7: VAT incl
A8: WEPS | B8: We | C8: 0 | D8: 1 | E8: =B8&C8&D8&IF($A$2="Non-municipal","N",IF($A$2="Municiple","Y","error")) -> We01N | H8: ≤ 300km | I8: < 500V | J8: 292.89 | K8: =ROUND(J8 * (1 + VAT), 2) -> 336.82 | L8: 89.11 | M8: =ROUND(L8 * (1 + VAT), 2) -> 102.48 | N8: 48.66 | O8: =ROUND(N8 * (1 + VAT), 2) -> 55.96 | P8: 95.91 | Q8: =ROUND(P8 * (1 + VAT), 2) -> 110.3 | R8: 66.18 | S8: =ROUND(R8 * (1 + VAT), 2) -> 76.11 | T8: 42.19 | U8: =ROUND(T8 * (1 + VAT), 2) -> 48.52 | V8: 8.38 | W8: =ROUND(V8 * (1 + VAT), 2) -> 9.64
A9: WEPS | B9: We | C9: 0 | D9: 2 | E9: We02N | I9: ≥ 500V & < 66kV | J9: 288.29 | K9: =ROUND(J9 * (1 + VAT), 2) -> 331.53 | L9: 87.34 | M9: 100.44 | N9: 47.43 | O9: 54.54 | P9: 94.03 | Q9: 108.13 | R9: 64.73 | S9: 74.44 | T9: 41.06 | U9: 47.22 | V9: 7.66 | W9: 8.81
A10: WEPS | B10: We | C10: 0 | D10: 3 | E10: We03N | I10: ≥ 66kV & ≤ 132kV | J10: 279.16 | K10: 321.03 | L10: 84.56 | M10: 97.24 | N10: 45.93 | O10: 52.82 | P10: 91.08 | Q10: 104.74 | R10: 62.67 | S10: 72.07 | T10: 39.77 | U10: 45.74 | V10: 7.46 | W10: 8.58
A11: WEPS | B11: We | C11: 0 | D11: 4 | E11: We04N | I11: > 132kV* | J11: 263.11 | K11: 302.58 | L11: 79.7 | M11: 91.66 | N11: 43.29 | O11: 49.78 | P11: 85.85 | Q11: 98.73 | R11: 59.07 | S11: 67.93 | T11: 37.48 | U11: 43.1 | V11: 9.42 | W11: 10.83
A12: WEPS | B12: We | C12: 1 | D12: 1 | E12: We11N | H12: > 300km and ≤ 600km | I12: < 500V | J12: 295.28 | K12: 339.57 | L12: 89.47 | M12: 102.89 | N12: 48.57 | O12: 55.86 | P12: 96.33 | Q12: 110.78 | R12: 66.32 | S12: 76.27 | T12: 42.07 | U12: 48.38 | V12: 8.44 | W12: 9.71
A13: WEPS | B13: We | C13: 1 | D13: 2 | E13: We12N | I13: ≥ 500V & < 66kV | J13: 291.17 | K13: 334.85 | L13: 88.2 | M13: 101.43 | N13: 47.9 | O13: 55.09 | P13: 94.99 | Q13: 109.24 | R13: 65.37 | S13: 75.18 | T13: 41.47 | U13: 47.69 | V13: 7.73 | W13: 8.89
A14: WEPS | B14: We | C14: 1 | D14: 3 | E14: We13N | I14: ≥ 66kV & ≤ 132kV | J14: 281.91 | K14: 324.2 | L14: 85.39 | M14: 98.2 | N14: 46.36 | O14: 53.31 | P14: 91.96 | Q14: 105.75 | R14: 63.29 | S14: 72.78 | T14: 40.15 | U14: 46.17 | V14: 7.51 | W14: 8.64
A15: WEPS | B15: We | C15: 1 | D15: 4 | E15: We14N | I15: > 132kV* | J15: 265.74 | K15: 305.6 | L15: 80.51 | M15: 92.59 | N15: 43.69 | O15: 50.24 | P15: 86.67 | Q15: 99.67 | R15: 59.65 | S15: 68.6 | T15: 37.83 | U15: 43.5 | V15: 9.51 | W15: 10.94
A16: WEPS | B16: We | C16: 2 | D16: 1 | E16: We21N | H16: > 600km and ≤ 900km | I16: < 500V | J16: 298.22 | K16: 342.95 | L16: 90.34 | M16: 103.89 | N16: 49.04 | O16: 56.4 | P16: 97.29 | Q16: 111.88 | R16: 66.96 | S16: 77 | T16: 42.46 | U16: 48.83 | V16: 8.54 | W16: 9.82
A17: WEPS | B17: We | C17: 2 | D17: 2 | E17: We22N | I17: ≥ 500V & < 66kV | J17: 294.1 | K17: 338.22 | L17: 89.1 | M17: 102.47 | N17: 48.38 | O17: 55.64 | P17: 95.93 | Q17: 110.32 | R17: 66.03 | S17: 75.93 | T17: 41.89 | U17: 48.17 | V17: 7.8 | W17: 8.97
A18: WEPS | B18: We | C18: 2 | D18: 3 | E18: We23N | I18: ≥ 66kV & ≤ 132kV | J18: 284.78 | K18: 327.5 | L18: 86.27 | M18: 99.21 | N18: 46.84 | O18: 53.87 | P18: 92.89 | Q18: 106.82 | R18: 63.94 | S18: 73.53 | T18: 40.56 | U18: 46.64 | V18: 7.56 | W18: 8.69
A19: WEPS | B19: We | C19: 2 | D19: 4 | E19: We24N | I19: > 132kV* | J19: 268.42 | K19: 308.68 | L19: 81.3 | M19: 93.5 | N19: 44.17 | O19: 50.8 | P19: 87.56 | Q19: 100.69 | R19: 60.25 | S19: 69.29 | T19: 38.24 | U19: 43.98 | V19: 9.65 | W19: 11.1
A20: WEPS | B20: We | C20: 3 | D20: 1 | E20: We31N | H20: > 900km | I20: < 500V | J20: 301.22 | K20: 346.4 | L20: 91.28 | M20: 104.97 | N20: 49.55 | O20: 56.98 | P20: 98.27 | Q20: 113.01 | R20: 67.62 | S20: 77.76 | T20: 42.92 | U20: 49.36 | V20: 8.59 | W20: 9.88
A21: WEPS | B21: We | C21: 3 | D21: 2 | E21: We32N | I21: ≥ 500V & < 66kV | J21: 297.02 | K21: 341.57 | L21: 89.97 | M21: 103.47 | N21: 48.84 | O21: 56.17 | P21: 96.87 | Q21: 111.4 | R21: 66.66 | S21: 76.66 | T21: 42.3 | U21: 48.65 | V21: 7.89 | W21: 9.07
A22: WEPS | B22: We | C22: 3 | D22: 3 | E22: We33N | I22: ≥ 66kV & ≤ 132kV | J22: 287.64 | K22: 330.79 | L22: 87.13 | M22: 100.2 | N22: 47.31 | O22: 54.41 | P22: 93.82 | Q22: 107.89 | R22: 64.58 | S22: 74.27 | T22: 40.97 | U22: 47.12 | V22: 7.63 | W22: 8.77
A23: WEPS | B23: We | C23: 3 | D23: 4 | E23: We34N | I23: > 132kV* | J23: 271.03 | K23: 311.68 | L23: 82.14 | M23: 94.46 | N23: 44.63 | O23: 51.32 | P23: 88.47 | Q23: 101.74 | R23: 60.91 | S23: 70.05 | T23: 38.66 | U23: 44.46 | V23: 9.72 | W23: 11.18
I24: * 132 kV or Transmission connected
H25: Distribution network charges
H26: Voltage | J26: Network capacity charge [R/kVA/m] | L26: Network demand charge [R/kVA/m] | N26: Urban low voltage subsidy charge [R/kVA/m]
Q27: Voltage | S27: Ancillary service charge [c/kWh]
A28: Tariff | B28: Tariff nameBillcode | C28: Tx zone | D28: Voltage | E28: Billcode | K28: VAT incl | M28: VAT incl | O28: VAT incl | T28: VAT incl
A29: WEPS | B29: We | C29: 0 | D29: 1 | E29: We01N | H29: < 500V | J29: 16.65 | K29: =ROUND(J29 * (1 + VAT), 2) -> 19.15 | L29: 31.57 | M29: =ROUND(L29 * (1 + VAT), 2) -> 36.31 | N29: 0 | O29: =ROUND(N29 * (1 + VAT), 2) -> 0 | Q29: < 500V | S29: 0.39 | T29: =ROUND(S29 * (1 + VAT), 2) -> 0.45
A30: WEPS | B30: We | C30: 0 | D30: 2 | E30: We02N | H30: ≥ 500V & < 66kV | J30: 15.27 | K30: =ROUND(J30 * (1 + VAT), 2) -> 17.56 | L30: 28.96 | M30: =ROUND(L30 * (1 + VAT), 2) -> 33.3 | N30: 0 | O30: =ROUND(N30 * (1 + VAT), 2) -> 0 | Q30: ≥ 500V & < 66kV | S30: 0.38 | T30: =ROUND(S30 * (1 + VAT), 2) -> 0.44
A31: WEPS | B31: We | C31: 0 | D31: 3 | E31: We03N | H31: ≥ 66kV & ≤ 132kV | J31: 5.45 | K31: =ROUND(J31 * (1 + VAT), 2) -> 6.27 | L31: 10.1 | M31: =ROUND(L31 * (1 + VAT), 2) -> 11.62 | N31: 13.45 | O31: =ROUND(N31 * (1 + VAT), 2) -> 15.47 | Q31: ≥ 66kV & ≤ 132kV | S31: 0.36 | T31: =ROUND(S31 * (1 + VAT), 2) -> 0.41
A32: WEPS | B32: We | C32: 0 | D32: 4 | E32: We04N | H32: > 132kV / Transmission connected | J32: 0 | K32: =ROUND(J32 * (1 + VAT), 2) -> 0 | L32: 0 | M32: =ROUND(L32 * (1 + VAT), 2) -> 0 | N32: 13.45 | O32: =ROUND(N32 * (1 + VAT), 2) -> 15.47 | Q32: > 132kV / Transmission connected | S32: 0.34 | T32: =ROUND(S32 * (1 + VAT), 2) -> 0.39
H34: Customer categories | J34: Service charge [R/account/day] | L34: Administration charge [R/POD/day] | Q34: Reactive energy charge [c/kVArh]
A36: Tariff | B36: Tariff nameBillcode | C36: Tx zone | D36: Voltage | E36: Billcode | K36: VAT incl | M36: VAT incl | Q36: High season | S36: Low season
A37: WEPS | B37: We | C37: 0 | D37: 1 | E37: We01N | H37: ≤ 100 kVA | J37: 13.6 | K37: =ROUND(J37 * (1 + VAT), 2) -> 15.64 | L37: 2.99 | M37: =ROUND(L37 * (1 + VAT), 2) -> 3.44 | R37: VAT incl | T37: VAT incl
A38: WEPS | B38: We | C38: 0 | D38: 1 | E38: We01N | H38: > 100 kVA & ≤ 500 kVA | J38: 62.12 | K38: =ROUND(J38 * (1 + VAT), 2) -> 71.44 | L38: 17.42 | M38: =ROUND(L38 * (1 + VAT), 2) -> 20.03 | Q38: 13.47 | R38: =ROUND(Q38 * (1 + VAT), 2) -> 15.49 | S38: 0 | T38: =ROUND(S38 * (1 + VAT), 2) -> 0
A39: WEPS | B39: We | C39: 0 | D39: 1 | E39: We01N | H39: > 500 kVA & ≤ 1 MVA | J39: 191.16 | K39: =ROUND(J39 * (1 + VAT), 2) -> 219.83 | L39: 34.6 | M39: =ROUND(L39 * (1 + VAT), 2) -> 39.79
A40: WEPS | B40: We | C40: 0 | D40: 1 | E40: We01N | H40: > 1 MVA | J40: 191.16 | K40: =ROUND(J40 * (1 + VAT), 2) -> 219.83 | L40: 86.15 | M40: =ROUND(L40 * (1 + VAT), 2) -> 99.07
A41: WEPS | B41: We | C41: 0 | D41: 1 | E41: We01N | H41: Key customers | J41: 3745.97 | K41: =ROUND(J41 * (1 + VAT), 2) -> 4307.87 | L41: 119.64 | M41: =ROUND(L41 * (1 + VAT), 2) -> 137.59
H44: Electrification and rural network subsidy charge [c/kWh] | J44: Affordability subsidy charge [c/kWh] Only payable by non-local authority tariffs
A47: Tariff | B47: Tariff nameBillcode | C47: Tx zone | D47: Voltage | E47: Billcode | I47: VAT incl | K47: VAT incl
A48: WEPS | B48: We | C48: 0 | D48: 1 | E48: We01N | H48: 7.45 | I48: =ROUND(H48 * (1 + VAT), 2) -> 8.57 | J48: 3.31 | K48: =ROUND(J48 * (1 + VAT), 2) -> 3.81
H51: Active energy charge excluding losses [c/kWh]
H52: High demand season [Jun - Aug] | N52: Low demand season [Sep - May]
H53: Peak | J53: Standard | L53: Off Peak | N53: Peak | P53: Standard | R53: Off Peak
A54: Tariff | B54: Tariff nameBillcode | C54: Tx zone | D54: Voltage | E54: Billcode | I54: VAT incl | K54: VAT incl | M54: VAT incl | O54: VAT incl | Q54: VAT incl | S54: VAT incl
A55: WEPS | B55: We | C55: 0 | D55: 1 | E55: We01N | H55: =ROUND(J11/'Loss Factors'!$T$6, 2) -> 260.32 | I55: =ROUND(H55 * (1 + VAT), 2) -> 299.37 | J55: =ROUND(L11/'Loss Factors'!$T$6, 2) -> 78.86 | K55: =ROUND(J55 * (1 + VAT), 2) -> 90.69 | L55: =ROUND(N11/'Loss Factors'!$T$6, 2) -> 42.83 | M55: =ROUND(L55 * (1 + VAT), 2) -> 49.25 | N55: =ROUND(P11/'Loss Factors'!$T$6, 2) -> 84.94 | O55: =ROUND(N55 * (1 + VAT), 2) -> 97.68 | P55: =ROUND(R11/'Loss Factors'!$T$6, 2) -> 58.44 | Q55: =ROUND(P55 * (1 + VAT), 2) -> 67.21 | R55: =ROUND(T11/'Loss Factors'!$T$6, 2) -> 37.08 | S55: =ROUND(R55 * (1 + VAT), 2) -> 42.64
H57: Active energy charge excluding losses and enviromental levy [c/kWh]
H58: High demand season [Jun - Aug] | N58: Low demand season [Sep - May]
H59: Peak | J59: Standard | L59: Off Peak | N59: Peak | P59: Standard | R59: Off Peak
A60: Tariff | B60: Tariff nameBillcode | C60: Tx zone | D60: Voltage | E60: Billcode | I60: VAT incl | K60: VAT incl | M60: VAT incl | O60: VAT incl | Q60: VAT incl | S60: VAT incl
A61: WEPS | B61: We | C61: 0 | D61: 1 | E61: We01N | H61: 256.83 | I61: 295.35 | J61: 75.37 | K61: 86.68 | L61: 39.34 | M61: 45.24 | N61: 81.45 | O61: 93.67 | P61: 54.95 | Q61: 63.19 | R61: 33.59 | S61: 38.63

Sheet WEPS Munic inc
F1: Back to menu
A2: Municiple | F2: WEPS | Q2: Local authority
I4: Active energy charge [c/kWh] | U4: Transmission network charges [R/kVA/m]
G5: Transmission zone | I5: High demand season [Jun - Aug] | O5: Low demand season [Sep - May]
H6: Voltage | I6: Peak | K6: Standard | M6: Off Peak | O6: Peak | Q6: Standard | S6: Off Peak
A7: Tariff | B7: Tariff nameBillcode | C7: Tx zone | D7: Voltage | J7: VAT incl | L7: VAT incl | N7: VAT incl | P7: VAT incl | R7: VAT incl | T7: VAT incl | V7: VAT incl
A8: WEPS | B8: We | C8: 0 | D8: 1 | G8: ≤ 300km | H8: < 500V | I8: 300.18 | J8: =ROUND(I8 * (1 + VAT), 2) -> 345.21 | K8: 91.34 | L8: =ROUND(K8 * (1 + VAT), 2) -> 105.04 | M8: 49.84 | N8: =ROUND(M8 * (1 + VAT), 2) -> 57.32 | O8: 98.28 | P8: =ROUND(O8 * (1 + VAT), 2) -> 113.02 | Q8: 67.83 | R8: =ROUND(Q8 * (1 + VAT), 2) -> 78 | S8: 43.23 | T8: =ROUND(S8 * (1 + VAT), 2) -> 49.71 | U8: 8.36 | V8: =ROUND(U8 * (1 + VAT), 2) -> 9.61
A9: WEPS | B9: We | C9: 0 | D9: 2 | H9: ≥ 500V & < 66kV | I9: 295.45 | J9: 339.77 | K9: 89.52 | L9: 102.95 | M9: 48.61 | N9: 55.9 | O9: 96.38 | P9: 110.84 | Q9: 66.33 | R9: 76.28 | S9: 42.09 | T9: 48.4 | U9: 7.63 | V9: 8.77
A10: WEPS | B10: We | C10: 0 | D10: 3 | H10: ≥ 66kV & ≤ 132kV | I10: 286.13 | J10: 329.05 | K10: 86.67 | L10: 99.67 | M10: 47.07 | N10: 54.13 | O10: 93.34 | P10: 107.34 | Q10: 64.25 | R10: 73.89 | S10: 40.75 | T10: 46.86 | U10: 7.43 | V10: 8.54
A11: WEPS | B11: We | C11: 0 | D11: 4 | H11: > 132kV* | I11: 269.66 | J11: 310.11 | K11: 81.69 | L11: 93.94 | M11: 44.36 | N11: 51.01 | O11: 87.96 | P11: 101.15 | Q11: 60.54 | R11: 69.62 | S11: 38.41 | T11: 44.17 | U11: 9.4 | V11: 10.81
A12: WEPS | B12: We | C12: 1 | D12: 1 | G12: > 300km and ≤ 600km | H12: < 500V | I12: 302.63 | J12: 348.02 | K12: 91.68 | L12: 105.43 | M12: 49.78 | N12: 57.25 | O12: 98.72 | P12: 113.53 | Q12: 67.97 | R12: 78.17 | S12: 43.11 | T12: 49.58 | U12: 8.4 | V12: 9.66
A13: WEPS | B13: We | C13: 1 | D13: 2 | H13: ≥ 500V & < 66kV | I13: 298.4 | J13: 343.16 | K13: 90.4 | L13: 103.96 | M13: 49.09 | N13: 56.45 | O13: 97.35 | P13: 111.95 | Q13: 67 | R13: 77.05 | S13: 42.5 | T13: 48.88 | U13: 7.71 | V13: 8.87
A14: WEPS | B14: We | C14: 1 | D14: 3 | H14: ≥ 66kV & ≤ 132kV | I14: 288.93 | J14: 332.27 | K14: 87.52 | L14: 100.65 | M14: 47.52 | N14: 54.65 | O14: 94.25 | P14: 108.39 | Q14: 64.86 | R14: 74.59 | S14: 41.14 | T14: 47.31 | U14: 7.48 | V14: 8.6
A15: WEPS | B15: We | C15: 1 | D15: 4 | H15: > 132kV* | I15: 272.35 | J15: 313.2 | K15: 82.52 | L15: 94.9 | M15: 44.8 | N15: 51.52 | O15: 88.83 | P15: 102.15 | Q15: 61.15 | R15: 70.32 | S15: 38.79 | T15: 44.61 | U15: 9.49 | V15: 10.91
A16: WEPS | B16: We | C16: 2 | D16: 1 | G16: > 600km and ≤ 900km | H16: < 500V | I16: 305.65 | J16: 351.5 | K16: 92.6 | L16: 106.49 | M16: 50.27 | N16: 57.81 | O16: 99.7 | P16: 114.66 | Q16: 68.63 | R16: 78.92 | S16: 43.54 | T16: 50.07 | U16: 8.51 | V16: 9.79
A17: WEPS | B17: We | C17: 2 | D17: 2 | H17: ≥ 500V & < 66kV | I17: 301.41 | J17: 346.62 | K17: 91.3 | L17: 105 | M17: 49.58 | N17: 57.02 | O17: 98.34 | P17: 113.09 | Q17: 67.64 | R17: 77.79 | S17: 42.93 | T17: 49.37 | U17: 7.77 | V17: 8.94
A18: WEPS | B18: We | C18: 2 | D18: 3 | H18: ≥ 66kV & ≤ 132kV | I18: 291.87 | J18: 335.65 | K18: 88.4 | L18: 101.66 | M18: 48 | N18: 55.2 | O18: 95.18 | P18: 109.46 | Q18: 65.51 | R18: 75.34 | S18: 41.55 | T18: 47.78 | U18: 7.54 | V18: 8.67
A19: WEPS | B19: We | C19: 2 | D19: 4 | H19: > 132kV* | I19: 275.08 | J19: 316.34 | K19: 83.34 | L19: 95.84 | M19: 45.25 | N19: 52.04 | O19: 89.74 | P19: 103.2 | Q19: 61.76 | R19: 71.02 | S19: 39.18 | T19: 45.06 | U19: 9.62 | V19: 11.06
A20: WEPS | B20: We | C20: 3 | D20: 1 | G20: > 900km | H20: < 500V | I20: 308.72 | J20: 355.03 | K20: 93.53 | L20: 107.56 | M20: 50.79 | N20: 58.41 | O20: 100.71 | P20: 115.82 | Q20: 69.31 | R20: 79.71 | S20: 43.98 | T20: 50.58 | U20: 8.55 | V20: 9.83
A21: WEPS | B21: We | C21: 3 | D21: 2 | H21: ≥ 500V & < 66kV | I21: 304.42 | J21: 350.08 | K21: 92.21 | L21: 106.04 | M21: 50.08 | N21: 57.59 | O21: 99.29 | P21: 114.18 | Q21: 68.34 | R21: 78.59 | S21: 43.34 | T21: 49.84 | U21: 7.85 | V21: 9.03
A22: WEPS | B22: We | C22: 3 | D22: 3 | H22: ≥ 66kV & ≤ 132kV | I22: 294.81 | J22: 339.03 | K22: 89.31 | L22: 102.71 | M22: 48.5 | N22: 55.78 | O22: 96.16 | P22: 110.58 | Q22: 66.17 | R22: 76.1 | S22: 41.98 | T22: 48.28 | U22: 7.6 | V22: 8.74
A23: WEPS | B23: We | C23: 3 | D23: 4 | H23: > 132kV* | I23: 277.79 | J23: 319.46 | K23: 84.19 | L23: 96.82 | M23: 45.75 | N23: 52.61 | O23: 90.66 | P23: 104.26 | Q23: 62.41 | R23: 71.77 | S23: 39.61 | T23: 45.55 | U23: 9.69 | V23: 11.14
H24: * 132 kV or Transmission connected
G25: Distribution network charges
G26: Voltage | I26: Network capacity charge [R/kVA/m] | K26: Network demand charge [R/kVA/m] | M26: Urban low voltage subsidy charge [R/kVA/m]
P27: Voltage | R27: Ancillary service charge [c/kWh]
A28: Tariff | B28: Tariff nameBillcode | C28: Tx zone | D28: Voltage | J28: VAT incl | L28: VAT incl | N28: VAT incl | S28: VAT incl
A29: WEPS | B29: We | C29: 0 | D29: 1 | G29: < 500V | I29: 16.68 | J29: =ROUND(I29 * (1 + VAT), 2) -> 19.18 | K29: 31.61 | L29: =ROUND(K29 * (1 + VAT), 2) -> 36.35 | M29: 0 | N29: =ROUND(M29 * (1 + VAT), 2) -> 0 | P29: < 500V | R29: 0.39 | S29: =ROUND(R29 * (1 + VAT), 2) -> 0.45
A30: WEPS | B30: We | C30: 0 | D30: 2 | G30: ≥ 500V & < 66kV | I30: 15.29 | J30: =ROUND(I30 * (1 + VAT), 2) -> 17.58 | K30: 28.99 | L30: =ROUND(K30 * (1 + VAT), 2) -> 33.34 | M30: 0 | N30: =ROUND(M30 * (1 + VAT), 2) -> 0 | P30: ≥ 500V & < 66kV | R30: 0.38 | S30: =ROUND(R30 * (1 + VAT), 2) -> 0.44
A31: WEPS | B31: We | C31: 0 | D31: 3 | G31: ≥ 66kV & ≤ 132kV | I31: 5.47 | J31: =ROUND(I31 * (1 + VAT), 2) -> 6.29 | K31: 10.11 | L31: =ROUND(K31 * (1 + VAT), 2) -> 11.63 | M31: 13.39 | N31: =ROUND(M31 * (1 + VAT), 2) -> 15.4 | P31: ≥ 66kV & ≤ 132kV | R31: 0.35 | S31: =ROUND(R31 * (1 + VAT), 2) -> 0.4
A32: WEPS | B32: We | C32: 0 | D32: 4 | G32: > 132kV / Transmission connected | I32: 0 | J32: =ROUND(I32 * (1 + VAT), 2) -> 0 | K32: 0 | L32: =ROUND(K32 * (1 + VAT), 2) -> 0 | M32: 13.39 | N32: =ROUND(M32 * (1 + VAT), 2) -> 15.4 | P32: > 132kV / Transmission Connected | R32: 0.33 | S32: =ROUND(R32 * (1 + VAT), 2) -> 0.38
G34: Customer categories | I34: Service charge [R/account/day] | K34: Administration charge [R/POD/day] | P34: Reactive energy charge [c/kVArh]
A36: Tariff | B36: Tariff nameBillcode | C36: Tx zone | D36: Voltage | J36: VAT incl | L36: VAT incl | P36: High season | R36: Low season
A37: WEPS | B37: We | C37: 0 | D37: 1 | G37: ≤ 100 kVA | I37: 13.54 | J37: =ROUND(I37 * (1 + VAT), 2) -> 15.57 | K37: 2.97 | L37: =ROUND(K37 * (1 + VAT), 2) -> 3.42 | Q37: VAT incl | S37: VAT incl
A38: WEPS | B38: We | C38: 0 | D38: 1 | G38: > 100 kVA & ≤ 500 kVA | I38: 61.89 | J38: =ROUND(I38 * (1 + VAT), 2) -> 71.17 | K38: 17.34 | L38: =ROUND(K38 * (1 + VAT), 2) -> 19.94 | P38: 13.4 | Q38: =ROUND(P38 * (1 + VAT), 2) -> 15.41 | R38: 0 | S38: =ROUND(R38 * (1 + VAT), 2) -> 0
A39: WEPS | B39: We | C39: 0 | D39: 1 | G39: > 500 kVA & ≤ 1 MVA | I39: 190.47 | J39: =ROUND(I39 * (1 + VAT), 2) -> 219.04 | K39: 34.48 | L39: =ROUND(K39 * (1 + VAT), 2) -> 39.65
A40: WEPS | B40: We | C40: 0 | D40: 1 | G40: > 1 MVA | I40: 190.47 | J40: =ROUND(I40 * (1 + VAT), 2) -> 219.04 | K40: 85.86 | L40: =ROUND(K40 * (1 + VAT), 2) -> 98.74
A41: WEPS | B41: We | C41: 0 | D41: 1 | G41: Key customers | I41: 3732.51 | J41: =ROUND(I41 * (1 + VAT), 2) -> 4292.39 | K41: 119.2 | L41: =ROUND(K41 * (1 + VAT), 2) -> 137.08
G44: Electrification and rural network subsidy charge [c/kWh]
A47: Tariff | B47: Tariff nameBillcode | C47: Tx zone | D47: Voltage | H47: VAT incl
A48: WEPS | B48: We | C48: 0 | D48: 1 | G48: 7.42 | H48: =ROUND(G48 * (1 + VAT), 2) -> 8.53
G51: Active energy charge excluding losses [c/kWh]
G52: High demand season [Jun - Aug] | M52: Low demand season [Sep - May]
G53: Peak | I53: Standard | K53: Off Peak | M53: Peak | O53: Standard | Q53: Off Peak
A54: Tariff | B54: Tariff nameBillcode | C54: Tx zone | D54: Voltage | H54: VAT incl | J54: VAT incl | L54: VAT incl | N54: VAT incl | P54: VAT incl | R54: VAT incl
A55: WEPS | B55: We | C55: 0 | D55: 1 | G55: =ROUND(I11/'Loss Factors'!$T$6, 2) -> 266.81 | H55: =ROUND(G55 * (1 + VAT), 2) -> 306.83 | I55: =ROUND(K11/'Loss Factors'!$T$6, 2) -> 80.83 | J55: =ROUND(I55 * (1 + VAT), 2) -> 92.95 | K55: =ROUND(M11/'Loss Factors'!$T$6, 2) -> 43.89 | L55: =ROUND(K55 * (1 + VAT), 2) -> 50.47 | M55: =ROUND(O11/'Loss Factors'!$T$6, 2) -> 87.03 | N55: =ROUND(M55 * (1 + VAT), 2) -> 100.08 | O55: =ROUND(Q11/'Loss Factors'!$T$6, 2) -> 59.9 | P55: =ROUND(O55 * (1 + VAT), 2) -> 68.89 | Q55: =ROUND(S11/'Loss Factors'!$T$6, 2) -> 38 | R55: =ROUND(Q55 * (1 + VAT), 2) -> 43.7
G57: Active energy charge excluding losses and enviromental levy [c/kWh]
G58: High demand season [Jun - Aug] | M58: Low demand season [Sep - May]
G59: Peak | I59: Standard | K59: Off Peak | M59: Peak | O59: Standard | Q59: Off Peak
A60: Tariff | B60: Tariff nameBillcode | C60: Tx zone | D60: Voltage | H60: VAT incl | J60: VAT incl | L60: VAT incl | N60: VAT incl | P60: VAT incl | R60: VAT incl
A61: WEPS | B61: We | C61: 0 | D61: 1 | G61: 263.32 | H61: 302.82 | I61: 77.34 | J61: 88.94 | K61: 40.4 | L61: 46.46 | M61: 83.54 | N61: 96.07 | O61: 56.41 | P61: 64.87 | Q61: 34.51 | R61: 39.69

Sheet Nightsave Large inc
H1: Back to menu
A2: Non-municipal | H2: Nightsave Urban Large tariff | Q2: Non-local authority | AG2: check value
J4: Active energy charge [c/kWh] | N4: Energy demand charge [R/kVA/m] | R4: Transmission network charges [R/kVA/m]
H5: Transmission zone | J5: High demand season [Jun - Aug] | L5: Low demand season [Sep - May] | N5: High demand season [Jun - Aug] | P5: Low demand season [Sep - May]
I6: Voltage
A7: Tariff | B7: Tariff nameBillcode | C7: Tx zone | D7: Voltage | E7: Billcode | K7: VAT incl | M7: VAT incl | O7: VAT incl | Q7: VAT incl | S7: VAT incl
A8: Nightsave Large | B8: NL | C8: 0 | D8: 1 | E8: =B8&C8&D8&IF($A$2="Non-municipal","N",IF($A$2="Municiple","Y","error")) -> NL01N | H8: ≤ 300km | I8: < 500V | J8: 72.34 | K8: =ROUND(J8 * (1 + VAT), 2) -> 83.19 | L8: 56.23 | M8: =ROUND(L8 * (1 + VAT), 2) -> 64.66 | N8: 220.11 | O8: =ROUND(N8 * (1 + VAT), 2) -> 253.13 | P8: 30.76 | Q8: =ROUND(P8 * (1 + VAT), 2) -> 35.37 | R8: 8.38 | S8: =ROUND(R8 * (1 + VAT), 2) -> 9.64
A9: Nightsave Large | B9: NL | C9: 0 | D9: 2 | E9: =B9&C9&D9&IF($A$2="Non-municipal","N",IF($A$2="Municiple","Y","error")) -> NL02N | I9: ≥ 500V & < 66kV | J9: 68.5 | K9: 78.78 | L9: 53.47 | M9: 61.49 | N9: 213.04 | O9: 245 | P9: 29.78 | Q9: 34.25 | R9: 7.66 | S9: 8.81
A10: Nightsave Large | B10: NL | C10: 0 | D10: 3 | E10: NL03N | I10: ≥ 66kV & ≤ 132kV | J10: 68 | K10: 78.2 | L10: 52.83 | M10: 60.75 | N10: 205.28 | O10: 236.07 | P10: 28.7 | Q10: 33.01 | R10: 7.46 | S10: 8.58
A11: Nightsave Large | B11: NL | C11: 0 | D11: 4 | E11: NL04N | I11: > 132kV* | J11: 63.61 | K11: 73.15 | L11: 49.46 | M11: 56.88 | N11: 198.02 | O11: 227.72 | P11: 27.68 | Q11: 31.83 | R11: 9.42 | S11: 10.83
A12: Nightsave Large | B12: NL | C12: 1 | D12: 1 | E12: NL11N | H12: > 300km and ≤ 600km | I12: < 500V | J12: 73.31 | K12: 84.31 | L12: 56.85 | M12: 65.38 | N12: 222.38 | O12: 255.74 | P12: 31.06 | Q12: 35.72 | R12: 8.44 | S12: 9.71
A13: Nightsave Large | B13: NL | C13: 1 | D13: 2 | E13: NL12N | I13: ≥ 500V & < 66kV | J13: 69.94 | K13: 80.43 | L13: 54.56 | M13: 62.74 | N13: 215.2 | O13: 247.48 | P13: 30.04 | Q13: 34.55 | R13: 7.73 | S13: 8.89
A14: Nightsave Large | B14: NL | C14: 1 | D14: 3 | E14: NL13N | I14: ≥ 66kV & ≤ 132kV | J14: 69.42 | K14: 79.83 | L14: 53.9 | M14: 61.99 | N14: 207.31 | O14: 238.41 | P14: 28.96 | Q14: 33.3 | R14: 7.51 | S14: 8.64
A15: Nightsave Large | B15: NL | C15: 1 | D15: 4 | E15: NL14N | I15: > 132kV* | J15: 64.95 | K15: 74.69 | L15: 50.47 | M15: 58.04 | N15: 200.04 | O15: 230.05 | P15: 27.93 | Q15: 32.12 | R15: 9.51 | S15: 10.94
A16: Nightsave Large | B16: NL | C16: 2 | D16: 1 | E16: NL21N | H16: > 600km and ≤ 900km | I16: < 500V | J16: 73.99 | K16: 85.09 | L16: 57.4 | M16: 66.01 | N16: 224.66 | O16: 258.36 | P16: 31.38 | Q16: 36.09 | R16: 8.54 | S16: 9.82
A17: Nightsave Large | B17: NL | C17: 2 | D17: 2 | E17: NL22N | I17: ≥ 500V & < 66kV | J17: 70.63 | K17: 81.22 | L17: 55.12 | M17: 63.39 | N17: 217.36 | O17: 249.96 | P17: 30.38 | Q17: 34.94 | R17: 7.8 | S17: 8.97
A18: Nightsave Large | B18: NL | C18: 2 | D18: 3 | E18: NL23N | I18: ≥ 66kV & ≤ 132kV | J18: 70.1 | K18: 80.62 | L18: 54.44 | M18: 62.61 | N18: 209.4 | O18: 240.81 | P18: 29.25 | Q18: 33.64 | R18: 7.56 | S18: 8.69
A19: Nightsave Large | B19: NL | C19: 2 | D19: 4 | E19: NL24N | I19: > 132kV* | J19: 65.58 | K19: 75.42 | L19: 50.98 | M19: 58.63 | N19: 202.04 | O19: 232.35 | P19: 28.21 | Q19: 32.44 | R19: 9.65 | S19: 11.1
A20: Nightsave Large | B20: NL | C20: 3 | D20: 1 | E20: NL31N | H20: > 900km | I20: < 500V | J20: 74.78 | K20: 86 | L20: 57.99 | M20: 66.69 | N20: 226.83 | O20: 260.85 | P20: 31.68 | Q20: 36.43 | R20: 8.59 | S20: 9.88
A21: Nightsave Large | B21: NL | C21: 3 | D21: 2 | E21: NL32N | I21: ≥ 500V & < 66kV | J21: 71.32 | K21: 82.02 | L21: 55.66 | M21: 64.01 | N21: 219.54 | O21: 252.47 | P21: 30.64 | Q21: 35.24 | R21: 7.89 | S21: 9.07
A22: Nightsave Large | B22: NL | C22: 3 | D22: 3 | E22: NL33N | I22: ≥ 66kV & ≤ 132kV | J22: 70.83 | K22: 81.45 | L22: 54.97 | M22: 63.22 | N22: 211.54 | O22: 243.27 | P22: 29.55 | Q22: 33.98 | R22: 7.63 | S22: 8.77
A23: Nightsave Large | B23: NL | C23: 3 | D23: 4 | E23: NL34N | I23: > 132kV* | J23: 66.28 | K23: 76.22 | L23: 51.54 | M23: 59.27 | N23: 204.08 | O23: 234.69 | P23: 28.5 | Q23: 32.78 | R23: 9.72 | S23: 11.18
I24: * 132 kV or Transmission connected
H26: Distribution network charges
H27: Voltage | J27: Network capacity charge [R/kVA/m] | L27: Network demand charge [R/kVA/m] | N27: Urban low voltage subsidy charge [R/kVA/m]
Q28: Voltage | R28: Ancillary service charge [c/kWh]
A29: Tariff | B29: Tariff nameBillcode | C29: Tx zone | D29: Voltage | E29: Billcode | K29: VAT incl | M29: VAT incl | O29: VAT incl | S29: VAT incl
A30: Nightsave Large | B30: NL | C30: 0 | D30: 1 | E30: =B30&C30&D30&IF($A$2="Non-municipal","N",IF($A$2="Municiple","Y","error")) -> NL01N | H30: < 500V | J30: 16.65 | K30: =ROUND(J30 * (1 + VAT), 2) -> 19.15 | L30: 31.57 | M30: =ROUND(L30 * (1 + VAT), 2) -> 36.31 | N30: 0 | O30: =ROUND(N30 * (1 + VAT), 2) -> 0 | Q30: < 500V | R30: 0.39 | S30: =ROUND(R30 * (1 + VAT), 2) -> 0.45
A31: Nightsave Large | B31: NL | C31: 0 | D31: 2 | E31: =B31&C31&D31&IF($A$2="Non-municipal","N",IF($A$2="Municiple","Y","error")) -> NL02N | H31: ≥ 500V & < 66kV | J31: 15.27 | K31: =ROUND(J31 * (1 + VAT), 2) -> 17.56 | L31: 28.96 | M31: =ROUND(L31 * (1 + VAT), 2) -> 33.3 | N31: 0 | O31: =ROUND(N31 * (1 + VAT), 2) -> 0 | Q31: ≥ 500V & < 66kV | R31: 0.38 | S31: =ROUND(R31 * (1 + VAT), 2) -> 0.44
A32: Nightsave Large | B32: NL | C32: 0 | D32: 3 | E32: NL03N | H32: ≥ 66kV & ≤ 132kV | J32: 5.45 | K32: =ROUND(J32 * (1 + VAT), 2) -> 6.27 | L32: 10.1 | M32: =ROUND(L32 * (1 + VAT), 2) -> 11.62 | N32: 13.45 | O32: =ROUND(N32 * (1 + VAT), 2) -> 15.47 | Q32: ≥ 66kV & ≤ 132kV | R32: 0.36 | S32: =ROUND(R32 * (1 + VAT), 2) -> 0.41
A33: Nightsave Large | B33: NL | C33: 0 | D33: 4 | E33: NL04N | H33: > 132kV / Transmission connected | J33: 0 | K33: =ROUND(J33 * (1 + VAT), 2) -> 0 | L33: 0 | M33: =ROUND(L33 * (1 + VAT), 2) -> 0 | N33: 13.45 | O33: =ROUND(N33 * (1 + VAT), 2) -> 15.47 | Q33: > 132kV* | R33: 0.34 | S33: =ROUND(R33 * (1 + VAT), 2) -> 0.39
Q34: * 132 kV or Transmission connected
H36: Customer categories | I36: Service charge [R/account/day] | K36: Administration charge [R/POD/day]
A38: Tariff | B38: Tariff nameBillcode | C38: Tx zone | D38: Voltage | E38: Billcode | J38: VAT incl | L38: VAT incl
A39: Nightsave Large | B39: NL | C39: 0 | D39: 1 | E39: =B39&C39&D39&IF($A$2="Non-municipal","N",IF($A$2="Municiple","Y","error")) -> NL01N | H39: >1 MVA | I39: 191.16 | J39: =ROUND(I39 * (1 + VAT), 2) -> 219.83 | K39: 86.15 | L39: =ROUND(K39 * (1 + VAT), 2) -> 99.07
A40: Nightsave Large | B40: NL | C40: 0 | D40: 1 | E40: =B40&C40&D40&IF($A$2="Non-municipal","N",IF($A$2="Municiple","Y","error")) -> NL01N | H40: Key customers | I40: 3745.97 | J40: =ROUND(I40 * (1 + VAT), 2) -> 4307.87 | K40: 119.64 | L40: =ROUND(K40 * (1 + VAT), 2) -> 137.59
H43: Electrification and rural network subsidy charge [c/kWh] | J43: Affordability subsidy charge [c/kWh] Only payable by non-local authority tariffs
A46: Tariff | B46: Tariff nameBillcode | C46: Tx zone | D46: Voltage | E46: Billcode | I46: VAT incl | K46: VAT incl
A47: Nightsave Large | B47: NL | C47: 0 | D47: 1 | E47: =B47&C47&D47&IF($A$2="Non-municipal","N",IF($A$2="Municiple","Y","error")) -> NL01N | H47: 7.45 | I47: =ROUND(H47 * (1 + VAT), 2) -> 8.57 | J47: 3.31 | K47: =ROUND(J47 * (1 + VAT), 2) -> 3.81

Sheet Nightsave Large Munic inc
H1: Back to menu
A3: Municiple | H3: Nightsave Urban Large tariff | Q3: Local authority | AG3: check value
J5: Active energy charge [c/kWh] | N5: Energy demand charge [R/kVA/m] | R5: Transmission network charges [R/kVA/m]
H6: Transmission zone | J6: High demand season [Jun - Aug] | L6: Low demand season [Sep - May] | N6: High demand season [Jun - Aug] | P6: Low demand season [Sep - May]
I7: Voltage
A8: Tariff | B8: Tariff nameBillcode | C8: Tx zone | D8: Voltage | E8: Billcode | K8: VAT incl | M8: VAT incl | O8: VAT incl | Q8: VAT incl | S8: VAT incl
A9: Nightsave Large | B9: NL | C9: 0 | D9: 1 | E9: =B9&C9&D9&IF($A$3="Non-municipal","N",IF($A$3="Municiple","Y","error")) -> NL01Y | H9: ≤ 300km | I9: < 500V | J9: 74.14 | K9: =ROUND(J9 * (1 + VAT), 2) -> 85.26 | L9: 57.65 | M9: =ROUND(L9 * (1 + VAT), 2) -> 66.3 | N9: 221.36 | O9: =ROUND(N9 * (1 + VAT), 2) -> 254.56 | P9: 30.93 | Q9: =ROUND(P9 * (1 + VAT), 2) -> 35.57 | R9: 8.36 | S9: =ROUND(R9 * (1 + VAT), 2) -> 9.61
A10: Nightsave Large | B10: NL | C10: 0 | D10: 2 | E10: =B10&C10&D10&IF($A$3="Non-municipal","N",IF($A$3="Municiple","Y","error")) -> NL02Y | I10: ≥ 500V & < 66kV | J10: 70.21 | K10: 80.74 | L10: 54.8 | M10: 63.02 | N10: 214.25 | O10: 246.39 | P10: 29.96 | Q10: 34.45 | R10: 7.63 | S10: 8.77
A11: Nightsave Large | B11: NL | C11: 0 | D11: 3 | E11: NL03Y | I11: ≥ 66kV & ≤ 132kV | J11: 69.69 | K11: 80.14 | L11: 54.12 | M11: 62.24 | N11: 206.45 | O11: 237.42 | P11: 28.85 | Q11: 33.18 | R11: 7.43 | S11: 8.54
A12: Nightsave Large | B12: NL | C12: 0 | D12: 4 | E12: NL04Y | I12: > 132kV* | J12: 65.2 | K12: 74.98 | L12: 50.7 | M12: 58.31 | N12: 199.15 | O12: 229.02 | P12: 27.82 | Q12: 31.99 | R12: 9.4 | S12: 10.81
A13: Nightsave Large | B13: NL | C13: 1 | D13: 1 | E13: NL11Y | H13: > 300km and ≤ 600km | I13: < 500V | J13: 75.11 | K13: 86.38 | L13: 58.27 | M13: 67.01 | N13: 223.65 | O13: 257.2 | P13: 31.23 | Q13: 35.91 | R13: 8.4 | S13: 9.66
A14: Nightsave Large | B14: NL | C14: 1 | D14: 2 | E14: NL12Y | I14: ≥ 500V & < 66kV | J14: 71.67 | K14: 82.42 | L14: 55.9 | M14: 64.29 | N14: 216.41 | O14: 248.87 | P14: 30.22 | Q14: 34.75 | R14: 7.71 | S14: 8.87
A15: Nightsave Large | B15: NL | C15: 1 | D15: 3 | E15: NL13Y | I15: ≥ 66kV & ≤ 132kV | J15: 71.14 | K15: 81.81 | L15: 55.25 | M15: 63.54 | N15: 208.5 | O15: 239.78 | P15: 29.14 | Q15: 33.51 | R15: 7.48 | S15: 8.6
A16: Nightsave Large | B16: NL | C16: 1 | D16: 4 | E16: NL14Y | I16: > 132kV* | J16: 66.54 | K16: 76.52 | L16: 51.73 | M16: 59.49 | N16: 201.18 | O16: 231.36 | P16: 28.1 | Q16: 32.32 | R16: 9.49 | S16: 10.91
A17: Nightsave Large | B17: NL | C17: 2 | D17: 1 | E17: NL21Y | H17: > 600km and ≤ 900km | I17: < 500V | J17: 75.83 | K17: 87.2 | L17: 58.83 | M17: 67.65 | N17: 225.92 | O17: 259.81 | P17: 31.56 | Q17: 36.29 | R17: 8.51 | S17: 9.79
A18: Nightsave Large | B18: NL | C18: 2 | D18: 2 | E18: NL22Y | I18: ≥ 500V & < 66kV | J18: 72.39 | K18: 83.25 | L18: 56.48 | M18: 64.95 | N18: 218.61 | O18: 251.4 | P18: 30.55 | Q18: 35.13 | R18: 7.77 | S18: 8.94
A19: Nightsave Large | B19: NL | C19: 2 | D19: 3 | E19: NL23Y | I19: ≥ 66kV & ≤ 132kV | J19: 71.85 | K19: 82.63 | L19: 55.81 | M19: 64.18 | N19: 210.6 | O19: 242.19 | P19: 29.41 | Q19: 33.82 | R19: 7.54 | S19: 8.67
A20: Nightsave Large | B20: NL | C20: 2 | D20: 4 | E20: NL24Y | I20: > 132kV* | J20: 67.21 | K20: 77.29 | L20: 52.25 | M20: 60.09 | N20: 203.21 | O20: 233.69 | P20: 28.39 | Q20: 32.65 | R20: 9.62 | S20: 11.06
A21: Nightsave Large | B21: NL | C21: 3 | D21: 1 | E21: NL31Y | H21: > 900km | I21: < 500V | J21: 76.64 | K21: 88.14 | L21: 59.42 | M21: 68.33 | N21: 228.14 | O21: 262.36 | P21: 31.87 | Q21: 36.65 | R21: 8.55 | S21: 9.83
A22: Nightsave Large | B22: NL | C22: 3 | D22: 2 | E22: NL32Y | I22: ≥ 500V & < 66kV | J22: 73.11 | K22: 84.08 | L22: 57.03 | M22: 65.58 | N22: 220.79 | O22: 253.91 | P22: 30.82 | Q22: 35.44 | R22: 7.85 | S22: 9.03
A23: Nightsave Large | B23: NL | C23: 3 | D23: 3 | E23: NL33Y | I23: ≥ 66kV & ≤ 132kV | J23: 72.57 | K23: 83.46 | L23: 56.34 | M23: 64.79 | N23: 212.73 | O23: 244.64 | P23: 29.73 | Q23: 34.19 | R23: 7.6 | S23: 8.74
A24: Nightsave Large | B24: NL | C24: 3 | D24: 4 | E24: NL34Y | I24: > 132kV* | J24: 67.94 | K24: 78.13 | L24: 52.83 | M24: 60.75 | N24: 205.25 | O24: 236.04 | P24: 28.65 | Q24: 32.95 | R24: 9.69 | S24: 11.14
I25: * 132 kV or Transmission connected
H27: Distribution network charges
H28: Voltage | J28: Network capacity charge [R/kVA/m] | L28: Network demand charge [R/kVA/m] | N28: Urban low voltage subsidy charge [R/kVA/m]
Q29: Voltage | R29: Ancillary service charge [c/kWh]
A30: Tariff | B30: Tariff nameBillcode | C30: Tx zone | D30: Voltage | E30: Billcode | K30: VAT incl | M30: VAT incl | O30: VAT incl | S30: VAT incl
A31: Nightsave Large | B31: NL | C31: 0 | D31: 1 | E31: =B31&C31&D31&IF($A$3="Non-municipal","N",IF($A$3="Municiple","Y","error")) -> NL01Y | H31: < 500V | J31: 16.68 | K31: =ROUND(J31 * (1 + VAT), 2) -> 19.18 | L31: 31.61 | M31: =ROUND(L31 * (1 + VAT), 2) -> 36.35 | N31: 0 | O31: =ROUND(N31 * (1 + VAT), 2) -> 0 | Q31: < 500V | R31: 0.39 | S31: =ROUND(R31 * (1 + VAT), 2) -> 0.45
A32: Nightsave Large | B32: NL | C32: 0 | D32: 2 | E32: =B32&C32&D32&IF($A$3="Non-municipal","N",IF($A$3="Municiple","Y","error")) -> NL02Y | H32: ≥ 500V & < 66kV | J32: 15.29 | K32: =ROUND(J32 * (1 + VAT), 2) -> 17.58 | L32: 28.99 | M32: =ROUND(L32 * (1 + VAT), 2) -> 33.34 | N32: 0 | O32: =ROUND(N32 * (1 + VAT), 2) -> 0 | Q32: ≥ 500V & < 66kV | R32: 0.38 | S32: =ROUND(R32 * (1 + VAT), 2) -> 0.44
A33: Nightsave Large | B33: NL | C33: 0 | D33: 3 | E33: NL03Y | H33: ≥ 66kV & ≤ 132kV | J33: 5.47 | K33: =ROUND(J33 * (1 + VAT), 2) -> 6.29 | L33: 10.11 | M33: =ROUND(L33 * (1 + VAT), 2) -> 11.63 | N33: 13.39 | O33: =ROUND(N33 * (1 + VAT), 2) -> 15.4 | Q33: ≥ 66kV & ≤ 132kV | R33: 0.35 | S33: =ROUND(R33 * (1 + VAT), 2) -> 0.4
A34: Nightsave Large | B34: NL | C34: 0 | D34: 4 | E34: NL04Y | H34: > 132kV / Transmission connected | J34: 0 | K34: =ROUND(J34 * (1 + VAT), 2) -> 0 | L34: 0 | M34: =ROUND(L34 * (1 + VAT), 2) -> 0 | N34: 13.39 | O34: =ROUND(N34 * (1 + VAT), 2) -> 15.4 | Q34: > 132kV* | R34: 0.33 | S34: =ROUND(R34 * (1 + VAT), 2) -> 0.38
Q35: * 132 kV or Transmission connected
H37: Customer categories | I37: Service charge [R/account/day] | K37: Administration charge [R/POD/day]
A39: Tariff | B39: Tariff nameBillcode | C39: Tx zone | D39: Voltage | E39: Billcode | J39: VAT incl | L39: VAT incl
A40: Nightsave Large | B40: NL | C40: 0 | D40: 1 | E40: =B40&C40&D40&IF($A$3="Non-municipal","N",IF($A$3="Municiple","Y","error")) -> NL01Y | H40: >1 MVA | I40: 190.47 | J40: =ROUND(I40 * (1 + VAT), 2) -> 219.04 | K40: 85.86 | L40: =ROUND(K40 * (1 + VAT), 2) -> 98.74
A41: Nightsave Large | B41: NL | C41: 0 | D41: 1 | E41: =B41&C41&D41&IF($A$3="Non-municipal","N",IF($A$3="Municiple","Y","error")) -> NL01Y | H41: Key customers | I41: 3732.51 | J41: =ROUND(I41 * (1 + VAT), 2) -> 4292.39 | K41: 119.2 | L41: =ROUND(K41 * (1 + VAT), 2) -> 137.08
H44: Electrification and rural network subsidy charge [c/kWh]
A47: Tariff | B47: Tariff nameBillcode | C47: Tx zone | D47: Voltage | E47: Billcode | I47: VAT incl
A48: Nightsave Large | B48: NL | C48: 0 | D48: 1 | E48: =B48&C48&D48&IF($A$3="Non-municipal","N",IF($A$3="Municiple","Y","error")) -> NL01Y | H48: 7.42 | I48: =ROUND(H48 * (1 + VAT), 2) -> 8.53

Sheet Nightsave Small inc
G1: Back to menu
A2: Non-municipal | G2: Nightsave Urban Small tariff | R2: Non-local authority | AF2: =SUM(#REF!,#REF!,#REF!,#REF!,#REF!,#REF!,#REF!,#REF!,#REF!) ->  | AG2: check value
J4: Active energy charge [c/kWh] | N4: Energy demand charge [R/kVA/m] | R4: Transmission network charges [R/kVA/m]
H5: Transmission zone | J5: High demand season [Jun - Aug] | L5: Low demand season [Sep - May] | N5: High demand season [Jun - Aug] | P5: Low demand season [Sep - May]
I6: Voltage
A7: Tariff | B7: Tariff nameBillcode | C7: Tx zone | D7: Voltage | E7: Billcode | K7: VAT incl | M7: VAT incl | O7: VAT incl | Q7: VAT incl | S7: VAT incl
A8: Nightsave Small | B8: NS | C8: 0 | D8: 1 | E8: =B8&C8&D8&IF($A$2="Non-municipal","N",IF($A$2="Municiple","Y","error")) -> NS01N | H8: ≤ 300km | I8: < 500V | J8: 72.34 | K8: =ROUND(J8 * (1 + VAT), 2) -> 83.19 | L8: 56.23 | M8: =ROUND(L8 * (1 + VAT), 2) -> 64.66 | N8: 154.58 | O8: =ROUND(N8 * (1 + VAT), 2) -> 177.77 | P8: 19.92 | Q8: =ROUND(P8 * (1 + VAT), 2) -> 22.91 | R8: 8.38 | S8: =ROUND(R8 * (1 + VAT), 2) -> 9.64
A9: Nightsave Small | B9: NS | C9: 0 | D9: 2 | E9: =B9&C9&D9&IF($A$2="Non-municipal","N",IF($A$2="Municiple","Y","error")) -> NS02N | I9: ≥ 500V & < 66kV | J9: 68.5 | K9: 78.78 | L9: 53.47 | M9: 61.49 | N9: 149.61 | O9: 172.05 | P9: 19.25 | Q9: 22.14 | R9: 7.66 | S9: 8.81
A10: Nightsave Small | B10: NS | C10: 0 | D10: 3 | E10: NS03N | I10: ≥ 66kV & ≤ 132kV | J10: 68 | K10: 78.2 | L10: 52.83 | M10: 60.75 | N10: 144.1 | O10: 165.72 | P10: 18.53 | Q10: 21.31 | R10: 7.46 | S10: 8.58
A11: Nightsave Small | B11: NS | C11: 0 | D11: 4 | E11: NS04N | I11: > 132kV* | J11: 63.61 | K11: 73.15 | L11: 49.46 | M11: 56.88 | N11: 139.06 | O11: 159.92 | P11: 17.89 | Q11: 20.57 | R11: 9.42 | S11: 10.83
A12: Nightsave Small | B12: NS | C12: 1 | D12: 1 | E12: NS11N | H12: > 300km and ≤ 600km | I12: < 500V | J12: 73.31 | K12: 84.31 | L12: 56.85 | M12: 65.38 | N12: 156.16 | O12: 179.58 | P12: 20.08 | Q12: 23.09 | R12: 8.44 | S12: 9.71
A13: Nightsave Small | B13: NS | C13: 1 | D13: 2 | E13: NS12N | I13: ≥ 500V & < 66kV | J13: 69.94 | K13: 80.43 | L13: 54.56 | M13: 62.74 | N13: 151.11 | O13: 173.78 | P13: 19.44 | Q13: 22.36 | R13: 7.73 | S13: 8.89
A14: Nightsave Small | B14: NS | C14: 1 | D14: 3 | E14: NS13N | I14: ≥ 66kV & ≤ 132kV | J14: 69.42 | K14: 79.83 | L14: 53.9 | M14: 61.99 | N14: 145.59 | O14: 167.43 | P14: 18.73 | Q14: 21.54 | R14: 7.51 | S14: 8.64
A15: Nightsave Small | B15: NS | C15: 1 | D15: 4 | E15: NS14N | I15: > 132kV* | J15: 64.95 | K15: 74.69 | L15: 50.47 | M15: 58.04 | N15: 140.45 | O15: 161.52 | P15: 18.07 | Q15: 20.78 | R15: 9.51 | S15: 10.94
A16: Nightsave Small | B16: NS | C16: 2 | D16: 1 | E16: NS21N | H16: > 600km and ≤ 900km | I16: < 500V | J16: 73.99 | K16: 85.09 | L16: 57.4 | M16: 66.01 | N16: 157.7 | O16: 181.36 | P16: 20.27 | Q16: 23.31 | R16: 8.54 | S16: 9.82
A17: Nightsave Small | B17: NS | C17: 2 | D17: 2 | E17: NS22N | I17: ≥ 500V & < 66kV | J17: 70.63 | K17: 81.22 | L17: 55.12 | M17: 63.39 | N17: 152.66 | O17: 175.56 | P17: 19.64 | Q17: 22.59 | R17: 7.8 | S17: 8.97
A18: Nightsave Small | B18: NS | C18: 2 | D18: 3 | E18: NS23N | I18: ≥ 66kV & ≤ 132kV | J18: 70.1 | K18: 80.62 | L18: 54.44 | M18: 62.61 | N18: 147.05 | O18: 169.11 | P18: 18.92 | Q18: 21.76 | R18: 7.56 | S18: 8.69
A19: Nightsave Small | B19: NS | C19: 2 | D19: 4 | E19: NS24N | I19: > 132kV* | J19: 65.58 | K19: 75.42 | L19: 50.98 | M19: 58.63 | N19: 141.84 | O19: 163.12 | P19: 18.25 | Q19: 20.99 | R19: 9.65 | S19: 11.1
A20: Nightsave Small | B20: NS | C20: 3 | D20: 1 | E20: NS31N | H20: > 900km | I20: < 500V | J20: 74.78 | K20: 86 | L20: 57.99 | M20: 66.69 | N20: 159.31 | O20: 183.21 | P20: 20.49 | Q20: 23.56 | R20: 8.59 | S20: 9.88
A21: Nightsave Small | B21: NS | C21: 3 | D21: 2 | E21: NS32N | I21: ≥ 500V & < 66kV | J21: 71.32 | K21: 82.02 | L21: 55.66 | M21: 64.01 | N21: 154.15 | O21: 177.27 | P21: 19.84 | Q21: 22.82 | R21: 7.89 | S21: 9.07
A22: Nightsave Small | B22: NS | C22: 3 | D22: 3 | E22: NS33N | I22: ≥ 66kV & ≤ 132kV | J22: 70.83 | K22: 81.45 | L22: 54.97 | M22: 63.22 | N22: 148.55 | O22: 170.83 | P22: 19.12 | Q22: 21.99 | R22: 7.63 | S22: 8.77
A23: Nightsave Small | B23: NS | C23: 3 | D23: 4 | E23: NS34N | I23: > 132kV* | J23: 66.28 | K23: 76.22 | L23: 51.54 | M23: 59.27 | N23: 143.32 | O23: 164.82 | P23: 18.46 | Q23: 21.23 | R23: 9.72 | S23: 11.18
I24: * 132 kV or Transmission connected
H26: Distribution network charges
J27: Network capacity charge [R/kVA/m] | L27: Network demand charge [R/kVA/m] | N27: Urban low voltage subsidy charge [R/kVA/m]
H28: Voltage | Q28: Voltage | R28: Ancillary service charge [c/kWh]
A29: Tariff | B29: Tariff nameBillcode | C29: Tx zone | D29: Voltage | E29: Billcode | K29: VAT incl | M29: VAT incl | O29: VAT incl | S29: VAT incl
A30: Nightsave Small | B30: NS | C30: 0 | D30: 1 | E30: =B30&C30&D30&IF($A$2="Non-municipal","N",IF($A$2="Municiple","Y","error")) -> NS01N | H30: < 500V | J30: 16.65 | K30: =ROUND(J30 * (1 + VAT), 2) -> 19.15 | L30: 31.57 | M30: =ROUND(L30 * (1 + VAT), 2) -> 36.31 | N30: 0 | O30: =ROUND(N30 * (1 + VAT), 2) -> 0 | Q30: < 500V | R30: 0.39 | S30: =ROUND(R30 * (1 + VAT), 2) -> 0.45
A31: Nightsave Small | B31: NS | C31: 0 | D31: 2 | E31: =B31&C31&D31&IF($A$2="Non-municipal","N",IF($A$2="Municiple","Y","error")) -> NS02N | H31: ≥ 500V & < 66kV | J31: 15.27 | K31: =ROUND(J31 * (1 + VAT), 2) -> 17.56 | L31: 28.96 | M31: =ROUND(L31 * (1 + VAT), 2) -> 33.3 | N31: 0 | O31: =ROUND(N31 * (1 + VAT), 2) -> 0 | Q31: ≥ 500V & < 66kV | R31: 0.38 | S31: =ROUND(R31 * (1 + VAT), 2) -> 0.44
A32: Nightsave Small | B32: NS | C32: 0 | D32: 3 | E32: NS03N | H32: ≥ 66kV & ≤ 132kV | J32: 5.45 | K32: =ROUND(J32 * (1 + VAT), 2) -> 6.27 | L32: 10.1 | M32: =ROUND(L32 * (1 + VAT), 2) -> 11.62 | N32: 13.45 | O32: =ROUND(N32 * (1 + VAT), 2) -> 15.47 | Q32: ≥ 66kV & ≤ 132kV | R32: 0.36 | S32: =ROUND(R32 * (1 + VAT), 2) -> 0.41
A33: Nightsave Small | B33: NS | C33: 0 | D33: 4 | E33: NS04N | H33: > 132kV / Transmission connected | J33: 0 | K33: =ROUND(J33 * (1 + VAT), 2) -> 0 | L33: 0 | M33: =ROUND(L33 * (1 + VAT), 2) -> 0 | N33: 13.45 | O33: =ROUND(N33 * (1 + VAT), 2) -> 15.47 | Q33: > 132kV* | R33: 0.34 | S33: =ROUND(R33 * (1 + VAT), 2) -> 0.39
Q34: * 132 kV or Transmission connected
H36: Customer categories | I36: Service charge [R/account/day] | K36: Administration charge [R/POD/day]
A38: Tariff | B38: Tariff nameBillcode | C38: Tx zone | D38: Voltage | E38: Billcode | J38: VAT incl | L38: VAT incl
A39: Nightsave Small | B39: NS | C39: 0 | D39: 1 | E39: =B39&C39&D39&IF($A$2="Non-municipal","N",IF($A$2="Municiple","Y","error")) -> NS01N | H39: ≤ 100 kVA | I39: 13.6 | J39: =ROUND(I39 * (1 + VAT), 2) -> 15.64 | K39: 2.99 | L39: =ROUND(K39 * (1 + VAT), 2) -> 3.44
A40: Nightsave Small | B40: NS | C40: 0 | D40: 1 | E40: =B40&C40&D40&IF($A$2="Non-municipal","N",IF($A$2="Municiple","Y","error")) -> NS01N | H40: > 100 kVA & ≤ 500 kVA | I40: 62.12 | J40: =ROUND(I40 * (1 + VAT), 2) -> 71.44 | K40: 17.42 | L40: =ROUND(K40 * (1 + VAT), 2) -> 20.03
A41: Nightsave Small | B41: NS | C41: 0 | D41: 1 | E41: =B41&C41&D41&IF($A$2="Non-municipal","N",IF($A$2="Municiple","Y","error")) -> NS01N | H41: > 500 kVA & ≤ 1 MVA | I41: 191.16 | J41: =ROUND(I41 * (1 + VAT), 2) -> 219.83 | K41: 34.6 | L41: =ROUND(K41 * (1 + VAT), 2) -> 39.79
A42: Nightsave Small | B42: NS | C42: 0 | D42: 1 | E42: =B42&C42&D42&IF($A$2="Non-municipal","N",IF($A$2="Municiple","Y","error")) -> NS01N | H42: Key customers | I42: 3745.97 | J42: =ROUND(I42 * (1 + VAT), 2) -> 4307.87 | K42: 119.64 | L42: =ROUND(K42 * (1 + VAT), 2) -> 137.59
H44: Electrification and rural network subsidy charge [c/kWh] | J44: Affordability subsidy charge [c/kWh] Only payable by non-local authority tariffs
A47: Tariff | B47: Tariff nameBillcode | C47: Tx zone | D47: Voltage | E47: Billcode | I47: VAT incl | K47: VAT incl
A48: Nightsave Small | B48: NS | C48: 0 | D48: 1 | E48: =B48&C48&D48&IF($A$2="Non-municipal","N",IF($A$2="Municiple","Y","error")) -> NS01N | H48: 7.45 | I48: =ROUND(H48 * (1 + VAT), 2) -> 8.57 | J48: 3.31 | K48: =ROUND(J48 * (1 + VAT), 2) -> 3.81

Sheet Nightsave Small Munic inc
G1: Back to menu
A2: Municiple | G2: Nightsave Urban Small tariff | R2: Local authority | AF2: =SUM(#REF!,#REF!,#REF!,#REF!,#REF!,#REF!,#REF!,#REF!,#REF!) ->  | AG2: check value
J4: Active energy charge [c/kWh] | N4: Energy demand charge [R/kVA/m] | R4: Transmission network charges [R/kVA/m]
H5: Transmission zone | J5: High demand season [Jun - Aug] | L5: Low demand season [Sep - May] | N5: High demand season [Jun - Aug] | P5: Low demand season [Sep - May]
I6: Voltage
A7: Tariff | B7: Tariff nameBillcode | C7: Tx zone | D7: Voltage | E7: Billcode | K7: VAT incl | M7: VAT incl | O7: VAT incl | Q7: VAT incl | S7: VAT incl
A8: Nightsave Small | B8: NS | C8: 0 | D8: 1 | E8: =B8&C8&D8&IF($A$2="Non-municipal","N",IF($A$2="Municiple","Y","error")) -> NS01Y | H8: ≤ 300km | I8: < 500V | J8: 74.14 | K8: =ROUND(J8 * (1 + VAT), 2) -> 85.26 | L8: 57.65 | M8: =ROUND(L8 * (1 + VAT), 2) -> 66.3 | N8: 155.45 | O8: =ROUND(N8 * (1 + VAT), 2) -> 178.77 | P8: 20.05 | Q8: =ROUND(P8 * (1 + VAT), 2) -> 23.06 | R8: 8.36 | S8: =ROUND(R8 * (1 + VAT), 2) -> 9.61
A9: Nightsave Small | B9: NS | C9: 0 | D9: 2 | E9: =B9&C9&D9&IF($A$2="Non-municipal","N",IF($A$2="Municiple","Y","error")) -> NS02Y | I9: ≥ 500V & < 66kV | J9: 70.21 | K9: 80.74 | L9: 54.8 | M9: 63.02 | N9: 150.45 | O9: 173.02 | P9: 19.36 | Q9: 22.26 | R9: 7.63 | S9: 8.77
A10: Nightsave Small | B10: NS | C10: 0 | D10: 3 | E10: NS03Y | I10: ≥ 66kV & ≤ 132kV | J10: 69.69 | K10: 80.14 | L10: 54.12 | M10: 62.24 | N10: 144.94 | O10: 166.68 | P10: 18.63 | Q10: 21.42 | R10: 7.43 | S10: 8.54
A11: Nightsave Small | B11: NS | C11: 0 | D11: 4 | E11: NS04Y | I11: > 132kV* | J11: 65.2 | K11: 74.98 | L11: 50.7 | M11: 58.31 | N11: 139.85 | O11: 160.83 | P11: 17.99 | Q11: 20.69 | R11: 9.4 | S11: 10.81
A12: Nightsave Small | B12: NS | C12: 1 | D12: 1 | E12: NS11Y | H12: > 300km and ≤ 600km | I12: < 500V | J12: 75.11 | K12: 86.38 | L12: 58.27 | M12: 67.01 | N12: 157.05 | O12: 180.61 | P12: 20.21 | Q12: 23.24 | R12: 8.4 | S12: 9.66
A13: Nightsave Small | B13: NS | C13: 1 | D13: 2 | E13: NS12Y | I13: ≥ 500V & < 66kV | J13: 71.67 | K13: 82.42 | L13: 55.9 | M13: 64.29 | N13: 152 | O13: 174.8 | P13: 19.54 | Q13: 22.47 | R13: 7.71 | S13: 8.87
A14: Nightsave Small | B14: NS | C14: 1 | D14: 3 | E14: NS13Y | I14: ≥ 66kV & ≤ 132kV | J14: 71.14 | K14: 81.81 | L14: 55.25 | M14: 63.54 | N14: 146.43 | O14: 168.39 | P14: 18.82 | Q14: 21.64 | R14: 7.48 | S14: 8.6
A15: Nightsave Small | B15: NS | C15: 1 | D15: 4 | E15: NS14Y | I15: > 132kV* | J15: 66.54 | K15: 76.52 | L15: 51.73 | M15: 59.49 | N15: 141.25 | O15: 162.44 | P15: 18.17 | Q15: 20.9 | R15: 9.49 | S15: 10.91
A16: Nightsave Small | B16: NS | C16: 2 | D16: 1 | E16: NS21Y | H16: > 600km and ≤ 900km | I16: < 500V | J16: 75.83 | K16: 87.2 | L16: 58.83 | M16: 67.65 | N16: 158.62 | O16: 182.41 | P16: 20.39 | Q16: 23.45 | R16: 8.51 | S16: 9.79
A17: Nightsave Small | B17: NS | C17: 2 | D17: 2 | E17: NS22Y | I17: ≥ 500V & < 66kV | J17: 72.39 | K17: 83.25 | L17: 56.48 | M17: 64.95 | N17: 153.51 | O17: 176.54 | P17: 19.75 | Q17: 22.71 | R17: 7.77 | S17: 8.94
A18: Nightsave Small | B18: NS | C18: 2 | D18: 3 | E18: NS23Y | I18: ≥ 66kV & ≤ 132kV | J18: 71.85 | K18: 82.63 | L18: 55.81 | M18: 64.18 | N18: 147.9 | O18: 170.09 | P18: 19.02 | Q18: 21.87 | R18: 7.54 | S18: 8.67
A19: Nightsave Small | B19: NS | C19: 2 | D19: 4 | E19: NS24Y | I19: > 132kV* | J19: 67.21 | K19: 77.29 | L19: 52.25 | M19: 60.09 | N19: 142.65 | O19: 164.05 | P19: 18.34 | Q19: 21.09 | R19: 9.62 | S19: 11.06
A20: Nightsave Small | B20: NS | C20: 3 | D20: 1 | E20: NS31Y | H20: > 900km | I20: < 500V | J20: 76.64 | K20: 88.14 | L20: 59.42 | M20: 68.33 | N20: 160.22 | O20: 184.25 | P20: 20.59 | Q20: 23.68 | R20: 8.55 | S20: 9.83
A21: Nightsave Small | B21: NS | C21: 3 | D21: 2 | E21: NS32Y | I21: ≥ 500V & < 66kV | J21: 73.11 | K21: 84.08 | L21: 57.03 | M21: 65.58 | N21: 155.03 | O21: 178.28 | P21: 19.94 | Q21: 22.93 | R21: 7.85 | S21: 9.03
A22: Nightsave Small | B22: NS | C22: 3 | D22: 3 | E22: NS33Y | I22: ≥ 66kV & ≤ 132kV | J22: 72.57 | K22: 83.46 | L22: 56.34 | M22: 64.79 | N22: 149.39 | O22: 171.8 | P22: 19.22 | Q22: 22.1 | R22: 7.6 | S22: 8.74
A23: Nightsave Small | B23: NS | C23: 3 | D23: 4 | E23: NS34Y | I23: > 132kV* | J23: 67.94 | K23: 78.13 | L23: 52.83 | M23: 60.75 | N23: 144.15 | O23: 165.77 | P23: 18.56 | Q23: 21.34 | R23: 9.69 | S23: 11.14
I24: * 132 kV or Transmission connected
H26: Distribution network charges
J27: Network capacity charge [R/kVA/m] | L27: Network demand charge [R/kVA/m] | N27: Urban low voltage subsidy charge [R/kVA/m]
H28: Voltage | Q28: Voltage | R28: Ancillary service charge [c/kWh]
A29: Tariff | B29: Tariff nameBillcode | C29: Tx zone | D29: Voltage | E29: Billcode | K29: VAT incl | M29: VAT incl | O29: VAT incl | S29: VAT incl
A30: Nightsave Small | B30: NS | C30: 0 | D30: 1 | E30: =B30&C30&D30&IF($A$2="Non-municipal","N",IF($A$2="Municiple","Y","error")) -> NS01Y | H30: < 500V | J30: 16.68 | K30: =ROUND(J30 * (1 + VAT), 2) -> 19.18 | L30: 31.61 | M30: =ROUND(L30 * (1 + VAT), 2) -> 36.35 | N30: 0 | O30: =ROUND(N30 * (1 + VAT), 2) -> 0 | Q30: < 500V | R30: 0.39 | S30: =ROUND(R30 * (1 + VAT), 2) -> 0.45
A31: Nightsave Small | B31: NS | C31: 0 | D31: 2 | E31: =B31&C31&D31&IF($A$2="Non-municipal","N",IF($A$2="Municiple","Y","error")) -> NS02Y | H31: ≥ 500V & < 66kV | J31: 15.29 | K31: =ROUND(J31 * (1 + VAT), 2) -> 17.58 | L31: 28.99 | M31: =ROUND(L31 * (1 + VAT), 2) -> 33.34 | N31: 0 | O31: =ROUND(N31 * (1 + VAT), 2) -> 0 | Q31: ≥ 500V & < 66kV | R31: 0.38 | S31: =ROUND(R31 * (1 + VAT), 2) -> 0.44
A32: Nightsave Small | B32: NS | C32: 0 | D32: 3 | E32: NS03Y | H32: ≥ 66kV & ≤ 132kV | J32: 5.47 | K32: =ROUND(J32 * (1 + VAT), 2) -> 6.29 | L32: 10.11 | M32: =ROUND(L32 * (1 + VAT), 2) -> 11.63 | N32: 13.39 | O32: =ROUND(N32 * (1 + VAT), 2) -> 15.4 | Q32: ≥ 66kV & ≤ 132kV | R32: 0.35 | S32: =ROUND(R32 * (1 + VAT), 2) -> 0.4
A33: Nightsave Small | B33: NS | C33: 0 | D33: 4 | E33: NS04Y | H33: > 132kV / Transmission connected | J33: 0 | K33: =ROUND(J33 * (1 + VAT), 2) -> 0 | L33: 0 | M33: =ROUND(L33 * (1 + VAT), 2) -> 0 | N33: 13.39 | O33: =ROUND(N33 * (1 + VAT), 2) -> 15.4 | Q33: > 132kV* | R33: 0.33 | S33: =ROUND(R33 * (1 + VAT), 2) -> 0.38
Q34: * 132 kV or Transmission connected
H36: Customer categories | I36: Service charge [R/account/day] | K36: Administration charge [R/POD/day]
A38: Tariff | B38: Tariff nameBillcode | C38: Tx zone | D38: Voltage | E38: Billcode | J38: VAT incl | L38: VAT incl
A39: Nightsave Small | B39: NS | C39: 0 | D39: 1 | E39: =B39&C39&D39&IF($A$2="Non-municipal","N",IF($A$2="Municiple","Y","error")) -> NS01Y | H39: ≤ 100 kVA | I39: 13.54 | J39: =ROUND(I39 * (1 + VAT), 2) -> 15.57 | K39: 2.97 | L39: =ROUND(K39 * (1 + VAT), 2) -> 3.42
A40: Nightsave Small | B40: NS | C40: 0 | D40: 1 | E40: =B40&C40&D40&IF($A$2="Non-municipal","N",IF($A$2="Municiple","Y","error")) -> NS01Y | H40: > 100 kVA & ≤ 500 kVA | I40: 61.89 | J40: =ROUND(I40 * (1 + VAT), 2) -> 71.17 | K40: 17.34 | L40: =ROUND(K40 * (1 + VAT), 2) -> 19.94
A41: Nightsave Small | B41: NS | C41: 0 | D41: 1 | E41: =B41&C41&D41&IF($A$2="Non-municipal","N",IF($A$2="Municiple","Y","error")) -> NS01Y | H41: > 500 kVA & ≤ 1 MVA | I41: 190.47 | J41: =ROUND(I41 * (1 + VAT), 2) -> 219.04 | K41: 34.48 | L41: =ROUND(K41 * (1 + VAT), 2) -> 39.65
A42: Nightsave Small | B42: NS | C42: 0 | D42: 1 | E42: =B42&C42&D42&IF($A$2="Non-municipal","N",IF($A$2="Municiple","Y","error")) -> NS01Y | H42: Key customers | I42: 3732.51 | J42: =ROUND(I42 * (1 + VAT), 2) -> 4292.39 | K42: 119.2 | L42: =ROUND(K42 * (1 + VAT), 2) -> 137.08
H44: Electrification and rural network subsidy charge [c/kWh]
A47: Tariff | B47: Tariff nameBillcode | C47: Tx zone | D47: Voltage | E47: Billcode | I47: VAT incl
A48: Nightsave Small | B48: NS | C48: 0 | D48: 1 | E48: =B48&C48&D48&IF($A$2="Non-municipal","N",IF($A$2="Municiple","Y","error")) -> NS01Y | H48: 7.42 | I48: =ROUND(H48 * (1 + VAT), 2) -> 8.53

Sheet Megaflex inc
G1: Back to menu
A2: Non-municipal | G2: Megaflex tariff | R2: Non-local authority | AF2: =SUM(J8:T23,V8:V23,#REF!,#REF!,#REF!,#REF!,H26:J26,L26) ->  | AG2: check value
J4: Active energy charge [c/kWh] | V4: Transmission network charges [R/kVA/m]
H5: Transmission zone | J5: High demand season [Jun - Aug] | P5: Low demand season [Sep - May]
I6: Voltage | J6: Peak | L6: Standard | N6: Off Peak | P6: Peak | R6: Standard | T6: Off Peak
A7: Tariff | B7: Tariff nameBillcode | C7: Tx zone | D7: Voltage | E7: Billcode | K7: VAT incl | M7: VAT incl | O7: VAT incl | Q7: VAT incl | S7: VAT incl | U7: VAT incl | W7: VAT incl
A8: Megaflex | B8: Me | C8: 0 | D8: 1 | E8: =B8&C8&D8&IF($A$2="Non-municipal","N",IF($A$2="Municiple","Y","error")) -> Me01N | H8: ≤ 300km | I8: < 500V | J8: 292.89 | K8: =ROUND(J8 * (1 + VAT), 2) -> 336.82 | L8: 89.11 | M8: =ROUND(L8 * (1 + VAT), 2) -> 102.48 | N8: 48.66 | O8: =ROUND(N8 * (1 + VAT), 2) -> 55.96 | P8: 95.91 | Q8: =ROUND(P8 * (1 + VAT), 2) -> 110.3 | R8: 66.18 | S8: =ROUND(R8 * (1 + VAT), 2) -> 76.11 | T8: 42.19 | U8: =ROUND(T8 * (1 + VAT), 2) -> 48.52 | V8: 8.38 | W8: =ROUND(V8 * (1 + VAT), 2) -> 9.64
A9: Megaflex | B9: Me | C9: 0 | D9: 2 | E9: =B9&C9&D9&IF($A$2="Non-municipal","N",IF($A$2="Municiple","Y","error")) -> Me02N | I9: ≥ 500V & < 66kV | J9: 288.29 | K9: 331.53 | L9: 87.34 | M9: 100.44 | N9: 47.43 | O9: 54.54 | P9: 94.03 | Q9: 108.13 | R9: 64.73 | S9: 74.44 | T9: 41.06 | U9: 47.22 | V9: 7.66 | W9: 8.81
A10: Megaflex | B10: Me | C10: 0 | D10: 3 | E10: Me03N | I10: ≥ 66kV & ≤ 132kV | J10: 279.16 | K10: 321.03 | L10: 84.56 | M10: 97.24 | N10: 45.93 | O10: 52.82 | P10: 91.08 | Q10: 104.74 | R10: 62.67 | S10: 72.07 | T10: 39.77 | U10: 45.74 | V10: 7.46 | W10: 8.58
A11: Megaflex | B11: Me | C11: 0 | D11: 4 | E11: Me04N | I11: > 132kV* | J11: 263.11 | K11: 302.58 | L11: 79.7 | M11: 91.66 | N11: 43.29 | O11: 49.78 | P11: 85.85 | Q11: 98.73 | R11: 59.07 | S11: 67.93 | T11: 37.48 | U11: 43.1 | V11: 9.42 | W11: 10.83
A12: Megaflex | B12: Me | C12: 1 | D12: 1 | E12: Me11N | H12: > 300km and ≤ 600km | I12: < 500V | J12: 295.28 | K12: 339.57 | L12: 89.47 | M12: 102.89 | N12: 48.57 | O12: 55.86 | P12: 96.33 | Q12: 110.78 | R12: 66.32 | S12: 76.27 | T12: 42.07 | U12: 48.38 | V12: 8.44 | W12: 9.71
A13: Megaflex | B13: Me | C13: 1 | D13: 2 | E13: Me12N | I13: ≥ 500V & < 66kV | J13: 291.17 | K13: 334.85 | L13: 88.2 | M13: 101.43 | N13: 47.9 | O13: 55.09 | P13: 94.99 | Q13: 109.24 | R13: 65.37 | S13: 75.18 | T13: 41.47 | U13: 47.69 | V13: 7.73 | W13: 8.89
A14: Megaflex | B14: Me | C14: 1 | D14: 3 | E14: Me13N | I14: ≥ 66kV & ≤ 132kV | J14: 281.91 | K14: 324.2 | L14: 85.39 | M14: 98.2 | N14: 46.36 | O14: 53.31 | P14: 91.96 | Q14: 105.75 | R14: 63.29 | S14: 72.78 | T14: 40.15 | U14: 46.17 | V14: 7.51 | W14: 8.64
A15: Megaflex | B15: Me | C15: 1 | D15: 4 | E15: Me14N | I15: > 132kV* | J15: 265.74 | K15: 305.6 | L15: 80.51 | M15: 92.59 | N15: 43.69 | O15: 50.24 | P15: 86.67 | Q15: 99.67 | R15: 59.65 | S15: 68.6 | T15: 37.83 | U15: 43.5 | V15: 9.51 | W15: 10.94
A16: Megaflex | B16: Me | C16: 2 | D16: 1 | E16: Me21N | H16: > 600km and ≤ 900km | I16: < 500V | J16: 298.22 | K16: 342.95 | L16: 90.34 | M16: 103.89 | N16: 49.04 | O16: 56.4 | P16: 97.29 | Q16: 111.88 | R16: 66.96 | S16: 77 | T16: 42.46 | U16: 48.83 | V16: 8.54 | W16: 9.82
A17: Megaflex | B17: Me | C17: 2 | D17: 2 | E17: Me22N | I17: ≥ 500V & < 66kV | J17: 294.1 | K17: 338.22 | L17: 89.1 | M17: 102.47 | N17: 48.38 | O17: 55.64 | P17: 95.93 | Q17: 110.32 | R17: 66.03 | S17: 75.93 | T17: 41.89 | U17: 48.17 | V17: 7.8 | W17: 8.97
A18: Megaflex | B18: Me | C18: 2 | D18: 3 | E18: Me23N | I18: ≥ 66kV & ≤ 132kV | J18: 284.78 | K18: 327.5 | L18: 86.27 | M18: 99.21 | N18: 46.84 | O18: 53.87 | P18: 92.89 | Q18: 106.82 | R18: 63.94 | S18: 73.53 | T18: 40.56 | U18: 46.64 | V18: 7.56 | W18: 8.69
A19: Megaflex | B19: Me | C19: 2 | D19: 4 | E19: Me24N | I19: > 132kV* | J19: 268.42 | K19: 308.68 | L19: 81.3 | M19: 93.5 | N19: 44.17 | O19: 50.8 | P19: 87.56 | Q19: 100.69 | R19: 60.25 | S19: 69.29 | T19: 38.24 | U19: 43.98 | V19: 9.65 | W19: 11.1
A20: Megaflex | B20: Me | C20: 3 | D20: 1 | E20: Me31N | H20: > 900km | I20: < 500V | J20: 301.22 | K20: 346.4 | L20: 91.28 | M20: 104.97 | N20: 49.55 | O20: 56.98 | P20: 98.27 | Q20: 113.01 | R20: 67.62 | S20: 77.76 | T20: 42.92 | U20: 49.36 | V20: 8.59 | W20: 9.88
A21: Megaflex | B21: Me | C21: 3 | D21: 2 | E21: Me32N | I21: ≥ 500V & < 66kV | J21: 297.02 | K21: 341.57 | L21: 89.97 | M21: 103.47 | N21: 48.84 | O21: 56.17 | P21: 96.87 | Q21: 111.4 | R21: 66.66 | S21: 76.66 | T21: 42.3 | U21: 48.65 | V21: 7.89 | W21: 9.07
A22: Megaflex | B22: Me | C22: 3 | D22: 3 | E22: Me33N | I22: ≥ 66kV & ≤ 132kV | J22: 287.64 | K22: 330.79 | L22: 87.13 | M22: 100.2 | N22: 47.31 | O22: 54.41 | P22: 93.82 | Q22: 107.89 | R22: 64.58 | S22: 74.27 | T22: 40.97 | U22: 47.12 | V22: 7.63 | W22: 8.77
A23: Megaflex | B23: Me | C23: 3 | D23: 4 | E23: Me34N | I23: > 132kV* | J23: 271.03 | K23: 311.68 | L23: 82.14 | M23: 94.46 | N23: 44.63 | O23: 51.32 | P23: 88.47 | Q23: 101.74 | R23: 60.91 | S23: 70.05 | T23: 38.66 | U23: 44.46 | V23: 9.72 | W23: 11.18
I24: * 132 kV or Transmission connected
H26: Distribution network charges
J27: Network capacity charge [R/kVA/m] | L27: Network demand charge [R/kVA/m] | N27: Urban low voltage subsidy charge [R/kVA/m]
H28: Voltage | Q28: Voltage | S28: Ancillary service charge [c/kWh]
A29: Tariff | B29: Tariff nameBillcode | C29: Tx zone | D29: Voltage | E29: Billcode | K29: VAT incl | M29: VAT incl | O29: VAT incl | T29: VAT incl
A30: Megaflex | B30: Me | C30: 0 | D30: 1 | E30: =B30&C30&D30&IF($A$2="Non-municipal","N",IF($A$2="Municiple","Y","error")) -> Me01N | H30: < 500V | J30: 16.65 | K30: =ROUND(J30 * (1 + VAT), 2) -> 19.15 | L30: 31.57 | M30: =ROUND(L30 * (1 + VAT), 2) -> 36.31 | N30: 0 | O30: =ROUND(N30 * (1 + VAT), 2) -> 0 | Q30: < 500V | S30: 0.39 | T30: =ROUND(S30 * (1 + VAT), 2) -> 0.45
A31: Megaflex | B31: Me | C31: 0 | D31: 2 | E31: =B31&C31&D31&IF($A$2="Non-municipal","N",IF($A$2="Municiple","Y","error")) -> Me02N | H31: ≥ 500V & < 66kV | J31: 15.27 | K31: =ROUND(J31 * (1 + VAT), 2) -> 17.56 | L31: 28.96 | M31: =ROUND(L31 * (1 + VAT), 2) -> 33.3 | N31: 0 | O31: =ROUND(N31 * (1 + VAT), 2) -> 0 | Q31: ≥ 500V & < 66kV | S31: 0.38 | T31: =ROUND(S31 * (1 + VAT), 2) -> 0.44
A32: Megaflex | B32: Me | C32: 0 | D32: 3 | E32: Me03N | H32: ≥ 66kV & ≤ 132kV | J32: 5.45 | K32: =ROUND(J32 * (1 + VAT), 2) -> 6.27 | L32: 10.1 | M32: =ROUND(L32 * (1 + VAT), 2) -> 11.62 | N32: 13.45 | O32: =ROUND(N32 * (1 + VAT), 2) -> 15.47 | Q32: ≥ 66kV & ≤ 132kV | S32: 0.36 | T32: =ROUND(S32 * (1 + VAT), 2) -> 0.41
A33: Megaflex | B33: Me | C33: 0 | D33: 4 | E33: Me04N | H33: > 132kV / Transmission connected | J33: 0 | K33: =ROUND(J33 * (1 + VAT), 2) -> 0 | L33: 0 | M33: =ROUND(L33 * (1 + VAT), 2) -> 0 | N33: 13.45 | O33: =ROUND(N33 * (1 + VAT), 2) -> 15.47 | Q33: > 132kV / Transmission connected | S33: 0.34 | T33: =ROUND(S33 * (1 + VAT), 2) -> 0.39
H36: Customer categories | J36: Service charge [R/account/day] | L36: Administration charge [R/POD/day] | Q36: Reactive energy charge [c/kVArh]
Q37: High season | S37: Low season
A38: Tariff | B38: Tariff nameBillcode | C38: Tx zone | D38: Voltage | E38: Billcode | K38: VAT incl | M38: VAT incl | R38: VAT incl | T38: VAT incl
A39: Megaflex | B39: Me | C39: 0 | D39: 1 | E39: =B39&C39&D39&IF($A$2="Non-municipal","N",IF($A$2="Municiple","Y","error")) -> Me01N | H39: > 1 MVA | J39: 191.16 | K39: =ROUND(J39 * (1 + VAT), 2) -> 219.83 | L39: 86.15 | M39: =ROUND(L39 * (1 + VAT), 2) -> 99.07 | Q39: 13.47 | R39: =ROUND(Q39 * (1 + VAT), 2) -> 15.49 | S39: 0 | T39: =ROUND(S39 * (1 + VAT), 2) -> 0
A40: Megaflex | B40: Me | C40: 0 | D40: 1 | E40: =B40&C40&D40&IF($A$2="Non-municipal","N",IF($A$2="Municiple","Y","error")) -> Me01N | H40: Key customers | J40: 3745.97 | K40: =ROUND(J40 * (1 + VAT), 2) -> 4307.87 | L40: 119.64 | M40: =ROUND(L40 * (1 + VAT), 2) -> 137.59
H42: Electrification and rural network subsidy charge [c/kWh] | J42: Affordability subsidy charge [c/kWh] Only payable by non-local authority tariffs
A45: Tariff | B45: Tariff nameBillcode | C45: Tx zone | D45: Voltage | E45: Billcode | I45: VAT incl | K45: VAT incl
A46: Megaflex | B46: Me | C46: 0 | D46: 1 | E46: =B46&C46&D46&IF($A$2="Non-municipal","N",IF($A$2="Municiple","Y","error")) -> Me01N | H46: 7.45 | I46: =ROUND(H46 * (1 + VAT), 2) -> 8.57 | J46: 3.31 | K46: =ROUND(J46 * (1 + VAT), 2) -> 3.81

Sheet Megaflex Munic inc
G1: Back to menu
A2: Municiple | G2: Megaflex tariff | R2: Local authority | AF2: =SUM(J8:T23,V8:V23,#REF!,#REF!,#REF!,#REF!,H26:J26,L26) ->  | AG2: check value
J4: Active energy charge [c/kWh] | V4: Transmission network charges [R/kVA/m]
H5: Transmission zone | J5: High demand season [Jun - Aug] | P5: Low demand season [Sep - May]
I6: Voltage | J6: Peak | L6: Standard | N6: Off Peak | P6: Peak | R6: Standard | T6: Off Peak
A7: Tariff | B7: Tariff nameBillcode | C7: Tx zone | D7: Voltage | E7: Billcode | K7: VAT incl | M7: VAT incl | O7: VAT incl | Q7: VAT incl | S7: VAT incl | U7: VAT incl | W7: VAT incl
A8: Megaflex | B8: Me | C8: 0 | D8: 1 | E8: =B8&C8&D8&IF($A$2="Non-municipal","N",IF($A$2="Municiple","Y","error")) -> Me01Y | H8: ≤ 300km | I8: < 500V | J8: 300.18 | K8: =ROUND(J8 * (1 + VAT), 2) -> 345.21 | L8: 91.34 | M8: =ROUND(L8 * (1 + VAT), 2) -> 105.04 | N8: 49.84 | O8: =ROUND(N8 * (1 + VAT), 2) -> 57.32 | P8: 98.28 | Q8: =ROUND(P8 * (1 + VAT), 2) -> 113.02 | R8: 67.83 | S8: =ROUND(R8 * (1 + VAT), 2) -> 78 | T8: 43.23 | U8: =ROUND(T8 * (1 + VAT), 2) -> 49.71 | V8: 8.36 | W8: =ROUND(V8 * (1 + VAT), 2) -> 9.61
A9: Megaflex | B9: Me | C9: 0 | D9: 2 | E9: =B9&C9&D9&IF($A$2="Non-municipal","N",IF($A$2="Municiple","Y","error")) -> Me02Y | I9: ≥ 500V & < 66kV | J9: 295.45 | K9: 339.77 | L9: 89.52 | M9: 102.95 | N9: 48.61 | O9: 55.9 | P9: 96.38 | Q9: 110.84 | R9: 66.33 | S9: 76.28 | T9: 42.09 | U9: 48.4 | V9: 7.63 | W9: 8.77
A10: Megaflex | B10: Me | C10: 0 | D10: 3 | E10: Me03Y | I10: ≥ 66kV & ≤ 132kV | J10: 286.13 | K10: 329.05 | L10: 86.67 | M10: 99.67 | N10: 47.07 | O10: 54.13 | P10: 93.34 | Q10: 107.34 | R10: 64.25 | S10: 73.89 | T10: 40.75 | U10: 46.86 | V10: 7.43 | W10: 8.54
A11: Megaflex | B11: Me | C11: 0 | D11: 4 | E11: Me04Y | I11: > 132kV* | J11: 269.66 | K11: 310.11 | L11: 81.69 | M11: 93.94 | N11: 44.36 | O11: 51.01 | P11: 87.96 | Q11: 101.15 | R11: 60.54 | S11: 69.62 | T11: 38.41 | U11: 44.17 | V11: 9.4 | W11: 10.81
A12: Megaflex | B12: Me | C12: 1 | D12: 1 | E12: Me11Y | H12: > 300km and ≤ 600km | I12: < 500V | J12: 302.63 | K12: 348.02 | L12: 91.68 | M12: 105.43 | N12: 49.78 | O12: 57.25 | P12: 98.72 | Q12: 113.53 | R12: 67.97 | S12: 78.17 | T12: 43.11 | U12: 49.58 | V12: 8.4 | W12: 9.66
A13: Megaflex | B13: Me | C13: 1 | D13: 2 | E13: Me12Y | I13: ≥ 500V & < 66kV | J13: 298.4 | K13: 343.16 | L13: 90.4 | M13: 103.96 | N13: 49.09 | O13: 56.45 | P13: 97.35 | Q13: 111.95 | R13: 67 | S13: 77.05 | T13: 42.5 | U13: 48.88 | V13: 7.71 | W13: 8.87
A14: Megaflex | B14: Me | C14: 1 | D14: 3 | E14: Me13Y | I14: ≥ 66kV & ≤ 132kV | J14: 288.93 | K14: 332.27 | L14: 87.52 | M14: 100.65 | N14: 47.52 | O14: 54.65 | P14: 94.25 | Q14: 108.39 | R14: 64.86 | S14: 74.59 | T14: 41.14 | U14: 47.31 | V14: 7.48 | W14: 8.6
A15: Megaflex | B15: Me | C15: 1 | D15: 4 | E15: Me14Y | I15: > 132kV* | J15: 272.35 | K15: 313.2 | L15: 82.52 | M15: 94.9 | N15: 44.8 | O15: 51.52 | P15: 88.83 | Q15: 102.15 | R15: 61.15 | S15: 70.32 | T15: 38.79 | U15: 44.61 | V15: 9.49 | W15: 10.91
A16: Megaflex | B16: Me | C16: 2 | D16: 1 | E16: Me21Y | H16: > 600km and ≤ 900km | I16: < 500V | J16: 305.65 | K16: 351.5 | L16: 92.6 | M16: 106.49 | N16: 50.27 | O16: 57.81 | P16: 99.7 | Q16: 114.66 | R16: 68.63 | S16: 78.92 | T16: 43.54 | U16: 50.07 | V16: 8.51 | W16: 9.79
A17: Megaflex | B17: Me | C17: 2 | D17: 2 | E17: Me22Y | I17: ≥ 500V & < 66kV | J17: 301.41 | K17: 346.62 | L17: 91.3 | M17: 105 | N17: 49.58 | O17: 57.02 | P17: 98.34 | Q17: 113.09 | R17: 67.64 | S17: 77.79 | T17: 42.93 | U17: 49.37 | V17: 7.77 | W17: 8.94
A18: Megaflex | B18: Me | C18: 2 | D18: 3 | E18: Me23Y | I18: ≥ 66kV & ≤ 132kV | J18: 291.87 | K18: 335.65 | L18: 88.4 | M18: 101.66 | N18: 48 | O18: 55.2 | P18: 95.18 | Q18: 109.46 | R18: 65.51 | S18: 75.34 | T18: 41.55 | U18: 47.78 | V18: 7.54 | W18: 8.67
A19: Megaflex | B19: Me | C19: 2 | D19: 4 | E19: Me24Y | I19: > 132kV* | J19: 275.08 | K19: 316.34 | L19: 83.34 | M19: 95.84 | N19: 45.25 | O19: 52.04 | P19: 89.74 | Q19: 103.2 | R19: 61.76 | S19: 71.02 | T19: 39.18 | U19: 45.06 | V19: 9.62 | W19: 11.06
A20: Megaflex | B20: Me | C20: 3 | D20: 1 | E20: Me31Y | H20: > 900km | I20: < 500V | J20: 308.72 | K20: 355.03 | L20: 93.53 | M20: 107.56 | N20: 50.79 | O20: 58.41 | P20: 100.71 | Q20: 115.82 | R20: 69.31 | S20: 79.71 | T20: 43.98 | U20: 50.58 | V20: 8.55 | W20: 9.83
A21: Megaflex | B21: Me | C21: 3 | D21: 2 | E21: Me32Y | I21: ≥ 500V & < 66kV | J21: 304.42 | K21: 350.08 | L21: 92.21 | M21: 106.04 | N21: 50.08 | O21: 57.59 | P21: 99.29 | Q21: 114.18 | R21: 68.34 | S21: 78.59 | T21: 43.34 | U21: 49.84 | V21: 7.85 | W21: 9.03
A22: Megaflex | B22: Me | C22: 3 | D22: 3 | E22: Me33Y | I22: ≥ 66kV & ≤ 132kV | J22: 294.81 | K22: 339.03 | L22: 89.31 | M22: 102.71 | N22: 48.5 | O22: 55.78 | P22: 96.16 | Q22: 110.58 | R22: 66.17 | S22: 76.1 | T22: 41.98 | U22: 48.28 | V22: 7.6 | W22: 8.74
A23: Megaflex | B23: Me | C23: 3 | D23: 4 | E23: Me34Y | I23: > 132kV* | J23: 277.79 | K23: 319.46 | L23: 84.19 | M23: 96.82 | N23: 45.75 | O23: 52.61 | P23: 90.66 | Q23: 104.26 | R23: 62.41 | S23: 71.77 | T23: 39.61 | U23: 45.55 | V23: 9.69 | W23: 11.14
I24: * 132 kV or Transmission connected
H26: Distribution network charges
J27: Network capacity charge [R/kVA/m] | L27: Network demand charge [R/kVA/m] | N27: Urban low voltage subsidy charge [R/kVA/m]
H28: Voltage | Q28: Voltage | S28: Ancillary service charge [c/kWh]
A29: Tariff | B29: Tariff nameBillcode | C29: Tx zone | D29: Voltage | E29: Billcode | K29: VAT incl | M29: VAT incl | O29: VAT incl | T29: VAT incl
A30: Megaflex | B30: Me | C30: 0 | D30: 1 | E30: =B30&C30&D30&IF($A$2="Non-municipal","N",IF($A$2="Municiple","Y","error")) -> Me01Y | H30: < 500V | J30: 16.68 | K30: =ROUND(J30 * (1 + VAT), 2) -> 19.18 | L30: 31.61 | M30: =ROUND(L30 * (1 + VAT), 2) -> 36.35 | N30: 0 | O30: =ROUND(N30 * (1 + VAT), 2) -> 0 | Q30: < 500V | S30: 0.39 | T30: =ROUND(S30 * (1 + VAT), 2) -> 0.45
A31: Megaflex | B31: Me | C31: 0 | D31: 2 | E31: =B31&C31&D31&IF($A$2="Non-municipal","N",IF($A$2="Municiple","Y","error")) -> Me02Y | H31: ≥ 500V & < 66kV | J31: 15.29 | K31: =ROUND(J31 * (1 + VAT), 2) -> 17.58 | L31: 28.99 | M31: =ROUND(L31 * (1 + VAT), 2) -> 33.34 | N31: 0 | O31: =ROUND(N31 * (1 + VAT), 2) -> 0 | Q31: ≥ 500V & < 66kV | S31: 0.38 | T31: =ROUND(S31 * (1 + VAT), 2) -> 0.44
A32: Megaflex | B32: Me | C32: 0 | D32: 3 | E32: Me03Y | H32: ≥ 66kV & ≤ 132kV | J32: 5.47 | K32: =ROUND(J32 * (1 + VAT), 2) -> 6.29 | L32: 10.11 | M32: =ROUND(L32 * (1 + VAT), 2) -> 11.63 | N32: 13.39 | O32: =ROUND(N32 * (1 + VAT), 2) -> 15.4 | Q32: ≥ 66kV & ≤ 132kV | S32: 0.35 | T32: =ROUND(S32 * (1 + VAT), 2) -> 0.4
A33: Megaflex | B33: Me | C33: 0 | D33: 4 | E33: Me04Y | H33: > 132kV / Transmission connected | J33: 0 | K33: =ROUND(J33 * (1 + VAT), 2) -> 0 | L33: 0 | M33: =ROUND(L33 * (1 + VAT), 2) -> 0 | N33: 13.39 | O33: =ROUND(N33 * (1 + VAT), 2) -> 15.4 | Q33: > 132kV / Transmission connected | S33: 0.33 | T33: =ROUND(S33 * (1 + VAT), 2) -> 0.38
H36: Customer categories | J36: Service charge [R/account/day] | L36: Administration charge [R/POD/day] | Q36: Reactive energy charge [c/kVArh]
Q37: High season | S37: Low season
A38: Tariff | B38: Tariff nameBillcode | C38: Tx zone | D38: Voltage | E38: Billcode | K38: VAT incl | M38: VAT incl | R38: VAT incl | T38: VAT incl
A39: Megaflex | B39: Me | C39: 0 | D39: 1 | E39: =B39&C39&D39&IF($A$2="Non-municipal","N",IF($A$2="Municiple","Y","error")) -> Me01Y | H39: > 1 MVA | J39: 190.47 | K39: =ROUND(J39 * (1 + VAT), 2) -> 219.04 | L39: 85.86 | M39: =ROUND(L39 * (1 + VAT), 2) -> 98.74 | Q39: 13.4 | R39: =ROUND(Q39 * (1 + VAT), 2) -> 15.41 | S39: 0 | T39: =ROUND(S39 * (1 + VAT), 2) -> 0
A40: Megaflex | B40: Me | C40: 0 | D40: 1 | E40: =B40&C40&D40&IF($A$2="Non-municipal","N",IF($A$2="Municiple","Y","error")) -> Me01Y | H40: Key customers | J40: 3732.51 | K40: =ROUND(J40 * (1 + VAT), 2) -> 4292.39 | L40: 119.2 | M40: =ROUND(L40 * (1 + VAT), 2) -> 137.08
H42: Electrification and rural network subsidy charge [c/kWh]
A45: Tariff | B45: Tariff nameBillcode | C45: Tx zone | D45: Voltage | E45: Billcode | I45: VAT incl
A46: Megaflex | B46: Me | C46: 0 | D46: 1 | E46: =B46&C46&D46&IF($A$2="Non-municipal","N",IF($A$2="Municiple","Y","error")) -> Me01Y | H46: 7.42 | I46: =ROUND(H46 * (1 + VAT), 2) -> 8.53

Sheet Megaflex Gen inc
G1: Back to menu
A2: Non-municipal | G2: Megaflex Gen tariff | R2: =Menu!$H$7 -> Non-local authority
J4: Active energy charge for loads [c/kWh] | V4: Transmission network charges [R/kVA/m]
H5: Transmission zone | J5: High demand season [Jun - Aug] | P5: Low demand season [Sep - May]
I6: Voltage | J6: Peak | L6: Standard | N6: Off Peak | P6: Peak | R6: Standard | T6: Off Peak
A7: Tariff | B7: Tariff nameBillcode | C7: Tx zone | D7: Voltage | E7: Billcode | K7: VAT incl | M7: VAT incl | O7: VAT incl | Q7: VAT incl | S7: VAT incl | U7: VAT incl | W7: VAT incl
A8: Genflex urban loads | B8: GU | C8: 0 | D8: 1 | E8: =B8&C8&D8&IF($A$2="Non-municipal","N",IF($A$2="Municiple","Y","error")) -> GU01N | H8: ≤ 300km | I8: < 500V | J8: 292.89 | K8: =ROUND(J8 * (1 + VAT), 2) -> 336.82 | L8: 89.11 | M8: =ROUND(L8 * (1 + VAT), 2) -> 102.48 | N8: 48.66 | O8: =ROUND(N8 * (1 + VAT), 2) -> 55.96 | P8: 95.91 | Q8: =ROUND(P8 * (1 + VAT), 2) -> 110.3 | R8: 66.18 | S8: =ROUND(R8 * (1 + VAT), 2) -> 76.11 | T8: 42.19 | U8: =ROUND(T8 * (1 + VAT), 2) -> 48.52 | V8: 8.38 | W8: =ROUND(V8 * (1 + VAT), 2) -> 9.64
A9: Genflex urban loads | B9: GU | C9: 0 | D9: 2 | E9: =B9&C9&D9&IF($A$2="Non-municipal","N",IF($A$2="Municiple","Y","error")) -> GU02N | I9: ≥ 500V & < 66kV | J9: 288.29 | K9: 331.53 | L9: 87.34 | M9: 100.44 | N9: 47.43 | O9: 54.54 | P9: 94.03 | Q9: 108.13 | R9: 64.73 | S9: 74.44 | T9: 41.06 | U9: 47.22 | V9: 7.66 | W9: 8.81
A10: Genflex urban loads | B10: GU | C10: 0 | D10: 3 | E10: GU03N | I10: ≥ 66kV & ≤ 132kV | J10: 279.16 | K10: 321.03 | L10: 84.56 | M10: 97.24 | N10: 45.93 | O10: 52.82 | P10: 91.08 | Q10: 104.74 | R10: 62.67 | S10: 72.07 | T10: 39.77 | U10: 45.74 | V10: 7.46 | W10: 8.58
A11: Genflex urban loads | B11: GU | C11: 0 | D11: 4 | E11: GU04N | I11: > 132kV* | J11: 263.11 | K11: 302.58 | L11: 79.7 | M11: 91.66 | N11: 43.29 | O11: 49.78 | P11: 85.85 | Q11: 98.73 | R11: 59.07 | S11: 67.93 | T11: 37.48 | U11: 43.1 | V11: 9.42 | W11: 10.83
A12: Genflex urban loads | B12: GU | C12: 1 | D12: 1 | E12: GU11N | H12: > 300km and ≤ 600km | I12: < 500V | J12: 295.28 | K12: 339.57 | L12: 89.47 | M12: 102.89 | N12: 48.57 | O12: 55.86 | P12: 96.33 | Q12: 110.78 | R12: 66.32 | S12: 76.27 | T12: 42.07 | U12: 48.38 | V12: 8.44 | W12: 9.71
A13: Genflex urban loads | B13: GU | C13: 1 | D13: 2 | E13: GU12N | I13: ≥ 500V & < 66kV | J13: 291.17 | K13: 334.85 | L13: 88.2 | M13: 101.43 | N13: 47.9 | O13: 55.09 | P13: 94.99 | Q13: 109.24 | R13: 65.37 | S13: 75.18 | T13: 41.47 | U13: 47.69 | V13: 7.73 | W13: 8.89
A14: Genflex urban loads | B14: GU | C14: 1 | D14: 3 | E14: GU13N | I14: ≥ 66kV & ≤ 132kV | J14: 281.91 | K14: 324.2 | L14: 85.39 | M14: 98.2 | N14: 46.36 | O14: 53.31 | P14: 91.96 | Q14: 105.75 | R14: 63.29 | S14: 72.78 | T14: 40.15 | U14: 46.17 | V14: 7.51 | W14: 8.64
A15: Genflex urban loads | B15: GU | C15: 1 | D15: 4 | E15: GU14N | I15: > 132kV* | J15: 265.74 | K15: 305.6 | L15: 80.51 | M15: 92.59 | N15: 43.69 | O15: 50.24 | P15: 86.67 | Q15: 99.67 | R15: 59.65 | S15: 68.6 | T15: 37.83 | U15: 43.5 | V15: 9.51 | W15: 10.94
A16: Genflex urban loads | B16: GU | C16: 2 | D16: 1 | E16: GU21N | H16: > 600km and ≤ 900km | I16: < 500V | J16: 298.22 | K16: 342.95 | L16: 90.34 | M16: 103.89 | N16: 49.04 | O16: 56.4 | P16: 97.29 | Q16: 111.88 | R16: 66.96 | S16: 77 | T16: 42.46 | U16: 48.83 | V16: 8.54 | W16: 9.82
A17: Genflex urban loads | B17: GU | C17: 2 | D17: 2 | E17: GU22N | I17: ≥ 500V & < 66kV | J17: 294.1 | K17: 338.22 | L17: 89.1 | M17: 102.47 | N17: 48.38 | O17: 55.64 | P17: 95.93 | Q17: 110.32 | R17: 66.03 | S17: 75.93 | T17: 41.89 | U17: 48.17 | V17: 7.8 | W17: 8.97
A18: Genflex urban loads | B18: GU | C18: 2 | D18: 3 | E18: GU23N | I18: ≥ 66kV & ≤ 132kV | J18: 284.78 | K18: 327.5 | L18: 86.27 | M18: 99.21 | N18: 46.84 | O18: 53.87 | P18: 92.89 | Q18: 106.82 | R18: 63.94 | S18: 73.53 | T18: 40.56 | U18: 46.64 | V18: 7.56 | W18: 8.69
A19: Genflex urban loads | B19: GU | C19: 2 | D19: 4 | E19: GU24N | I19: > 132kV* | J19: 268.42 | K19: 308.68 | L19: 81.3 | M19: 93.5 | N19: 44.17 | O19: 50.8 | P19: 87.56 | Q19: 100.69 | R19: 60.25 | S19: 69.29 | T19: 38.24 | U19: 43.98 | V19: 9.65 | W19: 11.1
A20: Genflex urban loads | B20: GU | C20: 3 | D20: 1 | E20: GU31N | H20: > 900km | I20: < 500V | J20: 301.22 | K20: 346.4 | L20: 91.28 | M20: 104.97 | N20: 49.55 | O20: 56.98 | P20: 98.27 | Q20: 113.01 | R20: 67.62 | S20: 77.76 | T20: 42.92 | U20: 49.36 | V20: 8.59 | W20: 9.88
A21: Genflex urban loads | B21: GU | C21: 3 | D21: 2 | E21: GU32N | I21: ≥ 500V & < 66kV | J21: 297.02 | K21: 341.57 | L21: 89.97 | M21: 103.47 | N21: 48.84 | O21: 56.17 | P21: 96.87 | Q21: 111.4 | R21: 66.66 | S21: 76.66 | T21: 42.3 | U21: 48.65 | V21: 7.89 | W21: 9.07
A22: Genflex urban loads | B22: GU | C22: 3 | D22: 3 | E22: GU33N | I22: ≥ 66kV & ≤ 132kV | J22: 287.64 | K22: 330.79 | L22: 87.13 | M22: 100.2 | N22: 47.31 | O22: 54.41 | P22: 93.82 | Q22: 107.89 | R22: 64.58 | S22: 74.27 | T22: 40.97 | U22: 47.12 | V22: 7.63 | W22: 8.77
A23: Genflex urban loads | B23: GU | C23: 3 | D23: 4 | E23: GU34N | I23: > 132kV* | J23: 271.03 | K23: 311.68 | L23: 82.14 | M23: 94.46 | N23: 44.63 | O23: 51.32 | P23: 88.47 | Q23: 101.74 | R23: 60.91 | S23: 70.05 | T23: 38.66 | U23: 44.46 | V23: 9.72 | W23: 11.18
A24: Gen-purchase | B24: NLPurchADJ | C24: 0 | D24: 4 | E24: NLPurchADJ04N | H24: WEPS energy rate excluding losses | J24: 260.3245276 | K24: 299.37 | L24: 78.85623825 | M24: =ROUND(L24 * (1 + VAT), 2) -> 90.68 | N24: 42.8317008 | O24: =ROUND(N24 * (1 + VAT), 2) -> 49.26 | P24: 84.94112991 | Q24: =ROUND(P24 * (1 + VAT), 2) -> 97.68 | R24: 58.44464233 | S24: =ROUND(R24 * (1 + VAT), 2) -> 67.21 | T24: 37.08320966 | U24: =ROUND(T24 * (1 + VAT), 2) -> 42.65
A25: TUoS network charges for Transmission connected generators | B25: GenTUOS | C25: Cape | D25: 4 | E25: GenTUOSCape4N | I25: * 132 kV or Transmission connected
A26: TUoS network charges for Transmission connected generators | B26: GenTUOS | C26: Karoo | D26: 4 | E26: GenTUOSKaroo4N
A27: TUoS network charges for Transmission connected generators | B27: GenTUOS | C27: Kwazulu-Natal | D27: 4 | E27: GenTUOSKwazulu-Natal4N | H27: Distribution network charges for loads | Q27: Transmission network charges for generators | U27: Distribution network charges for generators*
A28: TUoS network charges for Transmission connected generators | B28: GenTUOS | C28: Vaal | D28: 4 | E28: GenTUOSVaal4N | J28: Network capacity charge [R/kVA/m] | L28: Network demand charge [R/kVA/m] | N28: Urban low voltage subsidy charge [R/kVA/m]
A29: TUoS network charges for Transmission connected generators | B29: GenTUOS | C29: Waterburg | D29: 4 | E29: GenTUOSWaterburg4N | H29: Voltage | Q29: TUoS [ > 132kV] | S29: Network charge [R/kW] | U29: Voltage | W29: Network capacity charge [R/kW/m]
A30: TUoS network charges for Transmission connected generators | B30: GenTUOS | C30: Mpumalanga | D30: 4 | E30: GenTUOSMpumalanga4N | H30: Voltage | K30: VAT incl | M30: VAT incl | O30: VAT incl | T30: VAT incl
A31: Genflex urban loads | B31: GU | C31: 0 | D31: 1 | E31: =B31&C31&D31&IF($A$2="Non-municipal","N",IF($A$2="Municiple","Y","error")) -> GU01N | H31: < 500V | J31: 16.65 | K31: =ROUND(J31 * (1 + VAT), 2) -> 19.15 | L31: 31.57 | M31: =ROUND(L31 * (1 + VAT), 2) -> 36.31 | N31: 0 | O31: =ROUND(N31 * (1 + VAT), 2) -> 0 | Q31: Cape | S31: 0 | T31: =ROUND(S31 * (1 + VAT), 2) -> 0 | X31: VAT incl
A32: Genflex urban loads | B32: GU | C32: 0 | D32: 2 | E32: =B32&C32&D32&IF($A$2="Non-municipal","N",IF($A$2="Municiple","Y","error")) -> GU02N | H32: ≥ 500V & < 66kV | J32: 15.27 | K32: =ROUND(J32 * (1 + VAT), 2) -> 17.56 | L32: 28.96 | M32: =ROUND(L32 * (1 + VAT), 2) -> 33.3 | N32: 0 | O32: =ROUND(N32 * (1 + VAT), 2) -> 0 | Q32: Karoo | S32: 0 | T32: 0 | U32: < 500V
A33: Genflex urban loads | B33: GU | C33: 0 | D33: 3 | E33: GU03N | H33: ≥ 66kV & ≤ 132kV | J33: 5.45 | K33: =ROUND(J33 * (1 + VAT), 2) -> 6.27 | L33: 10.1 | M33: =ROUND(L33 * (1 + VAT), 2) -> 11.62 | N33: 13.45 | O33: =ROUND(N33 * (1 + VAT), 2) -> 15.47 | Q33: Kwazulu-Natal | S33: 1.98 | T33: 2.28 | U33: ≥ 500V & < 66kV
A34: Genflex urban loads | B34: GU | C34: 0 | D34: 4 | E34: GU04N | H34: > 132kV / Transmission connected | J34: 0 | K34: =ROUND(J34 * (1 + VAT), 2) -> 0 | L34: 0 | M34: =ROUND(L34 * (1 + VAT), 2) -> 0 | N34: 13.45 | O34: =ROUND(N34 * (1 + VAT), 2) -> 15.47 | Q34: Vaal | S34: 6.59 | T34: 7.58 | U34: ≥ 66kV & ≤ 132kV | W34: 13.47 | X34: =ROUND(W34 * (1 + VAT), 2) -> 15.49
A35: Gen-DUoS urban | B35: NEGenDUoSU | C35: 0 | D35: 3 | E35: NEGenDUoSU03N | Q35: Waterberg | S35: 8.44 | T35: 9.71 | U35: * The Distribution network charge will be rebated by the Losses charge, but not beyond extintion
Q36: Mpumalanga | S36: 7.83 | T36: 9
H37: Customer categories | J37: Service charge [R/account/day] | L37: Administration charge [R/POD/day]
H38: [kVA or MVA = loads] | Q38: Ancillary service charge for loads and generators
A39: Tariff | B39: Tariff nameBillcode | C39: Tx zone | D39: Voltage | E39: Billcode | H39: [kW or MW = generators] | K39: VAT incl | M39: VAT incl
A40: Genflex urban loads | B40: GU | C40: 0 | D40: 1 | E40: =B40&C40&D40&IF($A$2="Non-municipal","N",IF($A$2="Municiple","Y","error")) -> GU01N | H40: ≤ 100 KVA/ kW | J40: 13.6 | K40: =ROUND(J40 * (1 + VAT), 2) -> 15.64 | L40: 2.99 | M40: =ROUND(L40 * (1 + VAT), 2) -> 3.44 | Q40: Voltage | S40: Ancillary service charge [c/kWh]
A41: Genflex urban loads | B41: GU | C41: 0 | D41: 1 | E41: =B41&C41&D41&IF($A$2="Non-municipal","N",IF($A$2="Municiple","Y","error")) -> GU01N | H41: > 100 kVA/ kW & ≤ 500 kVA/ kW | J41: 62.12 | K41: =ROUND(J41 * (1 + VAT), 2) -> 71.44 | L41: 17.42 | M41: =ROUND(L41 * (1 + VAT), 2) -> 20.03 | T41: VAT incl
A42: Genflex urban loads | B42: GU | C42: 0 | D42: 1 | E42: GU01N | H42: > 500 kVA/ kW & ≤ 1 MVA/MW | J42: 191.16 | K42: =ROUND(J42 * (1 + VAT), 2) -> 219.83 | L42: 34.6 | M42: =ROUND(L42 * (1 + VAT), 2) -> 39.79 | Q42: < 500V | S42: 0.39 | T42: =ROUND(S42 * (1 + VAT), 2) -> 0.45
A43: Genflex urban loads | B43: GU | C43: 0 | D43: 1 | E43: GU01N | H43: > 1 MVA/MW | J43: 191.16 | K43: =ROUND(J43 * (1 + VAT), 2) -> 219.83 | L43: 86.15 | M43: =ROUND(L43 * (1 + VAT), 2) -> 99.07 | Q43: ≥ 500V & < 66kV | S43: 0.38 | T43: =ROUND(S43 * (1 + VAT), 2) -> 0.44
A44: Genflex urban loads | B44: GU | C44: 0 | D44: 1 | E44: =B44&C44&D44&IF($A$2="Non-municipal","N",IF($A$2="Municiple","Y","error")) -> GU01N | H44: Key customers or Transmission connected generators | J44: 3745.97 | K44: =ROUND(J44 * (1 + VAT), 2) -> 4307.87 | L44: 119.64 | M44: =ROUND(L44 * (1 + VAT), 2) -> 137.59 | Q44: ≥ 66kV & ≤ 132kV | S44: 0.36 | T44: =ROUND(S44 * (1 + VAT), 2) -> 0.41
Q45: > 132kV / Transmission connected | S45: 0.34 | T45: =ROUND(S45 * (1 + VAT), 2) -> 0.39 | Y45: ='Loss Factors'!R10 -> 0
H46: Applicable to loads
H47: Electrification and rural network subsidy charge [c/kWh] | J47: Affordability subsidy charge [c/kWh] Only payable by non-local authority tariffs | Q47: Reactive energy charge [c/kVArh] (loads)
Q48: High season | S48: Low season
R49: VAT incl | T49: VAT incl
A50: Tariff | B50: Tariff nameBillcode | C50: Tx zone | D50: Voltage | E50: Billcode | I50: VAT incl | K50: VAT incl | Q50: 13.47 | R50: =ROUND(Q50 * (1 + VAT), 2) -> 15.49 | S50: 0 | T50: =ROUND(S50 * (1 + VAT), 2) -> 0
A51: Genflex urban loads | B51: GU | C51: 0 | D51: 1 | E51: =B51&C51&D51&IF($A$2="Non-municipal","N",IF($A$2="Municiple","Y","error")) -> GU01N | H51: 7.45 | I51: =ROUND(H51 * (1 + VAT), 2) -> 8.57 | J51: 3.31 | K51: =ROUND(J51 * (1 + VAT), 2) -> 3.81
H54: Losses charge for generators
H55: Distribution connected generators | M55: Transmission connected generators
H56: Formula | M56: Formula
H57: Distribution = - ((Energy produced x WEPS rate excluding losses) x (Distribution loss factor x Transmission loss factor-1)) in each TOU period | M57: Transmission = (Energy produced x WEPS rate excluding losses) x (Transmission loss factor-1/Transmission loss factor) in each TOU period
H58: Transmission loss factors for Distribution connected | K58: Distribution loss factors | M58: Generator loss factor
H59: ='Loss Factors'!R5 -> Distance from Johannesburg | J59: ='Loss Factors'!S5 -> Zone | K59: ='Loss Factors'!N5 -> Voltage | M59: =TUoS!I38 -> Cape | O59: =TUoS!J38 -> 0.971
H60: ='Loss Factors'!R6 -> ≤ 300km | J60: ='Loss Factors'!T6 -> 1.0107 | K60: ='Loss Factors'!N6 -> < 500V | L60: ='Loss Factors'!O6 -> 1.1111 | M60: =TUoS!I39 -> Karoo | O60: =TUoS!J39 -> 0.995
H61: ='Loss Factors'!R7 -> > 300km & ≤ 600km | J61: ='Loss Factors'!T7 -> 1.0208 | K61: ='Loss Factors'!N7 -> ≥ 500V & < 66kV | L61: ='Loss Factors'!O7 -> 1.0957 | M61: =TUoS!I40 -> Kwazulu-Natal | O61: =TUoS!J40 -> 1.004
H62: ='Loss Factors'!R8 -> > 600km & ≤ 900km | J62: ='Loss Factors'!T8 -> 1.031 | K62: ='Loss Factors'!N8 -> ≥ 66kV & ≤ 132kV | L62: ='Loss Factors'!O8 -> 1.0611 | M62: =TUoS!I41 -> Vaal | O62: =TUoS!J41 -> 1.02
H63: ='Loss Factors'!R9 -> > 900km | J63: ='Loss Factors'!T9 -> 1.0413 | K63: ='Loss Factors'!N9 -> > 132kV/Transmission connected | L63: ='Loss Factors'!O9 -> 1 | M63: =TUoS!I42 -> Waterberg | O63: =TUoS!J42 -> 1.023
M64: =TUoS!I43 -> Mpumalanga | O64: =TUoS!J43 -> 1.021

Sheet Miniflex inc
G1: Back to menu
A2: Non-municipal | G2: Miniflex tariff | T2: Non-local authority
J4: Active energy charge [c/kWh] | V4: Network capacity charge [R/kVA/m]
H5: Transmission zone | J5: High demand season [Jun - Aug] | P5: Low demand season [Sep - May]
I6: Voltage | J6: Peak | L6: Standard | N6: Off Peak | P6: Peak | R6: Standard | T6: Off Peak
A7: Tariff | B7: Tariff nameBillcode | C7: Tx zone | D7: Voltage | E7: Billcode | K7: VAT incl | M7: VAT incl | O7: VAT incl | Q7: VAT incl | S7: VAT incl | U7: VAT incl | W7: VAT incl
A8: Miniflex | B8: Mi | C8: 0 | D8: 1 | E8: =B8&C8&D8&IF($A$2="Non-municipal","N",IF($A$2="Municiple","Y","error")) -> Mi01N | H8: ≤ 300km | I8: < 500V | J8: 292.89 | K8: =ROUND(J8 * (1 + VAT), 2) -> 336.82 | L8: 89.11 | M8: =ROUND(L8 * (1 + VAT), 2) -> 102.48 | N8: 48.66 | O8: =ROUND(N8 * (1 + VAT), 2) -> 55.96 | P8: 95.91 | Q8: =ROUND(P8 * (1 + VAT), 2) -> 110.3 | R8: 66.18 | S8: =ROUND(R8 * (1 + VAT), 2) -> 76.11 | T8: 42.19 | U8: =ROUND(T8 * (1 + VAT), 2) -> 48.52 | V8: 25 | W8: =ROUND(V8 * (1 + VAT), 2) -> 28.75
A9: Miniflex | B9: Mi | C9: 0 | D9: 2 | E9: =B9&C9&D9&IF($A$2="Non-municipal","N",IF($A$2="Municiple","Y","error")) -> Mi02N | I9: ≥ 500V & < 66kV | J9: 288.29 | K9: 331.53 | L9: 87.34 | M9: 100.44 | N9: 47.43 | O9: 54.54 | P9: 94.03 | Q9: 108.13 | R9: 64.73 | S9: 74.44 | T9: 41.06 | U9: 47.22 | V9: 22.91 | W9: 26.35
A10: Miniflex | B10: Mi | C10: 0 | D10: 3 | E10: Mi03N | I10: ≥ 66kV & ≤ 132kV | J10: 279.16 | K10: 321.03 | L10: 84.56 | M10: 97.24 | N10: 45.93 | O10: 52.82 | P10: 91.08 | Q10: 104.74 | R10: 62.67 | S10: 72.07 | T10: 39.77 | U10: 45.74 | V10: 12.87 | W10: 14.8
A11: Miniflex | B11: Mi | C11: 0 | D11: 4 | E11: Mi04N | I11: > 132kV* | J11: 263.11 | K11: 302.58 | L11: 79.7 | M11: 91.66 | N11: 43.29 | O11: 49.78 | P11: 85.85 | Q11: 98.73 | R11: 59.07 | S11: 67.93 | T11: 37.48 | U11: 43.1 | V11: 9.38 | W11: 10.79
A12: Miniflex | B12: Mi | C12: 1 | D12: 1 | E12: Mi11N | H12: > 300km and ≤ 600km | I12: < 500V | J12: 295.28 | K12: 339.57 | L12: 89.47 | M12: 102.89 | N12: 48.57 | O12: 55.86 | P12: 96.33 | Q12: 110.78 | R12: 66.32 | S12: 76.27 | T12: 42.07 | U12: 48.38 | V12: 25.06 | W12: 28.82
A13: Miniflex | B13: Mi | C13: 1 | D13: 2 | E13: Mi12N | I13: ≥ 500V & < 66kV | J13: 291.17 | K13: 334.85 | L13: 88.2 | M13: 101.43 | N13: 47.9 | O13: 55.09 | P13: 94.99 | Q13: 109.24 | R13: 65.37 | S13: 75.18 | T13: 41.47 | U13: 47.69 | V13: 22.98 | W13: 26.43
A14: Miniflex | B14: Mi | C14: 1 | D14: 3 | E14: Mi13N | I14: ≥ 66kV & ≤ 132kV | J14: 281.91 | K14: 324.2 | L14: 85.39 | M14: 98.2 | N14: 46.36 | O14: 53.31 | P14: 91.96 | Q14: 105.75 | R14: 63.29 | S14: 72.78 | T14: 40.15 | U14: 46.17 | V14: 12.92 | W14: 14.86
A15: Miniflex | B15: Mi | C15: 1 | D15: 4 | E15: Mi14N | I15: > 132kV* | J15: 265.74 | K15: 305.6 | L15: 80.51 | M15: 92.59 | N15: 43.69 | O15: 50.24 | P15: 86.67 | Q15: 99.67 | R15: 59.65 | S15: 68.6 | T15: 37.83 | U15: 43.5 | V15: 9.48 | W15: 10.9
A16: Miniflex | B16: Mi | C16: 2 | D16: 1 | E16: Mi21N | H16: > 600km and ≤ 900km | I16: < 500V | J16: 298.22 | K16: 342.95 | L16: 90.34 | M16: 103.89 | N16: 49.04 | O16: 56.4 | P16: 97.29 | Q16: 111.88 | R16: 66.96 | S16: 77 | T16: 42.46 | U16: 48.83 | V16: 25.18 | W16: 28.96
A17: Miniflex | B17: Mi | C17: 2 | D17: 2 | E17: Mi22N | I17: ≥ 500V & < 66kV | J17: 294.1 | K17: 338.22 | L17: 89.1 | M17: 102.47 | N17: 48.38 | O17: 55.64 | P17: 95.93 | Q17: 110.32 | R17: 66.03 | S17: 75.93 | T17: 41.89 | U17: 48.17 | V17: 23.05 | W17: 26.51
A18: Miniflex | B18: Mi | C18: 2 | D18: 3 | E18: Mi23N | I18: ≥ 66kV & ≤ 132kV | J18: 284.78 | K18: 327.5 | L18: 86.27 | M18: 99.21 | N18: 46.84 | O18: 53.87 | P18: 92.89 | Q18: 106.82 | R18: 63.94 | S18: 73.53 | T18: 40.56 | U18: 46.64 | V18: 13 | W18: 14.95
A19: Miniflex | B19: Mi | C19: 2 | D19: 4 | E19: Mi24N | I19: > 132kV* | J19: 268.42 | K19: 308.68 | L19: 81.3 | M19: 93.5 | N19: 44.17 | O19: 50.8 | P19: 87.56 | Q19: 100.69 | R19: 60.25 | S19: 69.29 | T19: 38.24 | U19: 43.98 | V19: 9.62 | W19: 11.06
A20: Miniflex | B20: Mi | C20: 3 | D20: 1 | E20: Mi31N | H20: > 900km | I20: < 500V | J20: 301.22 | K20: 346.4 | L20: 91.28 | M20: 104.97 | N20: 49.55 | O20: 56.98 | P20: 98.27 | Q20: 113.01 | R20: 67.62 | S20: 77.76 | T20: 42.92 | U20: 49.36 | V20: 25.2 | W20: 28.98
A21: Miniflex | B21: Mi | C21: 3 | D21: 2 | E21: Mi32N | I21: ≥ 500V & < 66kV | J21: 297.02 | K21: 341.57 | L21: 89.97 | M21: 103.47 | N21: 48.84 | O21: 56.17 | P21: 96.87 | Q21: 111.4 | R21: 66.66 | S21: 76.66 | T21: 42.3 | U21: 48.65 | V21: 23.13 | W21: 26.6
A22: Miniflex | B22: Mi | C22: 3 | D22: 3 | E22: Mi33N | I22: ≥ 66kV & ≤ 132kV | J22: 287.64 | K22: 330.79 | L22: 87.13 | M22: 100.2 | N22: 47.31 | O22: 54.41 | P22: 93.82 | Q22: 107.89 | R22: 64.58 | S22: 74.27 | T22: 40.97 | U22: 47.12 | V22: 13.05 | W22: 15.01
A23: Miniflex | B23: Mi | C23: 3 | D23: 4 | E23: Mi34N | I23: > 132kV* | J23: 271.03 | K23: 311.68 | L23: 82.14 | M23: 94.46 | N23: 44.63 | O23: 51.32 | P23: 88.47 | Q23: 101.74 | R23: 60.91 | S23: 70.05 | T23: 38.66 | U23: 44.46 | V23: 9.68 | W23: 11.13
I24: * 132 kV or Transmission connected
H26: Customer categories | J26: Service charge [R/account/day] | L26: Administration charge [R/POD/day]
A28: Tariff | B28: Tariff nameBillcode | C28: Tx zone | D28: Voltage | E28: Billcode | K28: VAT incl | M28: VAT incl | P28: Ancillary service charge [c/kWh] | R28: Network demand charge [c/kWh] [Peak & Standard] | U28: Urban low voltage subsidy charge [R/kVA/m]
A29: Miniflex | B29: Mi | C29: 0 | D29: 1 | E29: =B29&C29&D29&IF($A$2="Non-municipal","N",IF($A$2="Municiple","Y","error")) -> Mi01N | H29: ≤ 100 kVA | J29: 13.6 | K29: =ROUND(J29 * (1 + VAT), 2) -> 15.64 | L29: 2.99 | M29: =ROUND(L29 * (1 + VAT), 2) -> 3.44 | O29: Voltage | Q29: VAT incl | S29: VAT incl | W29: VAT incl
A30: Miniflex | B30: Mi | C30: 0 | D30: 1 | E30: =B30&C30&D30&IF($A$2="Non-municipal","N",IF($A$2="Municiple","Y","error")) -> Mi01N | H30: > 100 kVA & ≤ 500 kVA | J30: 62.12 | K30: =ROUND(J30 * (1 + VAT), 2) -> 71.44 | L30: 17.42 | M30: =ROUND(L30 * (1 + VAT), 2) -> 20.03 | O30: < 500V | P30: 0.39 | Q30: =ROUND(P30 * (1 + VAT), 2) -> 0.45 | R30: 15.47 | S30: =ROUND(R30 * (1 + VAT), 2) -> 17.79 | U30: < 500V | V30: 0 | W30: =ROUND(V30 * (1 + VAT), 2) -> 0
A31: Miniflex | B31: Mi | C31: 0 | D31: 1 | E31: =B31&C31&D31&IF($A$2="Non-municipal","N",IF($A$2="Municiple","Y","error")) -> Mi01N | H31: > 500 kVA & ≤ 1 MVA | J31: 191.16 | K31: =ROUND(J31 * (1 + VAT), 2) -> 219.83 | L31: 34.6 | M31: =ROUND(L31 * (1 + VAT), 2) -> 39.79 | O31: ≥ 500V & < 66kV | P31: 0.38 | Q31: =ROUND(P31 * (1 + VAT), 2) -> 0.44 | R31: 6.48 | S31: =ROUND(R31 * (1 + VAT), 2) -> 7.45 | U31: ≥ 500V & < 66kV | V31: 0 | W31: =ROUND(V31 * (1 + VAT), 2) -> 0
A32: Miniflex | B32: Mi | C32: 0 | D32: 1 | E32: =B32&C32&D32&IF($A$2="Non-municipal","N",IF($A$2="Municiple","Y","error")) -> Mi01N | H32: > 1 MVA | J32: 191.16 | K32: =ROUND(J32 * (1 + VAT), 2) -> 219.83 | L32: 86.15 | M32: =ROUND(L32 * (1 + VAT), 2) -> 99.07 | O32: ≥ 66kV & ≤ 132kV | P32: 0.36 | Q32: =ROUND(P32 * (1 + VAT), 2) -> 0.41 | R32: 2.26 | S32: =ROUND(R32 * (1 + VAT), 2) -> 2.6 | U32: ≥ 66kV & ≤ 132kV | V32: 13.45 | W32: =ROUND(V32 * (1 + VAT), 2) -> 15.47
A33: Miniflex | B33: Mi | C33: 0 | D33: 1 | E33: =B33&C33&D33&IF($A$2="Non-municipal","N",IF($A$2="Municiple","Y","error")) -> Mi01N | H33: Key customers | J33: 3745.97 | K33: =ROUND(J33 * (1 + VAT), 2) -> 4307.87 | L33: 119.64 | M33: =ROUND(L33 * (1 + VAT), 2) -> 137.59 | O33: > 132kV* | P33: 0.34 | Q33: =ROUND(P33 * (1 + VAT), 2) -> 0.39 | R33: 0 | S33: =ROUND(R33 * (1 + VAT), 2) -> 0 | U33: > 132kV* | V33: 13.45 | W33: =ROUND(V33 * (1 + VAT), 2) -> 15.47
O34: * 132 kV or Transmission connected | U34: * 132 kV or Transmission connected
H36: Electrification and rural network subsidy charge [c/kWh] | J36: Affordability subsidy charge [c/kWh] Only payable by non-local authority tariffs | O36: Reactive energy charge [c/kVArh]
O38: High season | Q38: Low season
A39: Tariff | B39: Tariff nameBillcode | C39: Tx zone | D39: Voltage | E39: Billcode | I39: VAT incl | K39: VAT incl | P39: VAT incl | R39: VAT incl
A40: Miniflex | B40: Mi | C40: 0 | D40: 1 | E40: =B40&C40&D40&IF($A$2="Non-municipal","N",IF($A$2="Municiple","Y","error")) -> Mi01N | H40: 7.45 | I40: =ROUND(H40 * (1 + VAT), 2) -> 8.57 | J40: 3.31 | K40: =ROUND(J40 * (1 + VAT), 2) -> 3.81 | O40: 5.87 | P40: =ROUND(O40 * (1 + VAT), 2) -> 6.75 | Q40: 0 | R40: =ROUND(Q40 * (1 + VAT), 2) -> 0
A42: Miniflex | B42: Mi | C42: 0 | D42: 1 | E42: =B42&C42&D42&IF($A$2="Non-municipal","N",IF($A$2="Municiple","Y","error")) -> Mi01N
A43: Miniflex | B43: Mi | C43: 1 | D43: 2 | E43: =B43&C43&D43&IF($A$2="Non-municipal","N",IF($A$2="Municiple","Y","error")) -> Mi12N
A44: Miniflex | B44: Mi | C44: 2 | D44: 3 | E44: Mi23N
A45: Miniflex | B45: Mi | C45: 3 | D45: 4 | E45: Mi34N

Sheet Miniflex Munic inc
G1: Back to menu
A2: Municiple | G2: Miniflex tariff | T2: Local authority
J4: Active energy charge [c/kWh] | V4: Network capacity charge [R/kVA/m]
H5: Transmission zone | J5: High demand season [Jun - Aug] | P5: Low demand season [Sep - May]
I6: Voltage | J6: Peak | L6: Standard | N6: Off Peak | P6: Peak | R6: Standard | T6: Off Peak
A7: Tariff | B7: Tariff nameBillcode | C7: Tx zone | D7: Voltage | E7: Billcode | K7: VAT incl | M7: VAT incl | O7: VAT incl | Q7: VAT incl | S7: VAT incl | U7: VAT incl | W7: VAT incl
A8: Miniflex | B8: Mi | C8: 0 | D8: 1 | E8: =B8&C8&D8&IF($A$2="Non-municipal","N",IF($A$2="Municiple","Y","error")) -> Mi01Y | H8: ≤ 300km | I8: < 500V | J8: 300.18 | K8: =ROUND(J8 * (1 + VAT), 2) -> 345.21 | L8: 91.34 | M8: =ROUND(L8 * (1 + VAT), 2) -> 105.04 | N8: 49.84 | O8: =ROUND(N8 * (1 + VAT), 2) -> 57.32 | P8: 98.28 | Q8: =ROUND(P8 * (1 + VAT), 2) -> 113.02 | R8: 67.83 | S8: =ROUND(R8 * (1 + VAT), 2) -> 78 | T8: 43.23 | U8: =ROUND(T8 * (1 + VAT), 2) -> 49.71 | V8: 25.03 | W8: =ROUND(V8 * (1 + VAT), 2) -> 28.78
A9: Miniflex | B9: Mi | C9: 0 | D9: 2 | E9: =B9&C9&D9&IF($A$2="Non-municipal","N",IF($A$2="Municiple","Y","error")) -> Mi02Y | I9: ≥ 500V & < 66kV | J9: 295.45 | K9: 339.77 | L9: 89.52 | M9: 102.95 | N9: 48.61 | O9: 55.9 | P9: 96.38 | Q9: 110.84 | R9: 66.33 | S9: 76.28 | T9: 42.09 | U9: 48.4 | V9: 22.93 | W9: 26.37
A10: Miniflex | B10: Mi | C10: 0 | D10: 3 | E10: Mi03Y | I10: ≥ 66kV & ≤ 132kV | J10: 286.13 | K10: 329.05 | L10: 86.67 | M10: 99.67 | N10: 47.07 | O10: 54.13 | P10: 93.34 | Q10: 107.34 | R10: 64.25 | S10: 73.89 | T10: 40.75 | U10: 46.86 | V10: 12.88 | W10: 14.81
A11: Miniflex | B11: Mi | C11: 0 | D11: 4 | E11: Mi04Y | I11: > 132kV* | J11: 269.66 | K11: 310.11 | L11: 81.69 | M11: 93.94 | N11: 44.36 | O11: 51.01 | P11: 87.96 | Q11: 101.15 | R11: 60.54 | S11: 69.62 | T11: 38.41 | U11: 44.17 | V11: 9.4 | W11: 10.81
A12: Miniflex | B12: Mi | C12: 1 | D12: 1 | E12: Mi11Y | H12: > 300km and ≤ 600km | I12: < 500V | J12: 302.63 | K12: 348.02 | L12: 91.68 | M12: 105.43 | N12: 49.78 | O12: 57.25 | P12: 98.72 | Q12: 113.53 | R12: 67.97 | S12: 78.17 | T12: 43.11 | U12: 49.58 | V12: 25.08 | W12: 28.84
A13: Miniflex | B13: Mi | C13: 1 | D13: 2 | E13: Mi12Y | I13: ≥ 500V & < 66kV | J13: 298.4 | K13: 343.16 | L13: 90.4 | M13: 103.96 | N13: 49.09 | O13: 56.45 | P13: 97.35 | Q13: 111.95 | R13: 67 | S13: 77.05 | T13: 42.5 | U13: 48.88 | V13: 23.01 | W13: 26.46
A14: Miniflex | B14: Mi | C14: 1 | D14: 3 | E14: Mi13Y | I14: ≥ 66kV & ≤ 132kV | J14: 288.93 | K14: 332.27 | L14: 87.52 | M14: 100.65 | N14: 47.52 | O14: 54.65 | P14: 94.25 | Q14: 108.39 | R14: 64.86 | S14: 74.59 | T14: 41.14 | U14: 47.31 | V14: 12.95 | W14: 14.89
A15: Miniflex | B15: Mi | C15: 1 | D15: 4 | E15: Mi14Y | I15: > 132kV* | J15: 272.35 | K15: 313.2 | L15: 82.52 | M15: 94.9 | N15: 44.8 | O15: 51.52 | P15: 88.83 | Q15: 102.15 | R15: 61.15 | S15: 70.32 | T15: 38.79 | U15: 44.61 | V15: 9.49 | W15: 10.91
A16: Miniflex | B16: Mi | C16: 2 | D16: 1 | E16: Mi21Y | H16: > 600km and ≤ 900km | I16: < 500V | J16: 305.65 | K16: 351.5 | L16: 92.6 | M16: 106.49 | N16: 50.27 | O16: 57.81 | P16: 99.7 | Q16: 114.66 | R16: 68.63 | S16: 78.92 | T16: 43.54 | U16: 50.07 | V16: 25.21 | W16: 28.99
A17: Miniflex | B17: Mi | C17: 2 | D17: 2 | E17: Mi22Y | I17: ≥ 500V & < 66kV | J17: 301.41 | K17: 346.62 | L17: 91.3 | M17: 105 | N17: 49.58 | O17: 57.02 | P17: 98.34 | Q17: 113.09 | R17: 67.64 | S17: 77.79 | T17: 42.93 | U17: 49.37 | V17: 23.07 | W17: 26.53
A18: Miniflex | B18: Mi | C18: 2 | D18: 3 | E18: Mi23Y | I18: ≥ 66kV & ≤ 132kV | J18: 291.87 | K18: 335.65 | L18: 88.4 | M18: 101.66 | N18: 48 | O18: 55.2 | P18: 95.18 | Q18: 109.46 | R18: 65.51 | S18: 75.34 | T18: 41.55 | U18: 47.78 | V18: 13.01 | W18: 14.96
A19: Miniflex | B19: Mi | C19: 2 | D19: 4 | E19: Mi24Y | I19: > 132kV* | J19: 275.08 | K19: 316.34 | L19: 83.34 | M19: 95.84 | N19: 45.25 | O19: 52.04 | P19: 89.74 | Q19: 103.2 | R19: 61.76 | S19: 71.02 | T19: 39.18 | U19: 45.06 | V19: 9.62 | W19: 11.06
A20: Miniflex | B20: Mi | C20: 3 | D20: 1 | E20: Mi31Y | H20: > 900km | I20: < 500V | J20: 308.72 | K20: 355.03 | L20: 93.53 | M20: 107.56 | N20: 50.79 | O20: 58.41 | P20: 100.71 | Q20: 115.82 | R20: 69.31 | S20: 79.71 | T20: 43.98 | U20: 50.58 | V20: 25.23 | W20: 29.01
A21: Miniflex | B21: Mi | C21: 3 | D21: 2 | E21: Mi32Y | I21: ≥ 500V & < 66kV | J21: 304.42 | K21: 350.08 | L21: 92.21 | M21: 106.04 | N21: 50.08 | O21: 57.59 | P21: 99.29 | Q21: 114.18 | R21: 68.34 | S21: 78.59 | T21: 43.34 | U21: 49.84 | V21: 23.17 | W21: 26.65
A22: Miniflex | B22: Mi | C22: 3 | D22: 3 | E22: Mi33Y | I22: ≥ 66kV & ≤ 132kV | J22: 294.81 | K22: 339.03 | L22: 89.31 | M22: 102.71 | N22: 48.5 | O22: 55.78 | P22: 96.16 | Q22: 110.58 | R22: 66.17 | S22: 76.1 | T22: 41.98 | U22: 48.28 | V22: 13.05 | W22: 15.01
A23: Miniflex | B23: Mi | C23: 3 | D23: 4 | E23: Mi34Y | I23: > 132kV* | J23: 277.79 | K23: 319.46 | L23: 84.19 | M23: 96.82 | N23: 45.75 | O23: 52.61 | P23: 90.66 | Q23: 104.26 | R23: 62.41 | S23: 71.77 | T23: 39.61 | U23: 45.55 | V23: 9.69 | W23: 11.14
I24: * 132 kV or Transmission connected
H26: Customer categories | J26: Service charge [R/account/day] | L26: Administration charge [R/POD/day]
A28: Tariff | B28: Tariff nameBillcode | C28: Tx zone | D28: Voltage | E28: Billcode | K28: VAT incl | M28: VAT incl | P28: Ancillary service charge [c/kWh] | R28: Network demand charge [c/kWh] [Peak & Standard] | U28: Urban low voltage subsidy charge [R/kVA/m]
A29: Miniflex | B29: Mi | C29: 0 | D29: 1 | E29: =B29&C29&D29&IF($A$2="Non-municipal","N",IF($A$2="Municiple","Y","error")) -> Mi01Y | H29: ≤ 100 kVA | J29: 13.54 | K29: =ROUND(J29 * (1 + VAT), 2) -> 15.57 | L29: 2.97 | M29: =ROUND(L29 * (1 + VAT), 2) -> 3.42 | O29: Voltage | Q29: VAT incl | S29: VAT incl | W29: VAT incl
A30: Miniflex | B30: Mi | C30: 0 | D30: 1 | E30: =B30&C30&D30&IF($A$2="Non-municipal","N",IF($A$2="Municiple","Y","error")) -> Mi01Y | H30: > 100 kVA & ≤ 500 kVA | J30: 61.89 | K30: =ROUND(J30 * (1 + VAT), 2) -> 71.17 | L30: 17.34 | M30: =ROUND(L30 * (1 + VAT), 2) -> 19.94 | O30: < 500V | P30: 0.39 | Q30: =ROUND(P30 * (1 + VAT), 2) -> 0.45 | R30: 15.48 | S30: =ROUND(R30 * (1 + VAT), 2) -> 17.8 | U30: < 500V | V30: 0 | W30: =ROUND(V30 * (1 + VAT), 2) -> 0
A31: Miniflex | B31: Mi | C31: 0 | D31: 1 | E31: =B31&C31&D31&IF($A$2="Non-municipal","N",IF($A$2="Municiple","Y","error")) -> Mi01Y | H31: > 500 kVA & ≤ 1 MVA | J31: 190.47 | K31: =ROUND(J31 * (1 + VAT), 2) -> 219.04 | L31: 34.48 | M31: =ROUND(L31 * (1 + VAT), 2) -> 39.65 | O31: ≥ 500V & < 66kV | P31: 0.38 | Q31: =ROUND(P31 * (1 + VAT), 2) -> 0.44 | R31: 6.5 | S31: =ROUND(R31 * (1 + VAT), 2) -> 7.48 | U31: ≥ 500V & < 66kV | V31: 0 | W31: =ROUND(V31 * (1 + VAT), 2) -> 0
A32: Miniflex | B32: Mi | C32: 0 | D32: 1 | E32: =B32&C32&D32&IF($A$2="Non-municipal","N",IF($A$2="Municiple","Y","error")) -> Mi01Y | H32: > 1 MVA | J32: 190.47 | K32: =ROUND(J32 * (1 + VAT), 2) -> 219.04 | L32: 85.86 | M32: =ROUND(L32 * (1 + VAT), 2) -> 98.74 | O32: ≥ 66kV & ≤ 132kV | P32: 0.35 | Q32: =ROUND(P32 * (1 + VAT), 2) -> 0.4 | R32: 2.25 | S32: =ROUND(R32 * (1 + VAT), 2) -> 2.59 | U32: ≥ 66kV & ≤ 132kV | V32: 13.39 | W32: =ROUND(V32 * (1 + VAT), 2) -> 15.4
A33: Miniflex | B33: Mi | C33: 0 | D33: 1 | E33: =B33&C33&D33&IF($A$2="Non-municipal","N",IF($A$2="Municiple","Y","error")) -> Mi01Y | H33: Key customers | J33: 3732.51 | K33: =ROUND(J33 * (1 + VAT), 2) -> 4292.39 | L33: 119.2 | M33: =ROUND(L33 * (1 + VAT), 2) -> 137.08 | O33: > 132kV* | P33: 0.33 | Q33: =ROUND(P33 * (1 + VAT), 2) -> 0.38 | R33: 0 | S33: =ROUND(R33 * (1 + VAT), 2) -> 0 | U33: > 132kV* | V33: 13.39 | W33: =ROUND(V33 * (1 + VAT), 2) -> 15.4
O34: * 132 kV or Transmission connected | U34: * 132 kV or Transmission connected
H36: Electrification and rural network subsidy charge [c/kWh] | L36: Reactive energy charge [c/kVArh]
L38: High season | N38: Low season
A39: Tariff | B39: Tariff nameBillcode | C39: Tx zone | D39: Voltage | E39: Billcode | I39: VAT incl | M39: VAT incl | O39: VAT incl
A40: Miniflex | B40: Mi | C40: 0 | D40: 1 | E40: =B40&C40&D40&IF($A$2="Non-municipal","N",IF($A$2="Municiple","Y","error")) -> Mi01Y | H40: 7.42 | I40: =ROUND(H40 * (1 + VAT), 2) -> 8.53 | L40: 5.87 | M40: =ROUND(L40 * (1 + VAT), 2) -> 6.75 | N40: 0 | O40: =ROUND(N40 * (1 + VAT), 2) -> 0
A42: Miniflex | B42: Mi | C42: 0 | D42: 1 | E42: =B42&C42&D42&IF($A$2="Non-municipal","N",IF($A$2="Municiple","Y","error")) -> Mi01Y
A43: Miniflex | B43: Mi | C43: 1 | D43: 2 | E43: =B43&C43&D43&IF($A$2="Non-municipal","N",IF($A$2="Municiple","Y","error")) -> Mi12Y
A44: Miniflex | B44: Mi | C44: 2 | D44: 3 | E44: Mi23Y
A45: Miniflex | B45: Mi | C45: 3 | D45: 4 | E45: Mi34Y

Sheet Businessrate inc
H1: Back to menu
A2: Non-municipal | H2: Businessrate tariffs | P2: Non-local authority
J4: Energy charge [c/kWh] | L4: Ancillary service charge [c/kWh] | N4: Network demand charge [c/kWh] | P4: Network capacity charge [R/POD/day] | R4: Service and administration charge [R/POD/day] | Z4: Electrification and rural network subsidy charge [c/kWh] | AB4: Affordability subsidy charge [c/kWh] payable by non-local authority tariffs
Z6: All seasons | AB6: All seasons
A7: Tariff | B7: Tariff nameBillcode | C7: Tx zone | D7: Voltage | E7: Billcode | K7: VAT incl | M7: VAT incl | O7: VAT incl | Q7: VAT incl | S7: VAT incl | AA7: VAT incl | AC7: VAT incl
A8: Businessrate 1 | B8: B1 | C8: 0 | D8: 1 | E8: =B8&C8&D8&IF($A$2="Non-municipal","N",IF($A$2="Municiple","Y","error")) -> B101N | H8: Businessrate 1 | J8: 100.28 | K8: =ROUND(J8 * (1 + VAT), 2) -> 115.32 | L8: 0.39 | M8: =ROUND(L8 * (1 + VAT), 2) -> 0.45 | N8: 14.16 | O8: =ROUND(N8 * (1 + VAT), 2) -> 16.28 | P8: 20.33 | Q8: =ROUND(P8 * (1 + VAT), 2) -> 23.38 | R8: 17.56 | S8: =ROUND(R8 * (1 + VAT), 2) -> 20.19 | Z8: 0 | AA8: =ROUND(Z8 * (1 + VAT), 2) -> 0 | AB8: 0 | AC8: =ROUND(AB8 * (1 + VAT), 2) -> 0
A9: Businessrate 2 | B9: B2 | C9: 0 | D9: 1 | E9: =B9&C9&D9&IF($A$2="Non-municipal","N",IF($A$2="Municiple","Y","error")) -> B201N | H9: Businessrate 2 | J9: 100.28 | K9: =ROUND(J9 * (1 + VAT), 2) -> 115.32 | L9: 0.39 | M9: =ROUND(L9 * (1 + VAT), 2) -> 0.45 | N9: 14.16 | O9: =ROUND(N9 * (1 + VAT), 2) -> 16.28 | P9: 34.25 | Q9: =ROUND(P9 * (1 + VAT), 2) -> 39.39 | R9: 17.56 | S9: =ROUND(R9 * (1 + VAT), 2) -> 20.19 | Z9: =Z8 -> 0 | AA9: =ROUND(Z9 * (1 + VAT), 2) -> 0 | AB9: =AB8 -> 0 | AC9: =ROUND(AB9 * (1 + VAT), 2) -> 0
A10: Businessrate 3 | B10: B3 | C10: 0 | D10: 1 | E10: B301N | H10: Businessrate 3 | J10: 100.28 | K10: =ROUND(J10 * (1 + VAT), 2) -> 115.32 | L10: 0.39 | M10: =ROUND(L10 * (1 + VAT), 2) -> 0.45 | N10: 14.16 | O10: =ROUND(N10 * (1 + VAT), 2) -> 16.28 | P10: 59.18 | Q10: =ROUND(P10 * (1 + VAT), 2) -> 68.06 | R10: 17.56 | S10: =ROUND(R10 * (1 + VAT), 2) -> 20.19 | Z10: =Z8 -> 0 | AA10: =ROUND(Z10 * (1 + VAT), 2) -> 0 | AB10: =AB8 -> 0 | AC10: =ROUND(AB10 * (1 + VAT), 2) -> 0
A11: Businessrate 4 | B11: B4 | C11: 0 | D11: 1 | E11: B401N | H11: Businessrate 4 | J11: 269.86 | K11: =ROUND(J11 * (1 + VAT), 2) -> 310.34 | L11: 0.39 | M11: =ROUND(L11 * (1 + VAT), 2) -> 0.45 | N11: 14.16 | O11: =ROUND(N11 * (1 + VAT), 2) -> 16.28 | Z11: =Z9 -> 0 | AA11: =ROUND(Z11 * (1 + VAT), 2) -> 0 | AB11: =AB9 -> 0 | AC11: =ROUND(AB11 * (1 + VAT), 2) -> 0

Sheet Businessrate Munic inc
H1: Back to menu
A2: Municiple | H2: Businessrate tariffs | P2: Local authority
J4: Energy charge [c/kWh] | L4: Ancillary service charge [c/kWh] | N4: Network demand charge [c/kWh] | P4: Network capacity charge [R/POD/day] | R4: Service and administration charge [R/POD/day] | Z4: Electrification and rural network subsidy charge [c/kWh] | AB4: Affordability subsidy charge [c/kWh] payable by non-local authority tariffs
Z6: All seasons | AB6: All seasons
A7: Tariff | B7: Tariff nameBillcode | C7: Tx zone | D7: Voltage | E7: Billcode | K7: VAT incl | M7: VAT incl | O7: VAT incl | Q7: VAT incl | S7: VAT incl | AA7: VAT incl | AC7: VAT incl
A8: Businessrate 1 | B8: B1 | C8: 0 | D8: 1 | E8: =B8&C8&D8&IF($A$2="Non-municipal","N",IF($A$2="Municiple","Y","error")) -> B101Y | H8: Businessrate 1 | J8: 102.78 | K8: =ROUND(J8 * (1 + VAT), 2) -> 118.2 | L8: 0.39 | M8: =ROUND(L8 * (1 + VAT), 2) -> 0.45 | N8: 14.24 | O8: =ROUND(N8 * (1 + VAT), 2) -> 16.38 | P8: 20.43 | Q8: =ROUND(P8 * (1 + VAT), 2) -> 23.49 | R8: 17.49 | S8: =ROUND(R8 * (1 + VAT), 2) -> 20.11 | Z8: 0 | AA8: =ROUND(Z8 * (1 + VAT), 2) -> 0 | AB8: 0 | AC8: =ROUND(AB8 * (1 + VAT), 2) -> 0
A9: Businessrate 2 | B9: B2 | C9: 0 | D9: 1 | E9: =B9&C9&D9&IF($A$2="Non-municipal","N",IF($A$2="Municiple","Y","error")) -> B201Y | H9: Businessrate 2 | J9: 102.78 | K9: =ROUND(J9 * (1 + VAT), 2) -> 118.2 | L9: 0.39 | M9: =ROUND(L9 * (1 + VAT), 2) -> 0.45 | N9: 14.24 | O9: =ROUND(N9 * (1 + VAT), 2) -> 16.38 | P9: 34.45 | Q9: =ROUND(P9 * (1 + VAT), 2) -> 39.62 | R9: 17.49 | S9: =ROUND(R9 * (1 + VAT), 2) -> 20.11 | Z9: =Z8 -> 0 | AA9: =ROUND(Z9 * (1 + VAT), 2) -> 0 | AB9: =AB8 -> 0 | AC9: =ROUND(AB9 * (1 + VAT), 2) -> 0
A10: Businessrate 3 | B10: B3 | C10: 0 | D10: 1 | E10: B301Y | H10: Businessrate 3 | J10: 102.78 | K10: =ROUND(J10 * (1 + VAT), 2) -> 118.2 | L10: 0.39 | M10: =ROUND(L10 * (1 + VAT), 2) -> 0.45 | N10: 14.24 | O10: =ROUND(N10 * (1 + VAT), 2) -> 16.38 | P10: 59.53 | Q10: =ROUND(P10 * (1 + VAT), 2) -> 68.46 | R10: 17.49 | S10: =ROUND(R10 * (1 + VAT), 2) -> 20.11 | Z10: =Z8 -> 0 | AA10: =ROUND(Z10 * (1 + VAT), 2) -> 0 | AB10: =AB8 -> 0 | AC10: =ROUND(AB10 * (1 + VAT), 2) -> 0
A11: Businessrate 4 | B11: B4 | C11: 0 | D11: 1 | E11: B401Y | H11: Businessrate 4 | J11: 276.57 | K11: =ROUND(J11 * (1 + VAT), 2) -> 318.06 | L11: 0.39 | M11: =ROUND(L11 * (1 + VAT), 2) -> 0.45 | N11: 14.24 | O11: =ROUND(N11 * (1 + VAT), 2) -> 16.38 | Z11: =Z9 -> 0 | AA11: =ROUND(Z11 * (1 + VAT), 2) -> 0 | AB11: =AB9 -> 0 | AC11: =ROUND(AB11 * (1 + VAT), 2) -> 0

Sheet Public Lighting inc
H1: Back to menu
A2: Non-municipal | H2: Public Lighting tariffs Non-local authority
K4: All Night | M4: 24 Hours
A5: Tariff | B5: Tariff nameBillcode | C5: Tx zone | D5: Voltage | E5: Billcode | L5: VAT incl | N5: VAT incl
A6: Public lighting 24 hours | B6: Pu | C6: 0 | D6: 1 | E6: =B6&C6&D6&IF($A$2="Non-municipal","N",IF($A$2="Municiple","Y","error")) -> Pu01N | H6: Public Lighting | I6: Energy charge [c/kWh] | K6: 79.8 | L6: =ROUND(K6 * (1 + VAT), 2) -> 91.77 | M6: 106.85 | N6: =ROUND(M6 * (1 + VAT), 2) -> 122.88
A7: Public lighting All Night | B7: Pa | C7: 0 | D7: 1 | E7: =B7&C7&D7&IF($A$2="Non-municipal","N",IF($A$2="Municiple","Y","error")) -> Pa01N | I7: Energy charge [R/100W/month] | K7: 24.97 | L7: =ROUND(K7 * (1 + VAT), 2) -> 28.72 | M7: 71.97 | N7: =ROUND(M7 * (1 + VAT), 2) -> 82.77
A9: Public lighting Urban fixed | B9: Pt | C9: 0 | D9: 1 | E9: =B9&C9&D9&IF($A$2="Non-municipal","N",IF($A$2="Municiple","Y","error")) -> Pt01N | H9: Public Lighting - Urban Fixed | I9: Fixed charge [R/POD/day] | K9: 5.25 | L9: =ROUND(K9 * (1 + VAT), 2) -> 6.04
H11: Maintenance charges | K11: R/month
L12: VAT incl
A13: Public Lighting - Maintenance charge - per lumanaire | B13: Plu | C13: 0 | D13: 1 | E13: =B13&C13&D13&IF($A$2="Non-municipal","N",IF($A$2="Municiple","Y","error")) -> Plu01N | J13: Per lumanaire | K13: 42.32 | L13: =ROUND(K13 * (1 + VAT), 2) -> 48.67
A14: Public Lighting - Maintenance charge - per high-mast lumanaire | B14: Plhm | C14: 0 | D14: 1 | E14: =B14&C14&D14&IF($A$2="Non-municipal","N",IF($A$2="Municiple","Y","error")) -> Plhm01N | J14: Per high-mast lumanaire | K14: 985.07 | L14: =ROUND(K14 * (1 + VAT), 2) -> 1132.83

Sheet Public Lighting Munic inc
H1: Back to menu
A2: Municipal | H2: Public Lighting tariffs Local authority | AB2: =SUM(#REF!) ->  | AC2: check value
K4: All Night | M4: 24 Hours
A5: Tariff | B5: Tariff nameBillcode | C5: Tx zone | D5: Voltage | E5: Billcode | L5: VAT incl | N5: VAT incl
A6: Public lighting 24 hours | B6: Pu | C6: 0 | D6: 1 | E6: =B6&C6&D6&IF($A$2="Non-municipal","N",IF($A$2="Municipal","Y","error")) -> Pu01Y | H6: Public Lighting | I6: Energy charge [c/kWh] | K6: 82.96 | L6: =ROUND(K6 * (1 + VAT), 2) -> 95.4 | M6: 111.09 | N6: =ROUND(M6 * (1 + VAT), 2) -> 127.75
A7: Public lighting All Night | B7: Pa | C7: 0 | D7: 1 | E7: =B7&C7&D7&IF($A$2="Non-municipal","N",IF($A$2="Municipal","Y","error")) -> Pa01Y | I7: Energy charge [R/100W/month] | K7: 25.34 | L7: =ROUND(K7 * (1 + VAT), 2) -> 29.14 | M7: 73.03 | N7: =ROUND(M7 * (1 + VAT), 2) -> 83.98
A9: Public lighting Urban fixed | B9: Pt | C9: 0 | D9: 1 | E9: =B9&C9&D9&IF($A$2="Non-municipal","N",IF($A$2="Municipal","Y","error")) -> Pt01Y | H9: Public Lighting - Urban Fixed | I9: Fixed charge [R/POD/day] | K9: 5.454898132 | L9: =ROUND(K9 * (1 + VAT), 2) -> 6.27
H11: Maintenance charges | K11: R/month
L12: VAT incl
A13: Public Lighting - Maintenance charge - per lumanaire | B13: Plu | C13: 0 | D13: 1 | E13: =B13&C13&D13&IF($A$2="Non-municipal","N",IF($A$2="Municipal","Y","error")) -> Plu01Y | J13: Per lumanaire | K13: 43.775828 | L13: =ROUND(K13 * (1 + VAT), 2) -> 50.34
A14: Public Lighting - Maintenance charge - per high-mast lumanaire | B14: Plhm | C14: 0 | D14: 1 | E14: =B14&C14&D14&IF($A$2="Non-municipal","N",IF($A$2="Municipal","Y","error")) -> Plhm01Y | J14: Per high-mast lumanaire | K14: 1022.35 | L14: =ROUND(K14 * (1 + VAT), 2) -> 1175.7

Sheet Homepower inc
H1: Back to menu
A2: Non-municipal | H2: Homepower tariffs | O2: Non-local authority
J5: Energy charge [c/kWh] | N5: Network capacity charge [R/POD/day]
A6: Tariff | B6: Tariff nameBillcode | C6: Tx zone | D6: Voltage | E6: Billcode | J6: Block 1 [>0 - 600 kWh] | K6: VAT incl | L6: Block 2 [>600 kWh] | M6: VAT incl | O6: VAT incl
A7: Homepower 1 | B7: H1 | C7: 0 | D7: 1 | E7: =B7&C7&D7&IF($A$2="Non-municipal","N",IF($A$2="Municiple","Y","error")) -> H101N | H7: Homepower 1 | J7: 117.53 | K7: =ROUND(J7 * (1 + VAT), 2) -> 135.16 | L7: 185.58 | M7: =ROUND(L7 * (1 + VAT), 2) -> 213.42 | N7: 5.03 | O7: =ROUND(N7 * (1 + VAT), 2) -> 5.78
A8: Homepower 2 | B8: H2 | C8: 0 | D8: 1 | E8: =B8&C8&D8&IF($A$2="Non-municipal","N",IF($A$2="Municiple","Y","error")) -> H201N | H8: Homepower 2 | J8: 117.53 | K8: =ROUND(J8 * (1 + VAT), 2) -> 135.16 | L8: 180.94 | M8: =ROUND(L8 * (1 + VAT), 2) -> 208.08 | N8: 9.43 | O8: =ROUND(N8 * (1 + VAT), 2) -> 10.84
A9: Homepower 3 | B9: H3 | C9: 0 | D9: 1 | E9: H301N | H9: Homepower 3 | J9: 117.53 | K9: =ROUND(J9 * (1 + VAT), 2) -> 135.16 | L9: 180.94 | M9: =ROUND(L9 * (1 + VAT), 2) -> 208.08 | N9: 19.48 | O9: =ROUND(N9 * (1 + VAT), 2) -> 22.4
A10: Homepower 4 | B10: H4 | C10: 0 | D10: 1 | E10: H401N | H10: Homepower 4 | J10: 117.53 | K10: =ROUND(J10 * (1 + VAT), 2) -> 135.16 | L10: 189 | M10: =ROUND(L10 * (1 + VAT), 2) -> 217.35 | N10: 3.07 | O10: =ROUND(N10 * (1 + VAT), 2) -> 3.53
J12: Energy charge [c/kWh] | L12: Network capacity charge [R/kVA]
K13: VAT incl | M13: VAT incl
A14: Homepower Bulk < 500V | B14: HB | C14: 0 | D14: 1 | E14: =B14&C14&D14&IF($A$2="Non-municipal","N",IF($A$2="Municiple","Y","error")) -> HB01N | H14: Homepower Bulk | J14: 154.31 | K14: =ROUND(J14 * (1 + VAT), 2) -> 177.46 | L14: 31.93 | M14: =ROUND(L14 * (1 + VAT), 2) -> 36.72
H15: * The Network capacity charge is based on the NMD or on the maximum demand if measured.

Sheet Homepower Munic inc
H1: Back to menu
A2: Municiple | H2: Homepower tariffs | N2: Local authority
J4: Energy charge [c/kWh] | L4: Energy charge [c/kWh] | N4: Network capacity charge [R/POD/day]
A5: Tariff | B5: Tariff nameBillcode | C5: Tx zone | D5: Voltage | E5: Billcode | J5: Block 1 [>0 - 600 kWh] | K5: VAT incl | L5: Block 2 [>600 kWh] | M5: VAT incl | O5: VAT incl
A6: Homepower 1 | B6: H1 | C6: 0 | D6: 1 | E6: =B6&C6&D6&IF($A$2="Non-municipal","N",IF($A$2="Municiple","Y","error")) -> H101Y | H6: Homepower 1 | J6: 117.65 | K6: =ROUND(J6 * (1 + VAT), 2) -> 135.3 | L6: 185.77 | M6: =ROUND(L6 * (1 + VAT), 2) -> 213.64 | N6: 5.03 | O6: =ROUND(N6 * (1 + VAT), 2) -> 5.78
A7: Homepower 2 | B7: H2 | C7: 0 | D7: 1 | E7: =B7&C7&D7&IF($A$2="Non-municipal","N",IF($A$2="Municiple","Y","error")) -> H201Y | H7: Homepower 2 | J7: 117.65 | K7: =ROUND(J7 * (1 + VAT), 2) -> 135.3 | L7: 181.11 | M7: =ROUND(L7 * (1 + VAT), 2) -> 208.28 | N7: 9.44 | O7: =ROUND(N7 * (1 + VAT), 2) -> 10.86
A8: Homepower 3 | B8: H3 | C8: 0 | D8: 1 | E8: H301Y | H8: Homepower 3 | J8: 117.65 | K8: =ROUND(J8 * (1 + VAT), 2) -> 135.3 | L8: 181.11 | M8: =ROUND(L8 * (1 + VAT), 2) -> 208.28 | N8: 19.5 | O8: =ROUND(N8 * (1 + VAT), 2) -> 22.43
A9: Homepower 4 | B9: H4 | C9: 0 | D9: 1 | E9: H401Y | H9: Homepower 4 | J9: 117.65 | K9: =ROUND(J9 * (1 + VAT), 2) -> 135.3 | L9: 189.19 | M9: =ROUND(L9 * (1 + VAT), 2) -> 217.57 | N9: 3.08 | O9: =ROUND(N9 * (1 + VAT), 2) -> 3.54

Sheet Homelight inc
H1: Back to menu
A2: Non-municipal | H2: Homelight tariffs Non-local authority
H4: Homelight 60A | J4: Energy charge [c/kWh]
A5: Tariff | B5: Tariff nameBillcode | C5: Tx zone | D5: Voltage | E5: Billcode | K5: VAT incl
A6: Homelight 1 60A | B6: HL16 | C6: 0 | D6: 1 | E6: =B6&C6&D6&IF($A$2="Non-municipal","N",IF($A$2="Municiple","Y","error")) -> HL1601N | H6: Block 1 [> 0 - 600 kWh] | J6: 111.19 | K6: =ROUND(J6 * (1 + VAT), 2) -> 127.87
A7: Homelight 2 60A | B7: HL26 | C7: 0 | D7: 1 | E7: =B7&C7&D7&IF($A$2="Non-municipal","N",IF($A$2="Municiple","Y","error")) -> HL2601N | H7: Block 2 [>600 kWh] | J7: 189 | K7: =ROUND(J7 * (1 + VAT), 2) -> 217.35
H10: Homelight 20A | J10: Energy charge [c/kWh]
K11: VAT incl
A12: Homelight 1 20A | B12: HL12 | C12: 0 | D12: 1 | E12: =B12&C12&D12&IF($A$2="Non-municipal","N",IF($A$2="Municiple","Y","error")) -> HL1201N | H12: Block 1 [> 0 - 350 kWh] | J12: 98.24 | K12: =ROUND(J12 * (1 + VAT), 2) -> 112.98
A13: Homelight 2 20A | B13: HL22 | C13: 0 | D13: 1 | E13: =B13&C13&D13&IF($A$2="Non-municipal","N",IF($A$2="Municiple","Y","error")) -> HL2201N | H13: Block 2 [>350 kWh] | J13: 111.32 | K13: =ROUND(J13 * (1 + VAT), 2) -> 128.02

Sheet Nightsave Rural inc
G1: Back to menu
A2: Non-municipal | G2: Nightsave Rural tariff | R2: Non-local authority | AF2: =SUM(#REF!,#REF!,#REF!,#REF!,#REF!,#REF!,#REF!,#REF!,#REF!,#REF!,#REF!,#REF!,#REF!,#REF!,#REF!) ->  | AG2: check value
J4: Active energy charge [c/kWh] | N4: Energy demand charges [R/kVA/m] | R4: Network capacity charges [R/kVA/m]
H5: Transmission zone | J5: High demand season [Jun - Aug] | L5: Low demand season [Sep - May] | N5: High demand season [Jun - Aug] | P5: Low demand season [Sep - May]
I6: Voltage
A7: Tariff | B7: Tariff nameBillcode | C7: Tx zone | D7: Voltage | E7: Billcode | K7: VAT incl | M7: VAT incl | O7: VAT incl | Q7: VAT incl | S7: VAT incl
A8: Nightsave Rural | B8: NR | C8: 0 | D8: 1 | E8: =B8&C8&D8&IF($A$2="Non-municipal","N",IF($A$2="Municiple","Y","error")) -> NR01N | H8: ≤ 300km | I8: < 500V | J8: 73.97 | K8: =ROUND(J8 * (1 + VAT), 2) -> 85.07 | L8: 57.48 | M8: =ROUND(L8 * (1 + VAT), 2) -> 66.1 | N8: 247.85 | O8: =ROUND(N8 * (1 + VAT), 2) -> 285.03 | P8: 131.18 | Q8: =ROUND(P8 * (1 + VAT), 2) -> 150.86 | R8: 12.53 | S8: =ROUND(R8 * (1 + VAT), 2) -> 14.41
A9: Nightsave Rural | B9: NR | C9: 0 | D9: 2 | E9: =B9&C9&D9&IF($A$2="Non-municipal","N",IF($A$2="Municiple","Y","error")) -> NR02N | I9: ≥ 500V & ≤ 22kV | J9: 73.1 | K9: 84.07 | L9: 56.83 | M9: 65.35 | N9: 240.17 | O9: 276.2 | P9: 126.52 | Q9: 145.5 | R9: 11.51 | S9: 13.24
A10: Nightsave Rural | B10: NR | E10: NRN | J10: 0 | L10: 0 | N10: 0 | O10: 0 | P10: 0 | Q10: 0 | R10: 0
A11: Nightsave Rural | B11: NR | E11: NRN | J11: 0 | L11: 0 | N11: 0 | O11: 0 | P11: 0 | Q11: 0 | R11: 0
A12: Nightsave Rural | B12: NR | C12: 1 | D12: 1 | E12: NR11N | H12: > 300km and ≤ 600km | I12: < 500V | J12: 74.7 | K12: 85.91 | L12: 58.06 | M12: 66.77 | N12: 250.84 | O12: 288.47 | P12: 133 | Q12: 152.95 | R12: 12.56 | S12: 14.44
A13: Nightsave Rural | B13: NR | C13: 1 | D13: 2 | E13: NR12N | I13: ≥ 500V & ≤ 22kV | J13: 73.85 | K13: 84.93 | L13: 57.4 | M13: 66.01 | N13: 243.1 | O13: 279.57 | P13: 128.28 | Q13: 147.52 | R13: 11.56 | S13: 13.29
A14: Nightsave Rural | B14: NR | E14: NRN | J14: 0 | L14: 0 | N14: 0 | O14: 0 | P14: 0 | Q14: 0 | R14: 0
A15: Nightsave Rural | B15: NR | E15: NRN | J15: 0 | L15: 0 | N15: 0 | O15: 0 | P15: 0 | Q15: 0 | R15: 0
A16: Nightsave Rural | B16: NR | C16: 2 | D16: 1 | E16: NR21N | H16: > 600km and ≤ 900km | I16: < 500V | J16: 75.45 | K16: 86.77 | L16: 58.62 | M16: 67.41 | N16: 253.85 | O16: 291.93 | P16: 134.79 | Q16: 155.01 | R16: 12.68 | S16: 14.58
A17: Nightsave Rural | B17: NR | C17: 2 | D17: 2 | E17: NR22N | I17: ≥ 500V & ≤ 22kV | J17: 74.58 | K17: 85.77 | L17: 57.98 | M17: 66.68 | N17: 246.02 | O17: 282.92 | P17: 130.05 | Q17: 149.56 | R17: 11.64 | S17: 13.39
A18: Nightsave Rural | B18: NR | E18: NRN | J18: 0 | L18: 0 | N18: 0 | O18: 0 | P18: 0 | Q18: 0 | R18: 0
A19: Nightsave Rural | B19: NR | E19: NRN | J19: 0 | L19: 0 | N19: 0 | O19: 0 | P19: 0 | Q19: 0 | R19: 0
A20: Nightsave Rural | B20: NR | C20: 3 | D20: 1 | E20: NR31N | H20: > 900km | I20: < 500V | J20: 76.2 | K20: 87.63 | L20: 59.21 | M20: 68.09 | N20: 256.93 | O20: =ROUND(N20 * (1 + VAT), 2) -> 295.47 | P20: 136.65 | Q20: =ROUND(P20 * (1 + VAT), 2) -> 157.15 | R20: 12.71 | S20: 14.62
A21: Nightsave Rural | B21: NR | C21: 3 | D21: 2 | E21: NR32N | I21: ≥ 500V & ≤ 22kV | J21: 75.3 | K21: 86.6 | L21: 58.54 | M21: 67.32 | N21: 249.02 | O21: 286.37 | P21: 131.87 | Q21: 151.65 | R21: 11.66 | S21: 13.41
H26: Customer categories | J26: Service charge [R/account/day] | L26: Administration charge [R/POD/day]
A28: Tariff | B28: Tariff nameBillcode | C28: Tx zone | D28: Voltage | E28: Billcode | K28: VAT incl | M28: VAT incl
A29: Nightsave Rural | B29: NR | C29: 0 | D29: 1 | E29: =B29&C29&D29&IF($A$2="Non-municipal","N",IF($A$2="Municiple","Y","error")) -> NR01N | H29: ≤ 100 kVA | J29: 17.23 | K29: =ROUND(J29 * (1 + VAT), 2) -> 19.81 | L29: 4.89 | M29: =ROUND(L29 * (1 + VAT), 2) -> 5.62
A30: Nightsave Rural | B30: NR | C30: 0 | D30: 1 | E30: NR01N | H30: > 100 kVA & ≤ 500 kVA | J30: 58.75 | K30: =ROUND(J30 * (1 + VAT), 2) -> 67.56 | L30: 27.24 | M30: =ROUND(L30 * (1 + VAT), 2) -> 31.33 | P30: Ancillary service charge [c/kWh] | R30: Network demand charge [c/kWh] in all time-of-use periods
A31: Nightsave Rural | B31: NR | C31: 0 | D31: 1 | E31: NR01N | H31: > 500 kVA & ≤ 1 MVA | J31: 180.75 | K31: =ROUND(J31 * (1 + VAT), 2) -> 207.86 | L31: 41.81 | M31: =ROUND(L31 * (1 + VAT), 2) -> 48.08 | O31: Voltage | Q31: VAT incl | S31: VAT incl
A32: Nightsave Rural | B32: NR | C32: 0 | D32: 1 | E32: NR01N | H32: > 1 MVA | J32: 180.75 | K32: =ROUND(J32 * (1 + VAT), 2) -> 207.86 | L32: 77.58 | M32: =ROUND(L32 * (1 + VAT), 2) -> 89.22 | O32: < 500V | P32: 0.39 | Q32: =ROUND(P32 * (1 + VAT), 2) -> 0.45 | R32: 24.93 | S32: =ROUND(R32 * (1 + VAT), 2) -> 28.67
A33: Nightsave Rural | B33: NR | C33: 0 | D33: 1 | E33: NR01N | H33: Key customers | J33: 3542.53 | K33: =ROUND(J33 * (1 + VAT), 2) -> 4073.91 | L33: 77.58 | M33: =ROUND(L33 * (1 + VAT), 2) -> 89.22 | O33: ≥ 500V & ≤ 22kV | P33: 0.39 | Q33: =ROUND(P33 * (1 + VAT), 2) -> 0.45 | R33: 21.86 | S33: =ROUND(R33 * (1 + VAT), 2) -> 25.14
A34: Nightsave Rural | B34: NR | C34: 0 | D34: 2 | E34: NR02N

Sheet Nightsave Rural Munic inc
G1: Back to menu
A2: Municiple | G2: Nightsave Rural tariff | R2: Local authority | AF2: =SUM(#REF!,#REF!,#REF!,#REF!,#REF!,#REF!,#REF!,#REF!,#REF!,#REF!,#REF!,#REF!,#REF!,#REF!,#REF!) ->  | AG2: check value
J4: Active energy charge [c/kWh] | N4: Energy demand charges [R/kVA/m] | R4: Network capacity charges [R/kVA/m]
H5: Transmission zone | J5: High demand season [Jun - Aug] | L5: Low demand season [Sep - May] | N5: High demand season [Jun - Aug] | P5: Low demand season [Sep - May]
I6: Voltage
A7: Tariff | B7: Tariff nameBillcode | C7: Tx zone | D7: Voltage | E7: Billcode | K7: VAT incl | M7: VAT incl | O7: VAT incl | Q7: VAT incl | S7: VAT incl
A8: Nightsave Rural | B8: NR | C8: 0 | D8: 1 | E8: =B8&C8&D8&IF($A$2="Non-municipal","N",IF($A$2="Municiple","Y","error")) -> NR01Y | H8: ≤ 300km | I8: < 500V | J8: 75.81 | K8: =ROUND(J8 * (1 + VAT), 2) -> 87.18 | L8: 58.91 | M8: =ROUND(L8 * (1 + VAT), 2) -> 67.75 | N8: 248.09 | O8: =ROUND(N8 * (1 + VAT), 2) -> 285.3 | P8: 131.32 | Q8: =ROUND(P8 * (1 + VAT), 2) -> 151.02 | R8: 12.67 | S8: =ROUND(R8 * (1 + VAT), 2) -> 14.57
A9: Nightsave Rural | B9: NR | C9: 0 | D9: 2 | E9: =B9&C9&D9&IF($A$2="Non-municipal","N",IF($A$2="Municiple","Y","error")) -> NR02Y | I9: ≥ 500V & ≤ 22kV | J9: 74.92 | K9: 86.16 | L9: 58.25 | M9: 66.99 | N9: 240.41 | O9: 276.47 | P9: 126.63 | Q9: 145.62 | R9: 11.63 | S9: 13.37
A10: Nightsave Rural | B10: NR | E10: NRY | J10: 0 | L10: 0 | N10: 0 | O10: 0 | P10: 0 | Q10: 0 | R10: 0
A11: Nightsave Rural | B11: NR | E11: NRY | J11: 0 | L11: 0 | N11: 0 | O11: 0 | P11: 0 | Q11: 0 | R11: 0
A12: Nightsave Rural | B12: NR | C12: 1 | D12: 1 | E12: NR11Y | H12: > 300km and ≤ 600km | I12: < 500V | J12: 76.57 | K12: 88.06 | L12: 59.51 | M12: 68.44 | N12: 251.11 | O12: 288.78 | P12: 133.13 | Q12: 153.1 | R12: 12.7 | S12: 14.61
A13: Nightsave Rural | B13: NR | C13: 1 | D13: 2 | E13: NR12Y | I13: ≥ 500V & ≤ 22kV | J13: 75.66 | K13: 87.01 | L13: 58.83 | M13: 67.65 | N13: 243.35 | O13: 279.85 | P13: 128.4 | Q13: 147.66 | R13: 11.68 | S13: 13.43
A14: Nightsave Rural | B14: NR | E14: NRY | J14: 0 | L14: 0 | N14: 0 | O14: 0 | P14: 0 | Q14: 0 | R14: 0
A15: Nightsave Rural | B15: NR | E15: NRY | J15: 0 | L15: 0 | N15: 0 | O15: 0 | P15: 0 | Q15: 0 | R15: 0
A16: Nightsave Rural | B16: NR | C16: 2 | D16: 1 | E16: NR21Y | H16: > 600km and ≤ 900km | I16: < 500V | J16: 77.31 | K16: 88.91 | L16: 60.08 | M16: 69.09 | N16: 254.11 | O16: 292.23 | P16: 134.92 | Q16: 155.16 | R16: 12.82 | S16: 14.74
A17: Nightsave Rural | B17: NR | C17: 2 | D17: 2 | E17: NR22Y | I17: ≥ 500V & ≤ 22kV | J17: 76.41 | K17: 87.87 | L17: 59.41 | M17: 68.32 | N17: 246.28 | O17: 283.22 | P17: 130.18 | Q17: 149.71 | R17: 11.75 | S17: 13.51
A18: Nightsave Rural | B18: NR | E18: NRY | J18: 0 | L18: 0 | N18: 0 | O18: 0 | P18: 0 | Q18: 0 | R18: 0
A19: Nightsave Rural | B19: NR | E19: NRY | J19: 0 | L19: 0 | N19: 0 | O19: 0 | P19: 0 | Q19: 0 | R19: 0
A20: Nightsave Rural | B20: NR | C20: 3 | D20: 1 | E20: NR31Y | H20: > 900km | I20: < 500V | J20: 78.09 | K20: 89.8 | L20: 60.67 | M20: 69.77 | N20: 257.19 | O20: 295.77 | P20: 136.78 | Q20: 157.3 | R20: 12.84 | S20: 14.77
A21: Nightsave Rural | B21: NR | C21: 3 | D21: 2 | E21: NR32Y | I21: ≥ 500V & ≤ 22kV | J21: 77.16 | K21: 88.73 | L21: 59.98 | M21: 68.98 | N21: 249.28 | O21: 286.67 | P21: 132 | Q21: 151.8 | R21: 11.76 | S21: 13.52
H26: Customer categories | J26: Service charge [R/account/day] | L26: Administration charge [R/POD/day]
A28: Tariff | B28: Tariff nameBillcode | C28: Tx zone | D28: Voltage | E28: Billcode | K28: VAT incl | M28: VAT incl
A29: Nightsave Rural | B29: NR | C29: 0 | D29: 1 | E29: =B29&C29&D29&IF($A$2="Non-municipal","N",IF($A$2="Municiple","Y","error")) -> NR01Y | H29: ≤ 100 kVA | J29: 17.17 | K29: =ROUND(J29 * (1 + VAT), 2) -> 19.75 | L29: 4.87 | M29: =ROUND(L29 * (1 + VAT), 2) -> 5.6
A30: Nightsave Rural | B30: NR | C30: 0 | D30: 1 | E30: =B30&C30&D30&IF($A$2="Non-municipal","N",IF($A$2="Municiple","Y","error")) -> NR01Y | H30: > 100 kVA & ≤ 500 kVA | J30: 58.55 | K30: =ROUND(J30 * (1 + VAT), 2) -> 67.33 | L30: 27.14 | M30: =ROUND(L30 * (1 + VAT), 2) -> 31.21 | P30: Ancillary service charge [c/kWh] | R30: Network demand charge [c/kWh] in all time-of-use periods
A31: Nightsave Rural | B31: NR | C31: 0 | D31: 1 | E31: =B31&C31&D31&IF($A$2="Non-municipal","N",IF($A$2="Municiple","Y","error")) -> NR01Y | H31: > 500 kVA & ≤ 1 MVA | J31: 180.12 | K31: =ROUND(J31 * (1 + VAT), 2) -> 207.14 | L31: 41.65 | M31: =ROUND(L31 * (1 + VAT), 2) -> 47.9 | O31: Voltage | Q31: VAT incl | S31: VAT incl
A32: Nightsave Rural | B32: NR | C32: 0 | D32: 1 | E32: =B32&C32&D32&IF($A$2="Non-municipal","N",IF($A$2="Municiple","Y","error")) -> NR01Y | H32: > 1 MVA | J32: 180.12 | K32: =ROUND(J32 * (1 + VAT), 2) -> 207.14 | L32: 77.3 | M32: =ROUND(L32 * (1 + VAT), 2) -> 88.9 | O32: < 500V | P32: 0.39 | Q32: =ROUND(P32 * (1 + VAT), 2) -> 0.45 | R32: 25.21 | S32: =ROUND(R32 * (1 + VAT), 2) -> 28.99
A33: Nightsave Rural | B33: NR | C33: 0 | D33: 1 | E33: =B33&C33&D33&IF($A$2="Non-municipal","N",IF($A$2="Municiple","Y","error")) -> NR01Y | H33: Key customers | J33: 3529.79 | K33: =ROUND(J33 * (1 + VAT), 2) -> 4059.26 | L33: 77.3 | M33: =ROUND(L33 * (1 + VAT), 2) -> 88.9 | O33: ≥ 500V & ≤ 22kV | P33: 0.39 | Q33: =ROUND(P33 * (1 + VAT), 2) -> 0.45 | R33: 22.06 | S33: =ROUND(R33 * (1 + VAT), 2) -> 25.37

Sheet Ruraflex inc
F1: Back to menu
A2: Non-municipal | F2: Ruraflex tariff | S2: Non-local authority | AE2: =SUM(#REF!,#REF!,#REF!,#REF!,#REF!,#REF!,#REF!,#REF!,#REF!,#REF!,#REF!,#REF!) ->  | AF2: check value
I4: Active energy charge [c/kWh] | U4: Network capacity charges [R/kVA/m]
G5: Transmission zone | I5: High demand season [Jun - Aug] | O5: Low demand season [Sep - May]
H6: Voltage | I6: Peak | K6: Standard | M6: Off Peak | O6: Peak | Q6: Standard | S6: Off Peak
A7: Tariff | B7: Tariff nameBillcode | C7: Tx zone | D7: Voltage | J7: VAT incl | L7: VAT incl | N7: VAT incl | P7: VAT incl | R7: VAT incl | T7: VAT incl | V7: VAT incl
A8: Ruraflex | B8: Ru | C8: 0 | D8: 1 | G8: ≤ 300km | H8: < 500V | I8: 303.27 | J8: =ROUND(I8 * (1 + VAT), 2) -> 348.76 | K8: 91.88 | L8: =ROUND(K8 * (1 + VAT), 2) -> 105.66 | M8: 49.9 | N8: =ROUND(M8 * (1 + VAT), 2) -> 57.39 | O8: 98.93 | P8: =ROUND(O8 * (1 + VAT), 2) -> 113.77 | Q8: 68.08 | R8: =ROUND(Q8 * (1 + VAT), 2) -> 78.29 | S8: 43.19 | T8: =ROUND(S8 * (1 + VAT), 2) -> 49.67 | U8: 17.51 | V8: =ROUND(U8 * (1 + VAT), 2) -> 20.14
A9: Ruraflex | B9: Ru | C9: 0 | D9: 2 | H9: ≥ 500V & ≤ 22kV | I9: 300.27 | J9: 345.31 | K9: 90.97 | L9: 104.62 | M9: 49.39 | N9: 56.8 | O9: 97.96 | P9: 112.65 | Q9: 67.41 | R9: 77.52 | S9: 42.75 | T9: 49.16 | U9: 16.05 | V9: 18.46
A10: Ruraflex | B10: Ru | I10: 0 | K10: 0 | M10: 0 | O10: 0 | Q10: 0 | S10: 0 | U10: 0
A11: Ruraflex | B11: Ru | I11: 0 | K11: 0 | M11: 0 | O11: 0 | Q11: 0 | S11: 0 | U11: 0
A12: Ruraflex | B12: Ru | C12: 1 | D12: 1 | G12: > 300km and ≤ 600km | H12: < 500V | I12: 306.31 | J12: 352.26 | K12: 92.79 | L12: 106.71 | M12: 50.39 | N12: 57.95 | O12: 99.91 | P12: 114.9 | Q12: 68.77 | R12: 79.09 | S12: 43.64 | T12: 50.19 | U12: 17.56 | V12: 20.19
A13: Ruraflex | B13: Ru | C13: 1 | D13: 2 | H13: ≥ 500V & ≤ 22kV | I13: 303.26 | J13: 348.75 | K13: 91.87 | L13: 105.65 | M13: 49.9 | N13: 57.39 | O13: 98.93 | P13: 113.77 | Q13: 68.07 | R13: 78.28 | S13: 43.19 | T13: 49.67 | U13: 16.15 | V13: 18.57
A14: Ruraflex | B14: Ru | I14: 0 | K14: 0 | M14: 0 | O14: 0 | Q14: 0 | S14: 0 | U14: 0
A15: Ruraflex | B15: Ru | I15: 0 | K15: 0 | M15: 0 | O15: 0 | Q15: 0 | S15: 0 | U15: 0
A16: Ruraflex | B16: Ru | C16: 2 | D16: 1 | G16: > 600km and ≤ 900km | H16: < 500V | I16: 309.38 | J16: 355.79 | K16: 93.73 | L16: 107.79 | M16: 50.89 | N16: 58.52 | O16: 100.92 | P16: 116.06 | Q16: 69.45 | R16: 79.87 | S16: 44.07 | T16: 50.68 | U16: 17.66 | V16: 20.31
A17: Ruraflex | B17: Ru | C17: 2 | D17: 2 | H17: ≥ 500V & ≤ 22kV | I17: 306.3 | J17: 352.25 | K17: 92.78 | L17: 106.7 | M17: 50.39 | N17: 57.95 | O17: 99.91 | P17: 114.9 | Q17: 68.77 | R17: 79.09 | S17: 43.64 | T17: 50.19 | U17: 16.22 | V17: 18.65
A18: Ruraflex | B18: Ru | I18: 0 | K18: 0 | M18: 0 | O18: 0 | Q18: 0 | S18: 0 | U18: 0
A19: Ruraflex | B19: Ru | I19: 0 | K19: 0 | M19: 0 | O19: 0 | Q19: 0 | S19: 0 | U19: 0
A20: Ruraflex | B20: Ru | C20: 3 | D20: 1 | G20: > 900km | H20: < 500V | I20: 312.46 | J20: 359.33 | K20: 94.66 | L20: 108.86 | M20: 51.39 | N20: 59.1 | O20: 101.9 | P20: 117.19 | Q20: 70.14 | R20: 80.66 | S20: 44.51 | T20: 51.19 | U20: 17.73 | V20: 20.39
A21: Ruraflex | B21: Ru | C21: 3 | D21: 2 | H21: ≥ 500V & ≤ 22kV | I21: 309.37 | J21: 355.78 | K21: 93.73 | L21: 107.79 | M21: 50.89 | N21: 58.52 | O21: 100.92 | P21: 116.06 | Q21: 69.45 | R21: 79.87 | S21: 44.07 | T21: 50.68 | U21: 16.23 | V21: 18.66
M22: 0
M23: 0
G26: Customer categories | I26: Service charge [R/account/day] | K26: Administration charge [R/POD/day] | P26: Ancillary service charge [c/kWh] | R26: Network demand charge [c/kWh] in all time-of-use periods
N27: Voltage | Q27: VAT incl | S27: VAT incl
A28: Tariff | B28: Tariff nameBillcode | C28: Tx zone | D28: Voltage | J28: VAT incl | L28: VAT incl | N28: < 500V | P28: 0.39 | Q28: =ROUND(P28 * (1 + VAT), 2) -> 0.45 | R28: 24.93 | S28: =ROUND(R28 * (1 + VAT), 2) -> 28.67
A29: Ruraflex | B29: Ru | C29: 0 | D29: 1 | G29: ≤ 100 kVA | I29: 17.23 | J29: =ROUND(I29 * (1 + VAT), 2) -> 19.81 | K29: 4.89 | L29: =ROUND(K29 * (1 + VAT), 2) -> 5.62 | N29: ≥ 500V & < 22kV | P29: 0.39 | Q29: =ROUND(P29 * (1 + VAT), 2) -> 0.45 | R29: 21.86 | S29: =ROUND(R29 * (1 + VAT), 2) -> 25.14
A30: Ruraflex | B30: Ru | C30: 0 | D30: 1 | G30: > 100 kVA & ≤ 500 kVA | I30: 58.75 | J30: =ROUND(I30 * (1 + VAT), 2) -> 67.56 | K30: 27.24 | L30: =ROUND(K30 * (1 + VAT), 2) -> 31.33
A31: Ruraflex | B31: Ru | C31: 0 | D31: 1 | G31: > 500 kVA & ≤ 1 MVA | I31: 180.75 | J31: =ROUND(I31 * (1 + VAT), 2) -> 207.86 | K31: 41.81 | L31: =ROUND(K31 * (1 + VAT), 2) -> 48.08 | N31: Reactive energy charge [c/kVArh]
A32: Ruraflex | B32: Ru | C32: 0 | D32: 1 | G32: > 1 MVA | I32: 180.75 | J32: =ROUND(I32 * (1 + VAT), 2) -> 207.86 | K32: 77.58 | L32: =ROUND(K32 * (1 + VAT), 2) -> 89.22 | N32: High season | P32: Low season
A33: Ruraflex | B33: Ru | C33: 0 | D33: 1 | G33: Key customers | I33: 3542.53 | J33: =ROUND(I33 * (1 + VAT), 2) -> 4073.91 | K33: 77.58 | L33: =ROUND(K33 * (1 + VAT), 2) -> 89.22 | O33: VAT incl | Q33: VAT incl
N34: 8.42 | O34: =ROUND(N34 * (1 + VAT), 2) -> 9.68 | P34: 0 | Q34: =ROUND(P34 * (1 + VAT), 2) -> 0

Sheet Ruraflex Munic inc
G1: Back to menu
A2: Municiple | G2: Ruraflex tariff | T2: Local authority | AF2: =SUM(#REF!,#REF!,#REF!,#REF!,#REF!,#REF!,#REF!,#REF!,#REF!,#REF!,#REF!,#REF!) ->  | AG2: check value
J4: Active energy charge [c/kWh] | V4: Network capacity charges [R/kVA/m]
H5: Transmission zone | J5: High demand season [Jun - Aug] | P5: Low demand season [Sep - May]
I6: Voltage | J6: Peak | L6: Standard | N6: Off Peak | P6: Peak | R6: Standard | T6: Off Peak
A7: Tariff | B7: Tariff nameBillcode | C7: Tx zone | D7: Voltage | E7: Billcode | K7: VAT incl | M7: VAT incl | O7: VAT incl | Q7: VAT incl | S7: VAT incl | U7: VAT incl | W7: VAT incl
A8: Ruraflex | B8: Ru | C8: 0 | D8: 1 | E8: =B8&C8&D8&IF($A$2="Non-municipal","N",IF($A$2="Municiple","Y","error")) -> Ru01Y | H8: ≤ 300km | I8: < 500V | J8: 310.83 | K8: =ROUND(J8 * (1 + VAT), 2) -> 357.45 | L8: 94.15 | M8: =ROUND(L8 * (1 + VAT), 2) -> 108.27 | N8: 51.14 | O8: =ROUND(N8 * (1 + VAT), 2) -> 58.81 | P8: 101.4 | Q8: =ROUND(P8 * (1 + VAT), 2) -> 116.61 | R8: 69.78 | S8: =ROUND(R8 * (1 + VAT), 2) -> 80.25 | T8: 44.27 | U8: =ROUND(T8 * (1 + VAT), 2) -> 50.91 | V8: 17.68 | W8: =ROUND(V8 * (1 + VAT), 2) -> 20.33
A9: Ruraflex | B9: Ru | C9: 0 | D9: 2 | E9: =B9&C9&D9&IF($A$2="Non-municipal","N",IF($A$2="Municiple","Y","error")) -> Ru02Y | I9: ≥ 500V & ≤ 22kV | J9: 307.74 | K9: 353.9 | L9: 93.23 | M9: 107.21 | N9: 50.62 | O9: 58.21 | P9: 100.41 | Q9: 115.47 | R9: 69.07 | S9: 79.43 | T9: 43.82 | U9: 50.39 | V9: 16.22 | W9: 18.65
A10: Ruraflex | B10: Ru | E10: RuY | J10: 0 | L10: 0 | N10: 0 | P10: 0 | R10: 0 | T10: 0 | V10: 0
A11: Ruraflex | B11: Ru | E11: RuY | J11: 0 | L11: 0 | N11: 0 | P11: 0 | R11: 0 | T11: 0 | V11: 0
A12: Ruraflex | B12: Ru | C12: 1 | D12: 1 | E12: Ru11Y | H12: > 300km and ≤ 600km | I12: < 500V | J12: 313.92 | K12: 361.01 | L12: 95.11 | M12: 109.38 | N12: 51.62 | O12: 59.36 | P12: 102.39 | Q12: 117.75 | R12: 70.48 | S12: 81.05 | T12: 44.72 | U12: 51.43 | V12: 17.75 | W12: 20.41
A13: Ruraflex | B13: Ru | C13: 1 | D13: 2 | E13: Ru12Y | I13: ≥ 500V & ≤ 22kV | J13: 310.82 | K13: 357.44 | L13: 94.14 | M13: 108.26 | N13: 51.14 | O13: 58.81 | P13: 101.4 | Q13: 116.61 | R13: 69.77 | S13: 80.24 | T13: 44.27 | U13: 50.91 | V13: 16.31 | W13: 18.76
A14: Ruraflex | B14: Ru | E14: RuY | J14: 0 | L14: 0 | N14: 0 | P14: 0 | R14: 0 | T14: 0 | V14: 0
A15: Ruraflex | B15: Ru | E15: RuY | J15: 0 | L15: 0 | N15: 0 | P15: 0 | R15: 0 | T15: 0 | V15: 0
A16: Ruraflex | B16: Ru | C16: 2 | D16: 1 | E16: Ru21Y | H16: > 600km and ≤ 900km | I16: < 500V | J16: 317.07 | K16: 364.63 | L16: 96.04 | M16: 110.45 | N16: 52.16 | O16: 59.98 | P16: 103.42 | Q16: 118.93 | R16: 71.16 | S16: 81.83 | T16: 45.17 | U16: 51.95 | V16: 17.85 | W16: 20.53
A17: Ruraflex | B17: Ru | C17: 2 | D17: 2 | E17: Ru22Y | I17: ≥ 500V & ≤ 22kV | J17: 313.91 | K17: 361 | L17: 95.1 | M17: 109.37 | N17: 51.62 | O17: 59.36 | P17: 102.39 | Q17: 117.75 | R17: 70.48 | S17: 81.05 | T17: 44.72 | U17: 51.43 | V17: 16.39 | W17: 18.85
A18: Ruraflex | B18: Ru | E18: RuY | J18: 0 | L18: 0 | N18: 0 | P18: 0 | R18: 0 | T18: 0 | V18: 0
A19: Ruraflex | B19: Ru | E19: RuY | J19: 0 | L19: 0 | N19: 0 | P19: 0 | R19: 0 | T19: 0 | V19: 0
A20: Ruraflex | B20: Ru | C20: 3 | D20: 1 | E20: Ru31Y | H20: > 900km | I20: < 500V | J20: 320.24 | K20: 368.28 | L20: 97.03 | M20: 111.58 | N20: 52.65 | O20: 60.55 | P20: 104.44 | Q20: 120.11 | R20: 71.9 | S20: 82.69 | T20: 45.61 | U20: 52.45 | V20: 17.9 | W20: 20.59
A21: Ruraflex | B21: Ru | C21: 3 | D21: 2 | E21: Ru32Y | I21: ≥ 500V & ≤ 22kV | J21: 317.06 | K21: 364.62 | L21: 96.04 | M21: 110.45 | N21: 52.16 | O21: 59.98 | P21: 103.42 | Q21: 118.93 | R21: 71.16 | S21: 81.83 | T21: 45.17 | U21: 51.95 | V21: 16.4 | W21: 18.86
N22: 0
N23: 0
H26: Customer categories | J26: Service charge [R/account/day] | L26: Administration charge [R/POD/day] | Q26: Ancillary service charge [c/kWh] | S26: Network demand charge [c/kWh] in all time-of-use periods
O27: Voltage | R27: VAT incl | T27: VAT incl
A28: Tariff | B28: Tariff nameBillcode | C28: Tx zone | D28: Voltage | E28: Billcode | K28: VAT incl | M28: VAT incl | O28: < 500V | Q28: 0.39 | R28: =ROUND(Q28 * (1 + VAT), 2) -> 0.45 | S28: 25.21 | T28: =ROUND(S28 * (1 + VAT), 2) -> 28.99
A29: Ruraflex | B29: Ru | C29: 0 | D29: 1 | E29: =B29&C29&D29&IF($A$2="Non-municipal","N",IF($A$2="Municiple","Y","error")) -> Ru01Y | H29: ≤ 100 kVA | J29: 17.17 | K29: =ROUND(J29 * (1 + VAT), 2) -> 19.75 | L29: 4.87 | M29: =ROUND(L29 * (1 + VAT), 2) -> 5.6 | O29: ≥ 500V & < 22kV | Q29: 0.39 | R29: =ROUND(Q29 * (1 + VAT), 2) -> 0.45 | S29: 22.06 | T29: =ROUND(S29 * (1 + VAT), 2) -> 25.37
A30: Ruraflex | B30: Ru | C30: 0 | D30: 1 | E30: =B30&C30&D30&IF($A$2="Non-municipal","N",IF($A$2="Municiple","Y","error")) -> Ru01Y | H30: > 100 kVA & ≤ 500 kVA | J30: 58.55 | K30: =ROUND(J30 * (1 + VAT), 2) -> 67.33 | L30: 27.14 | M30: =ROUND(L30 * (1 + VAT), 2) -> 31.21
A31: Ruraflex | B31: Ru | C31: 0 | D31: 1 | E31: =B31&C31&D31&IF($A$2="Non-municipal","N",IF($A$2="Municiple","Y","error")) -> Ru01Y | H31: > 500 kVA & ≤ 1 MVA | J31: 180.12 | K31: =ROUND(J31 * (1 + VAT), 2) -> 207.14 | L31: 41.65 | M31: =ROUND(L31 * (1 + VAT), 2) -> 47.9 | O31: Reactive energy charge [c/kVArh]
A32: Ruraflex | B32: Ru | C32: 0 | D32: 1 | E32: =B32&C32&D32&IF($A$2="Non-municipal","N",IF($A$2="Municiple","Y","error")) -> Ru01Y | H32: > 1 MVA | J32: 180.12 | K32: =ROUND(J32 * (1 + VAT), 2) -> 207.14 | L32: 77.3 | M32: =ROUND(L32 * (1 + VAT), 2) -> 88.9 | O32: High season | Q32: Low season
A33: Ruraflex | B33: Ru | C33: 0 | D33: 1 | E33: =B33&C33&D33&IF($A$2="Non-municipal","N",IF($A$2="Municiple","Y","error")) -> Ru01Y | H33: Key customers | J33: 3529.79 | K33: =ROUND(J33 * (1 + VAT), 2) -> 4059.26 | L33: 77.3 | M33: =ROUND(L33 * (1 + VAT), 2) -> 88.9 | P33: VAT incl | R33: VAT incl
O34: 8.38 | P34: =ROUND(O34 * (1 + VAT), 2) -> 9.64 | Q34: 0 | R34: =ROUND(Q34 * (1 + VAT), 2) -> 0

Sheet Ruraflex Gen inc
G1: Back to menu
A2: Non-municipal | G2: Ruraflex Gen tariff | T2: Non-local authority | AF2: =SUM(#REF!,#REF!,#REF!,#REF!,#REF!,#REF!,#REF!,#REF!,#REF!,#REF!,#REF!,#REF!) ->  | AG2: check value
J4: Active energy charge for loads [c/kWh] | V4: Network capacity charges [R/kVA/m]
H5: Transmission zone | J5: High demand season [Jun - Aug] | P5: Low demand season [Sep - May]
I6: Voltage | J6: Peak | L6: Standard | N6: Off Peak | P6: Peak | R6: Standard | T6: Off Peak
A7: Tariff | B7: Tariff nameBillcode | C7: Tx zone | D7: Voltage | E7: Billcode | K7: VAT incl | M7: VAT incl | O7: VAT incl | Q7: VAT incl | S7: VAT incl | U7: VAT incl | W7: VAT incl
A8: Genflex rural | B8: GR | C8: 0 | D8: 1 | E8: =B8&C8&D8&IF($A$2="Non-municipal","N",IF($A$2="Municiple","Y","error")) -> GR01N | H8: ≤ 300km | I8: < 500V | J8: 303.27 | K8: =ROUND(J8 * (1 + VAT), 2) -> 348.76 | L8: 91.88 | M8: =ROUND(L8 * (1 + VAT), 2) -> 105.66 | N8: 49.9 | O8: =ROUND(N8 * (1 + VAT), 2) -> 57.39 | P8: 98.93 | Q8: =ROUND(P8 * (1 + VAT), 2) -> 113.77 | R8: 68.08 | S8: =ROUND(R8 * (1 + VAT), 2) -> 78.29 | T8: 43.19 | U8: =ROUND(T8 * (1 + VAT), 2) -> 49.67 | V8: 17.51 | W8: =ROUND(V8 * (1 + VAT), 2) -> 20.14
A9: Genflex rural | B9: GR | C9: 0 | D9: 2 | E9: =B9&C9&D9&IF($A$2="Non-municipal","N",IF($A$2="Municiple","Y","error")) -> GR02N | I9: ≥ 500V & ≤ 22kV | J9: 300.27 | K9: 345.31 | L9: 90.97 | M9: 104.62 | N9: 49.39 | O9: 56.8 | P9: 97.96 | Q9: 112.65 | R9: 67.41 | S9: 77.52 | T9: 42.75 | U9: 49.16 | V9: 16.05 | W9: 18.46
A10: Genflex rural | B10: GR | E10: GRN | J10: 0 | L10: 0 | N10: 0 | P10: 0 | R10: 0 | T10: 0 | V10: 0
A11: Genflex rural | B11: GR | E11: GRN | J11: 0 | L11: 0 | N11: 0 | P11: 0 | R11: 0 | T11: 0 | V11: 0
A12: Genflex rural | B12: GR | C12: 1 | D12: 1 | E12: GR11N | H12: > 300km and ≤ 600km | I12: < 500V | J12: 306.31 | K12: 352.26 | L12: 92.79 | M12: 106.71 | N12: 50.39 | O12: 57.95 | P12: 99.91 | Q12: 114.9 | R12: 68.77 | S12: 79.09 | T12: 43.64 | U12: 50.19 | V12: 17.56 | W12: 20.19
A13: Genflex rural | B13: GR | C13: 1 | D13: 2 | E13: GR12N | I13: ≥ 500V & ≤ 22kV | J13: 303.26 | K13: 348.75 | L13: 91.87 | M13: 105.65 | N13: 49.9 | O13: 57.39 | P13: 98.93 | Q13: 113.77 | R13: 68.07 | S13: 78.28 | T13: 43.19 | U13: 49.67 | V13: 16.15 | W13: 18.57
A14: Genflex rural | B14: GR | E14: GRN | J14: 0 | L14: 0 | N14: 0 | P14: 0 | R14: 0 | T14: 0 | V14: 0
A15: Genflex rural | B15: GR | E15: GRN | J15: 0 | L15: 0 | N15: 0 | P15: 0 | R15: 0 | T15: 0 | V15: 0
A16: Genflex rural | B16: GR | C16: 2 | D16: 1 | E16: GR21N | H16: > 600km and ≤ 900km | I16: < 500V | J16: 309.38 | K16: 355.79 | L16: 93.73 | M16: 107.79 | N16: 50.89 | O16: 58.52 | P16: 100.92 | Q16: 116.06 | R16: 69.45 | S16: 79.87 | T16: 44.07 | U16: 50.68 | V16: 17.66 | W16: 20.31
A17: Genflex rural | B17: GR | C17: 2 | D17: 2 | E17: GR22N | I17: ≥ 500V & ≤ 22kV | J17: 306.3 | K17: 352.25 | L17: 92.78 | M17: 106.7 | N17: 50.39 | O17: 57.95 | P17: 99.91 | Q17: 114.9 | R17: 68.77 | S17: 79.09 | T17: 43.64 | U17: 50.19 | V17: 16.22 | W17: 18.65
A18: Genflex rural | B18: GR | E18: GRN | J18: 0 | L18: 0 | N18: 0 | P18: 0 | R18: 0 | T18: 0 | V18: 0
A19: Genflex rural | B19: GR | E19: GRN | J19: 0 | L19: 0 | N19: 0 | P19: 0 | R19: 0 | T19: 0 | V19: 0
A20: Genflex rural | B20: GR | C20: 3 | D20: 1 | E20: GR31N | H20: > 900km | I20: < 500V | J20: 312.46 | K20: 359.33 | L20: 94.66 | M20: 108.86 | N20: 51.39 | O20: 59.1 | P20: 101.9 | Q20: 117.19 | R20: 70.14 | S20: 80.66 | T20: 44.51 | U20: 51.19 | V20: 17.73 | W20: 20.39
A21: Genflex rural | B21: GR | C21: 3 | D21: 2 | E21: GR32N | I21: ≥ 500V & ≤ 22kV | J21: 309.37 | K21: 355.78 | L21: 93.73 | M21: 107.79 | N21: 50.89 | O21: 58.52 | P21: 100.92 | Q21: 116.06 | R21: 69.45 | S21: 79.87 | T21: 44.07 | U21: 50.68 | V21: 16.23 | W21: 18.66
N22: 0
N23: 0
A24: Gen-purchase | B24: NLPurchADJ | C24: 0 | D24: 4 | E24: =B24&C24&D24&IF($A$2="Non-municipal","N",IF($A$2="Municiple","Y","error")) -> NLPurchADJ04N
Q26: Ancillary service charge for loads and generators
H28: Customer categories | J28: Service charge [R/account/day] | L28: Administration charge [R/POD/day] | O28: Voltage | Q28: Ancillary service charge [c/kWh]
H29: [kVA or MVA = loads] | R29: VAT incl
A30: Tariff | B30: Tariff nameBillcode | C30: Tx zone | D30: Voltage | E30: Billcode | H30: [kW or MW = generators] | K30: VAT incl | M30: VAT incl | O30: < 500V | Q30: 0.39 | R30: =ROUND(Q30 * (1 + VAT), 2) -> 0.45
A31: Genflex rural | B31: GR | C31: 0 | D31: 1 | E31: =B31&C31&D31&IF($A$2="Non-municipal","N",IF($A$2="Municiple","Y","error")) -> GR01N | H31: ≤ 100 kVA/kW | J31: 17.23 | K31: =ROUND(J31 * (1 + VAT), 2) -> 19.81 | L31: 4.89 | M31: =ROUND(L31 * (1 + VAT), 2) -> 5.62 | O31: ≥ 500V & < 22kV | Q31: 0.39 | R31: =ROUND(Q31 * (1 + VAT), 2) -> 0.45
A32: Genflex rural | B32: GR | C32: 0 | D32: 1 | E32: =B32&C32&D32&IF($A$2="Non-municipal","N",IF($A$2="Municiple","Y","error")) -> GR01N | H32: > 100 KVA/kW & ≤ 500 kVA/kW | J32: 58.75 | K32: =ROUND(J32 * (1 + VAT), 2) -> 67.56 | L32: 27.24 | M32: =ROUND(L32 * (1 + VAT), 2) -> 31.33
A33: Genflex rural | B33: GR | C33: 0 | D33: 1 | E33: =B33&C33&D33&IF($A$2="Non-municipal","N",IF($A$2="Municiple","Y","error")) -> GR01N | H33: > 500 kVA/kW & ≤ 1 MVA/MW | J33: 180.75 | K33: =ROUND(J33 * (1 + VAT), 2) -> 207.86 | L33: 41.81 | M33: =ROUND(L33 * (1 + VAT), 2) -> 48.08 | O33: Reactive energy charge [c/kVArh] | S33: Network demand charge [c/kWh] for loads in all time-of-use periods
A34: Genflex rural | B34: GR | C34: 0 | D34: 1 | E34: =B34&C34&D34&IF($A$2="Non-municipal","N",IF($A$2="Municiple","Y","error")) -> GR01N | H34: > 1 MVA/MW | J34: 180.75 | K34: =ROUND(J34 * (1 + VAT), 2) -> 207.86 | L34: 77.58 | M34: =ROUND(L34 * (1 + VAT), 2) -> 89.22 | O34: High season | Q34: Low season | T34: VAT incl
A35: Genflex rural | B35: GR | C35: 0 | D35: 1 | E35: =B35&C35&D35&IF($A$2="Non-municipal","N",IF($A$2="Municiple","Y","error")) -> GR01N | H35: Key customers | J35: 3542.53 | K35: =ROUND(J35 * (1 + VAT), 2) -> 4073.91 | L35: 77.58 | M35: =ROUND(L35 * (1 + VAT), 2) -> 89.22 | P35: VAT incl | R35: VAT incl | S35: 24.93 | T35: =ROUND(S35 * (1 + VAT), 2) -> 28.67
O36: 8.42 | P36: =ROUND(O36 * (1 + VAT), 2) -> 9.68 | Q36: 0 | R36: =ROUND(Q36 * (1 + VAT), 2) -> 0 | S36: 21.86 | T36: =ROUND(S36 * (1 + VAT), 2) -> 25.14

Sheet Landrate inc
H1: Back to menu
A2: Non-municipal | H2: Landrate tariffs | R2: Non-local authority
J4: Energy charge [c/kWh] | L4: Ancillary service charge [c/kWh] | N4: Network demand charge [c/kWh] | P4: Network capacity charge [R/POD/day] | R4: Service charge [R/POD/day]
A5: Tariff | B5: Tariff nameBillcode | C5: Tx zone | D5: Voltage | E5: Billcode | K5: VAT incl | M5: VAT incl | O5: VAT incl | Q5: VAT incl | S5: VAT incl
A6: Landrate 1 | B6: L1 | C6: 0 | D6: 1 | E6: =B6&C6&D6&IF($A$2="Non-municipal","N",IF($A$2="Municiple","Y","error")) -> L101N | H6: Landrate 1 | J6: 99.79 | K6: =ROUND(J6 * (1 + VAT), 2) -> 114.76 | L6: 0.39 | M6: =ROUND(L6 * (1 + VAT), 2) -> 0.45 | N6: 24.93 | O6: =ROUND(N6 * (1 + VAT), 2) -> 28.67 | P6: 26.65 | Q6: =ROUND(P6 * (1 + VAT), 2) -> 30.65 | R6: 22.13 | S6: =ROUND(R6 * (1 + VAT), 2) -> 25.45
A7: Landrate 2 | B7: L2 | C7: 0 | D7: 1 | E7: =B7&C7&D7&IF($A$2="Non-municipal","N",IF($A$2="Municiple","Y","error")) -> L201N | H7: Landrate 2 | J7: 99.79 | K7: 114.76 | L7: 0.39 | M7: =ROUND(L7 * (1 + VAT), 2) -> 0.45 | N7: 24.93 | O7: =ROUND(N7 * (1 + VAT), 2) -> 28.67 | P7: 40.97 | Q7: =ROUND(P7 * (1 + VAT), 2) -> 47.12 | R7: 22.13 | S7: =ROUND(R7 * (1 + VAT), 2) -> 25.45
A8: Landrate 3 | B8: L3 | C8: 0 | D8: 1 | E8: L301N | H8: Landrate 3 | J8: 99.79 | K8: 114.76 | L8: 0.39 | M8: =ROUND(L8 * (1 + VAT), 2) -> 0.45 | N8: 24.93 | O8: =ROUND(N8 * (1 + VAT), 2) -> 28.67 | P8: 65.5 | Q8: =ROUND(P8 * (1 + VAT), 2) -> 75.33 | R8: 22.13 | S8: =ROUND(R8 * (1 + VAT), 2) -> 25.45
A9: Landrate 4 | B9: L4 | C9: 0 | D9: 1 | E9: L401N | H9: Landrate 4 | J9: 215.53 | K9: 247.86 | L9: 0.39 | M9: =ROUND(L9 * (1 + VAT), 2) -> 0.45 | N9: 24.93 | O9: =ROUND(N9 * (1 + VAT), 2) -> 28.67 | P9: 21.22 | Q9: =ROUND(P9 * (1 + VAT), 2) -> 24.4 | R9: 0 | S9: =ROUND(R9 * (1 + VAT), 2) -> 0
A10: Landlight | B10: Lt | C10: 0 | D10: 1 | E10: =B10&C10&D10&IF($A$2="Non-municipal","N",IF($A$2="Municiple","Y","error")) -> Lt01N | H10: Landlight 20A | J10: 286.93 | K10: 329.97
B11: Lt60 | C11: 0 | D11: 1 | E11: =B11&C11&D11&IF($A$2="Non-municipal","N",IF($A$2="Municiple","Y","error")) -> Lt6001N | H11: Landlight 60A | J11: 369.89 | K11: 425.37
A12: Landrate Dx | B12: Ld | C12: 0 | D12: 1 | E12: Ld01N | H12: Landrate Dx* | R12: 47.4632 | S12: =ROUND(R12 * (1 + VAT), 2) -> 54.58
H13: *R/day fixed charge inclusive of the following charges; energy, anciallary service, network demand, betwork capacity and service charge.

Sheet Landrate Munic inc
H1: Back to menu
A2: Municiple | H2: Landrate tariffs | S2: Local authority
J4: Energy charge [c/kWh] | L4: Ancillary service charge [c/kWh] | N4: Network demand charge [c/kWh] | P4: Network capacity charge [R/POD/day] | R4: Service charge [R/POD/day]
A5: Tariff | B5: Tariff nameBillcode | C5: Tx zone | D5: Voltage | E5: Billcode | K5: VAT incl | M5: VAT incl | O5: VAT incl | Q5: VAT incl | S5: VAT incl
A6: Landrate 1 | B6: L1 | C6: 0 | D6: 1 | E6: =B6&C6&D6&IF($A$2="Non-municipal","N",IF($A$2="Municiple","Y","error")) -> L101Y | H6: Landrate 1 | J6: 102.27 | K6: =ROUND(J6 * (1 + VAT), 2) -> 117.61 | L6: 0.39 | M6: =ROUND(L6 * (1 + VAT), 2) -> 0.45 | N6: 25.21 | O6: =ROUND(N6 * (1 + VAT), 2) -> 28.99 | P6: 26.92 | Q6: =ROUND(P6 * (1 + VAT), 2) -> 30.96 | R6: 22.04 | S6: =ROUND(R6 * (1 + VAT), 2) -> 25.35
A7: Landrate 2 | B7: L2 | C7: 0 | D7: 1 | E7: =B7&C7&D7&IF($A$2="Non-municipal","N",IF($A$2="Municiple","Y","error")) -> L201Y | H7: Landrate 2 | J7: 102.27 | K7: =ROUND(J7 * (1 + VAT), 2) -> 117.61 | L7: 0.39 | M7: =ROUND(L7 * (1 + VAT), 2) -> 0.45 | N7: 25.21 | O7: =ROUND(N7 * (1 + VAT), 2) -> 28.99 | P7: 41.38 | Q7: =ROUND(P7 * (1 + VAT), 2) -> 47.59 | R7: 22.04 | S7: =ROUND(R7 * (1 + VAT), 2) -> 25.35
A8: Landrate 3 | B8: L3 | C8: 0 | D8: 1 | E8: L301Y | H8: Landrate 3 | J8: 102.27 | K8: =ROUND(J8 * (1 + VAT), 2) -> 117.61 | L8: 0.39 | M8: =ROUND(L8 * (1 + VAT), 2) -> 0.45 | N8: 25.21 | O8: =ROUND(N8 * (1 + VAT), 2) -> 28.99 | P8: 66.17 | Q8: =ROUND(P8 * (1 + VAT), 2) -> 76.1 | R8: 22.04 | S8: =ROUND(R8 * (1 + VAT), 2) -> 25.35
A9: Landrate 4 | B9: L4 | C9: 0 | D9: 1 | E9: L401Y | H9: Landrate 4 | J9: 220.89 | K9: =ROUND(J9 * (1 + VAT), 2) -> 254.02 | L9: 0.39 | M9: =ROUND(L9 * (1 + VAT), 2) -> 0.45 | N9: 25.21 | O9: =ROUND(N9 * (1 + VAT), 2) -> 28.99 | P9: 21.44 | Q9: =ROUND(P9 * (1 + VAT), 2) -> 24.66
A10: Landrate Dx | B10: Ld | C10: 0 | D10: 1 | E10: =B10&C10&D10&IF($A$2="Non-municipal","N",IF($A$2="Municiple","Y","error")) -> Ld01Y | H10: Landrate Dx* | R10: 47.6839 | S10: =ROUND(R10 * (1 + VAT), 2) -> 54.84
H11: *R/day fixed charge inclusive of the following charges; energy, anciallary service, network demand, betwork capacity and service charge.

Sheet TOuS Original (hidden)
B4: Reliability service charge urban | D4: Charge [c/kWh]
E5: VAT incl
B6: < 500V | D6: 0.27 | E6: =ROUND(D6 * (1 + VAT), 2) -> 0.31
B7: ≥ 500V & < 66kV | D7: 0.26 | E7: =ROUND(D7 * (1 + VAT), 2) -> 0.3
B8: ≥ 66kV & ≤ 132kV | D8: 0.25 | E8: =ROUND(D8 * (1 + VAT), 2) -> 0.29
B9: > 132kV | D9: 0.23 | E9: =ROUND(D9 * (1 + VAT), 2) -> 0.26
B12: Reliability service charge rural | D12: Charge [c/kWh]
E13: VAT incl
B14: < 500V | D14: 0.27 | E14: =ROUND(D14 * (1 + VAT), 2) -> 0.31
B15: ≥ 500V & ≤ 22kV | D15: 0.27 | E15: =ROUND(D15 * (1 + VAT), 2) -> 0.31
C18: Transmission zone | D18: Voltage | E18: R/kVA
F19: VAT incl
B20: ETUoS urban | C20: ≤ 300km | D20: < 500V | E20: 11.36438596 | F20: =ROUND(E20 * (1 + VAT), 2) -> 13.07
D21: ≥ 500V & < 66kV | E21: 11.19400536 | F21: 12.87
D22: ≥ 66kV & ≤ 132kV | E22: 10.8362061 | F22: 12.46
C23: > 300km & ≤ 600km | D23: < 500V | E23: 11.46661432 | F23: 13.19
D24: ≥ 500V & < 66kV | E24: 11.31327178 | F24: 13.01
D25: ≥ 66kV & ≤ 132kV | E25: 10.95547252 | F25: 12.6
C26: > 600km & ≤ 900km | D26: < 500V | E26: 11.58588074 | F26: 13.32
D27: ≥ 500V & < 66kV | E27: 11.4325382 | F27: 13.15
D28: ≥ 66kV & ≤ 132kV | E28: 11.05770088 | F28: 12.72
C29: > 900km | D29: < 500V | E29: 11.70514716 | F29: 13.46
D30: ≥ 500V & < 66kV | E30: 11.55180462 | F30: 13.28
D31: ≥ 66kV & ≤ 132kV | E31: 11.1769673 | F31: 12.85
C34: Transmission zone | D34: Voltage | E34: R/kVA
F35: VAT incl
B36: ETUoS rural | C36: ≤ 300km | D36: < 500V | E36: 11.7732994 | F36: =ROUND(E36 * (1 + VAT), 2) -> 13.54
D37: ≥ 500V & < 66kV | E37: 11.67107104 | F37: 13.42
C38: > 300km & ≤ 600km | D38: < 500V | E38: 11.89256582 | F38: 13.68
D39: ≥ 500V & < 66kV | E39: 11.79033746 | F39: 13.56
C40: > 600km & ≤ 900km | D40: < 500V | E40: 12.01183224 | F40: 13.81
D41: ≥ 500V & < 66kV | E41: 11.90960388 | F41: 13.7
C42: > 900km | D42: < 500V | E42: 12.13109866 | F42: 13.95
D43: ≥ 500V & < 66kV | E43: 12.0288703 | F43: 13.83
B46: Distribution network charges urban
D47: Network access charge [R/kVA/m] | F47: Network demand charge [R/kVA/m] | H47: Urban low voltage subsidy charge [R/kVA/m]
B49: Voltage | E49: VAT incl | G49: VAT incl | I49: VAT incl
B50: < 500V | D50: =#REF! ->  | E50: =ROUND(D50 * (1 + VAT), 2) ->  | F50: =#REF! ->  | G50: =ROUND(F50 * (1 + VAT), 2) ->  | H50: =#REF! ->  | I50: =ROUND(H50 * (1 + VAT), 2) -> 
B51: ≥ 500V & < 66kV | D51: =#REF! ->  | E51: =ROUND(D51 * (1 + VAT), 2) ->  | F51: =#REF! ->  | G51: =ROUND(F51 * (1 + VAT), 2) ->  | H51: =#REF! ->  | I51: =ROUND(H51 * (1 + VAT), 2) -> 
B52: ≥ 66kV & ≤ 132kV | D52: =#REF! ->  | E52: =ROUND(D52 * (1 + VAT), 2) ->  | F52: =#REF! ->  | G52: =ROUND(F52 * (1 + VAT), 2) ->  | H52: =#REF! ->  | I52: =ROUND(H52 * (1 + VAT), 2) -> 
B53: > 132kV | D53: =#REF! ->  | E53: =ROUND(D53 * (1 + VAT), 2) ->  | F53: =#REF! ->  | G53: =ROUND(F53 * (1 + VAT), 2) ->  | H53: =#REF! ->  | I53: =ROUND(H53 * (1 + VAT), 2) -> 
B56: Distribution network charges rural
D57: Network access charge [R/kVA/m] | F57: Network demand charge [c/kWh]
B59: Voltage | E59: VAT incl | G59: VAT incl
B60: < 500V | D60: 6.201664795 | E60: =ROUND(D60 * (1 + VAT), 2) -> 7.13 | F60: 19.67324725 | G60: =ROUND(F60 * (1 + VAT), 2) -> 22.62
B61: ≥ 500V & ≤ 22kV | D61: 2.297555913 | E61: =ROUND(D61 * (1 + VAT), 2) -> 2.64 | F61: 17.23886725 | G61: =ROUND(F61 * (1 + VAT), 2) -> 19.82
B64: Distribution network charges for Generators
D65: Network access charge [R/MW/m]
B67: Voltage | E67: VAT incl
B68: < 500V
B69: ≥ 500V & < 66kV
B70: ≥ 66kV & ≤ 132kV | D70: 9.4 | E70: =ROUND(D70 * (1 + VAT), 2) -> 10.81
B73: Electrification and rural network subsidy charge [c/kWh]
D74: Rural network subsidy charge [c/kWh] | F74: Electrification networks subsidy charge [c/kWh] | H74: Total electrification and rural network subsidy charge [c/kWh]
B76: Tariff | E76: VAT incl | G76: VAT incl | I76: VAT incl
B77: Megaflex, Miniflex, Nightsave Urban Large, Nightsave Urban Small, Businessrate
D78: 2.68 | E78: =ROUND(D78 * (1 + VAT), 2) -> 3.08 | F78: 0.91 | G78: =ROUND(F78 * (1 + VAT), 2) -> 1.05 | H78: 3.59 | I78: =ROUND(H78 * (1 + VAT), 2) -> 4.13
B83: Service and admin charges
B84: Customer categories | D84: Service charge [R/account/day] | F84: Administration charge [R/POD/day]
E86: VAT incl | G86: VAT incl
B87: ≤ 100 kVA | D87: 9.49 | E87: =ROUND(D87 * (1 + VAT), 2) -> 10.91 | F87: 2.08 | G87: =ROUND(F87 * (1 + VAT), 2) -> 2.39
B88: > 100 kVA & ≤ 500 kVA | D88: 43.38 | E88: =ROUND(D88 * (1 + VAT), 2) -> 49.89 | F88: 12.16 | G88: =ROUND(F88 * (1 + VAT), 2) -> 13.98
B89: > 500 kVA & ≤ 1 MVA | D89: 133.5 | E89: =ROUND(D89 * (1 + VAT), 2) -> 153.53 | F89: 24.17 | G89: =ROUND(F89 * (1 + VAT), 2) -> 27.8
B90: > 1 MVA | D90: 133.5 | E90: =ROUND(D90 * (1 + VAT), 2) -> 153.53 | F90: 60.17 | G90: =ROUND(F90 * (1 + VAT), 2) -> 69.2
B91: Key customers | D91: 2616.06 | E91: =ROUND(D91 * (1 + VAT), 2) -> 3008.47 | F91: 83.55 | G91: =ROUND(F91 * (1 + VAT), 2) -> 96.08
B94: Distribution loss factors | F94: Transmission loss factors for loads
B95: Voltage | C95: Urban loss factor | D95: Rural loss factor | F95: Distance from Johannesburg | G95: Zone | H95: Loss factor
B96: < 500V | C96: ='Loss Factors'!O6 -> 1.1111 | D96: ='Loss Factors'!P6 -> 1.1527 | F96: 0 to 300 km | G96: 0 | H96: ='Loss Factors'!T6 -> 1.0107
B97: ≥ 500V & < 66kV | C97: ='Loss Factors'!O7 -> 1.0957 | D97: ='Loss Factors'!P7 -> 1.1412 | F97: 301 to 600 km | G97: 1 | H97: ='Loss Factors'!T7 -> 1.0208
B98: ≥ 66kV & ≤ 132kV | C98: ='Loss Factors'!O8 -> 1.0611 | F98: 601 to 900 km | G98: 2 | H98: ='Loss Factors'!T8 -> 1.031
B99: > 132kV | C99: ='Loss Factors'!O9 -> 1 | F99: > 900 km | G99: 3 | H99: ='Loss Factors'!T9 -> 1.0413
K104: TUoS [ > 132kV] | M104: Charge R/kVA
N105: VAT incl
L106: ≤ 300km | M106: =#REF! ->  | N106: =ROUND(M106 * (1 + VAT), 2) -> 
L107: > 300km & ≤ 600km | M107: =#REF! ->  | N107: =ROUND(M107 * (1 + VAT), 2) -> 
L108: > 600km & ≤ 900km | M108: =#REF! ->  | N108: =ROUND(M108 * (1 + VAT), 2) -> 
L109: > 900km | M109: =#REF! ->  | N109: =ROUND(M109 * (1 + VAT), 2) -> 

Sheet TUoS
H1: Back to menu
A2: Non-municipal
H3: TUoS (Transmission use of system) charges (> 132 KV or direct Transmission connected) network charge for loads
H6: Electrification and rural network subsidy charge [c/kWh]
J7: Electrification and rural network subsidy charge [c/kWh]
A9: Tariff | B9: Tariff nameBillcode | C9: Tx zone | D9: Voltage | E9: Billcode | H9: Tariff | K9: VAT incl
H10: Megaflex, Miniflex, Nightsave Urban Large, Nightsave Urban Small, Businessrate
A11: Megaflex | B11: Me | C11: 0 | D11: 1 | E11: =B11&C11&D11&IF($A$2="Non-municipal","N",IF($A$2="Municiple","Y","error")) -> Me01N | J11: ='Megaflex inc'!H46 -> 7.45 | K11: =ROUND(J11 * (1 + 0.15), 2) -> 8.57
H15: Service and admin charges
H16: Utilised capacity/maximum export capacity | J16: Service charge [R/account/day] | L16: Administration charge [R/POD/day]
H19: [kVA/MVA = loads]
A20: Tariff | B20: Tariff nameBillcode | C20: Tx zone | D20: Voltage | E20: Billcode | H20: [kW/MW = generators] | K20: VAT incl | M20: VAT incl
A21: Miniflex | B21: Mi | C21: 0 | D21: 1 | E21: =B21&C21&D21&IF($B$28="Non-municipal","N",IF($B$28="Municiple","Y","error")) -> Mi01N | H21: ≤ 100 kVA/kW | J21: 13.6 | K21: =ROUND(J21 * (1 + 0.15), 2) -> 15.64 | L21: 2.99 | M21: =ROUND(L21 * (1 + 0.15), 2) -> 3.44
A22: Miniflex | B22: Mi | C22: 0 | D22: 1 | E22: =B22&C22&D22&IF($B$28="Non-municipal","N",IF($B$28="Municiple","Y","error")) -> Mi01N | H22: > 100 kVA/kW & ≤ 500 kVA/kW | J22: 62.12 | K22: =ROUND(J22 * (1 + 0.15), 2) -> 71.44 | L22: 17.42 | M22: =ROUND(L22 * (1 + 0.15), 2) -> 20.03
A23: Miniflex | B23: Mi | C23: 0 | D23: 1 | E23: Mi01N | H23: > 500 kVA/kW & ≤ 1 MVA/MW | J23: 191.16 | K23: =ROUND(J23 * (1 + 0.15), 2) -> 219.83 | L23: 34.6 | M23: =ROUND(L23 * (1 + 0.15), 2) -> 39.79
A24: Miniflex | B24: Mi | C24: 0 | D24: 1 | E24: Mi01N | H24: > 1 MVA/MW | J24: 191.16 | K24: =ROUND(J24 * (1 + 0.15), 2) -> 219.83 | L24: 86.15 | M24: =ROUND(L24 * (1 + 0.15), 2) -> 99.07
A25: Miniflex | B25: Mi | C25: 0 | D25: 1 | E25: Mi01N | H25: Key customers or Transmission connected generators | J25: 3745.97 | K25: =ROUND(J25 * (1 + 0.15), 2) -> 4307.87 | L25: 119.64 | M25: =ROUND(L25 * (1 + 0.15), 2) -> 137.59
B28: Non-municipal | H28: Transmission loss factors for loads
A29: Tariff | B29: Tariff nameBillcode | C29: Tx zone | D29: Voltage | E29: Billcode | H29: Distance from Johannesburg | I29: Zone | J29: Loss factor
A30: Transmission loss factor | B30: TxLoss | C30: 0 | D30: 4 | E30: =B30&C30&D30&IF($B$28="Non-municipal","N",IF($B$28="Municiple","Y","error")) -> TxLoss04N | H30: ≤ 300km | I30: 0 | J30: 1.0107
A31: Transmission loss factor | B31: TxLoss | C31: 1 | D31: 4 | E31: =B31&C31&D31&IF($B$28="Non-municipal","N",IF($B$28="Municiple","Y","error")) -> TxLoss14N | H31: > 300km & ≤ 600km | I31: 1 | J31: 1.0208
A32: Transmission loss factor | B32: TxLoss | C32: 2 | D32: 4 | E32: =B32&C32&D32&IF($B$28="Non-municipal","N",IF($B$28="Municiple","Y","error")) -> TxLoss24N | H32: > 600km & ≤ 900km | I32: 2 | J32: 1.031
A33: Transmission loss factor | B33: TxLoss | C33: 3 | D33: 4 | E33: =B33&C33&D33&IF($B$28="Non-municipal","N",IF($B$28="Municiple","Y","error")) -> TxLoss34N | H33: > 900km | I33: 3 | J33: 1.0413
H36: Loss factors for Transmission connected generators | J36: Loss factor
A37: Tariff | B37: Tariff nameBillcode | C37: Tx zone | D37: Voltage | E37: Billcode
A38: TUoS network charges for Transmission connected generators | B38: GenTUOS | C38: Cape | D38: 4 | E38: =B38&C38&D38&IF($A$2="Non-municipal","N",IF($A$2="Municiple","Y","error")) -> GenTUOSCape4N | I38: Cape | J38: ='Loss Factors'!P14 -> 0.971
A39: TUoS network charges for Transmission connected generators | B39: GenTUOS | C39: Karoo | D39: 4 | E39: GenTUOSKaroo4N | I39: Karoo | J39: ='Loss Factors'!P15 -> 0.995
A40: TUoS network charges for Transmission connected generators | B40: GenTUOS | C40: Kwazulu-Natal | D40: 4 | E40: GenTUOSKwazulu-Natal4N | I40: Kwazulu-Natal | J40: ='Loss Factors'!P16 -> 1.004
A41: TUoS network charges for Transmission connected generators | B41: GenTUOS | C41: Vaal | D41: 4 | E41: GenTUOSVaal4N | I41: Vaal | J41: ='Loss Factors'!P17 -> 1.02
A42: TUoS network charges for Transmission connected generators | B42: GenTUOS | C42: Waterburg | D42: 4 | E42: GenTUOSWaterburg4N | I42: Waterberg | J42: ='Loss Factors'!P18 -> 1.023
A43: TUoS network charges for Transmission connected generators | B43: GenTUOS | C43: Mpumalanga | D43: 4 | E43: GenTUOSMpumalanga4N | I43: Mpumalanga | J43: ='Loss Factors'!P19 -> 1.021
H46: TUoS network charge for Transmission connected loads | J46: Network capacity charge [R/kVA]
A47: Tariff | B47: Tariff nameBillcode | C47: Tx zone | D47: Voltage | E47: Billcode | K47: VAT incl
A48: WEPS | B48: We | C48: 0 | D48: 1 | E48: =B48&C48&D48&IF($A$2="Non-municipal","N",IF($A$2="Municiple","Y","error")) -> We01N | I48: ≤ 300km | J48: ='WEPS inc'!V11 -> 9.42 | K48: =ROUND(J48 * (1 + 0.15), 2) -> 10.83
A49: WEPS | B49: We | C49: 0 | D49: 2 | E49: We02N | I49: > 300km & ≤ 600km | J49: ='WEPS inc'!V15 -> 9.51 | K49: =ROUND(J49 * (1 + 0.15), 2) -> 10.94
A50: WEPS | B50: We | C50: 0 | D50: 3 | E50: We03N | I50: > 600km & ≤ 900km | J50: ='WEPS inc'!V19 -> 9.65 | K50: =ROUND(J50 * (1 + 0.15), 2) -> 11.1
A51: WEPS | B51: We | C51: 0 | D51: 4 | E51: We04N | I51: > 900km | J51: ='WEPS inc'!V23 -> 9.72 | K51: =ROUND(J51 * (1 + 0.15), 2) -> 11.18
H54: TUoS network charges for Transmission connected generators | J54: Network charge [R/kW]
A55: Tariff | B55: Tariff nameBillcode | C55: Tx zone | D55: Voltage | E55: Billcode | K55: VAT incl
A56: TUoS network charges for Transmission connected generators | B56: GenTUOS | C56: Cape | D56: 4 | E56: =B56&C56&D56&IF($A$2="Non-municipal","N",IF($A$2="Municiple","Y","error")) -> GenTUOSCape4N | I56: Cape | J56: 0 | K56: =ROUND(J56 * (1 + 0.15), 2) -> 0
A57: TUoS network charges for Transmission connected generators | B57: GenTUOS | C57: Karoo | D57: 4 | E57: GenTUOSKaroo4N | I57: Karoo | J57: 0 | K57: 0
A58: TUoS network charges for Transmission connected generators | B58: GenTUOS | C58: Kwazulu-Natal | D58: 4 | E58: GenTUOSKwazulu-Natal4N | I58: Kwazulu-Natal | J58: 1.98 | K58: 2.28
A59: TUoS network charges for Transmission connected generators | B59: GenTUOS | C59: Vaal | D59: 4 | E59: GenTUOSVaal4N | I59: Vaal | J59: 6.59 | K59: 7.58
A60: TUoS network charges for Transmission connected generators | B60: GenTUOS | C60: Waterburg | D60: 4 | E60: GenTUOSWaterburg4N | I60: Waterberg | J60: 8.44 | K60: 9.71
A61: TUoS network charges for Transmission connected generators | B61: GenTUOS | C61: Mpumalanga | D61: 4 | E61: GenTUOSMpumalanga4N | I61: Mpumalanga | J61: 7.83 | K61: 9
H64: TUoS ancillary service charge for Transmission connected loads and generators | J64: Ancillary service charge [c/kWh]
A66: Tariff | B66: Tariff nameBillcode | C66: Tx zone | D66: Voltage | E66: Billcode | K66: VAT incl
A67: TUoS network charges for Transmission connected generators | B67: GenTUOS | C67: Cape | D67: 4 | E67: =B67&C67&D67&IF($A$2="Non-municipal","N",IF($A$2="Municiple","Y","error")) -> GenTUOSCape4N | H67: Generators | J67: 0.34 | K67: =ROUND(J67 * (1 + 0.15), 2) -> 0.39
A68: TUoS network charges for Transmission connected generators | B68: GenTUOS | C68: Cape | D68: 4 | E68: =B68&C68&D68&IF($A$2="Non-municipal","N",IF($A$2="Municiple","Y","error")) -> GenTUOSCape4N | H68: Loads | J68: 0.34 | K68: =ROUND(J68 * (1 + 0.15), 2) -> 0.39

Sheet DUoS
A2: Non-Municipal | H2: Back to menu
H4: DUoS (Distribution use of system) charges
H7: DuoS ancillary service charge Urbanp | J7: Charge [c/kWh]
A8: Tariff | B8: Tariff nameBillcode | C8: Tx zone | D8: Voltage | E8: Billcode | K8: VAT incl
A9: Gen-DUoS urban | B9: NEGenDUoSU | C9: 0 | D9: 1 | E9: =B9&C9&D9&IF($A$2="Non-municipal","N",IF($A$2="Municiple","Y","error")) -> NEGenDUoSU01N | H9: < 500V | J9: 0.39 | K9: =ROUND(J9 * (1 + VAT), 2) -> 0.45
A10: Gen-DUoS urban | B10: NEGenDUoSU | C10: 0 | D10: 2 | E10: =B10&C10&D10&IF($A$2="Non-municipal","N",IF($A$2="Municiple","Y","error")) -> NEGenDUoSU02N | H10: ≥ 500V & < 66kV | J10: 0.38 | K10: =ROUND(J10 * (1 + VAT), 2) -> 0.44
A11: Gen-DUoS urban | B11: NEGenDUoSU | C11: 0 | D11: 3 | E11: NEGenDUoSU03N | H11: ≥ 66kV & ≤ 132kV | J11: 0.36 | K11: =ROUND(J11 * (1 + VAT), 2) -> 0.41
H15: DUoS ancillary service charge Ruralp | J15: Charge [c/kWh]
A16: Tariff | B16: Tariff nameBillcode | C16: Tx zone | D16: Voltage | E16: Billcode | K16: VAT incl
A17: Gen-DUoS rural | B17: NEGenDUoSR | C17: 0 | D17: 1 | E17: =B17&C17&D17&IF($A$2="Non-municipal","N",IF($A$2="Municiple","Y","error")) -> NEGenDUoSR01N | H17: < 500V | J17: 0.39 | K17: =ROUND(J17 * (1 + VAT), 2) -> 0.45
A18: Gen-DUoS rural | B18: NEGenDUoSR | C18: 0 | D18: 2 | E18: =B18&C18&D18&IF($A$2="Non-municipal","N",IF($A$2="Municiple","Y","error")) -> NEGenDUoSR02N | H18: ≥ 500V & ≤ 22kV | J18: 0.39 | K18: =ROUND(J18 * (1 + VAT), 2) -> 0.45
I21: Transmission zone | J21: Voltage | K21: [R/kVA]
A22: Tariff | B22: Tariff nameBillcode | C22: Tx zone | D22: Voltage | E22: Billcode | L22: VAT incl
H23: ETUoS urban | I23: ≤ 300km | J23: < 500V | K23: ='Megaflex inc'!V8 -> 8.38 | L23: =ROUND(K23 * (1 + VAT), 2) -> 9.64
J24: ≥ 500V & < 66kV | K24: ='Megaflex inc'!V9 -> 7.66 | L24: 8.81
J25: ≥ 66kV & ≤ 132kV | K25: ='Megaflex inc'!V10 -> 7.46 | L25: 8.58
I26: > 300km & ≤ 600km | J26: < 500V | K26: ='Megaflex inc'!V12 -> 8.44 | L26: 9.71
J27: ≥ 500V & < 66kV | K27: ='Megaflex inc'!V13 -> 7.73 | L27: 8.89
J28: ≥ 66kV & ≤ 132kV | K28: ='Megaflex inc'!V14 -> 7.51 | L28: 8.64
I29: > 600km & ≤ 900km | J29: < 500V | K29: ='Megaflex inc'!V16 -> 8.54 | L29: 9.82
J30: ≥ 500V & < 66kV | K30: ='Megaflex inc'!V17 -> 7.8 | L30: 8.97
J31: ≥ 66kV & ≤ 132kV | K31: ='Megaflex inc'!V18 -> 7.56 | L31: 8.69
I32: > 900km | J32: < 500V | K32: ='Megaflex inc'!V20 -> 8.59 | L32: 9.88
J33: ≥ 500V & < 66kV | K33: ='Megaflex inc'!V21 -> 7.89 | L33: 9.07
J34: ≥ 66kV & ≤ 132kV | K34: ='Megaflex inc'!V22 -> 7.63 | L34: 8.77
I37: Transmission zone | J37: Voltage | K37: [R/kVA]
A38: Tariff | B38: Tariff nameBillcode | C38: Tx zone | D38: Voltage | E38: Billcode | L38: VAT incl
H39: ETUoS rural | I39: ≤ 300km | J39: < 500V | K39: ='Ruraflex inc'!U8 -> 17.51 | L39: =ROUND(K39 * (1 + VAT), 2) -> 20.14
J40: ≥ 500V & < 66kV | K40: ='Ruraflex inc'!U9 -> 16.05 | L40: 18.46
I41: > 300km & ≤ 600km | J41: < 500V | K41: ='Ruraflex inc'!U12 -> 17.56 | L41: 20.19
J42: ≥ 500V & < 66kV | K42: ='Ruraflex inc'!U13 -> 16.15 | L42: 18.57
I43: > 600km & ≤ 900km | J43: < 500V | K43: ='Ruraflex inc'!U16 -> 17.66 | L43: 20.31
J44: ≥ 500V & < 66kV | K44: ='Ruraflex inc'!U17 -> 16.22 | L44: 18.65
I45: > 900km | J45: < 500V | K45: ='Ruraflex inc'!U20 -> 17.73 | L45: 20.39
J46: ≥ 500V & < 66kV | K46: ='Ruraflex inc'!U21 -> 16.23 | L46: 18.66
H49: DUoS network charges for urbanp loads
J50: Network capacity charge [R/kVA/m] | L50: Network demand charge [R/kVA/m] | N50: Urban low voltage subsidy charge [R/kVA/m]
A52: Tariff | B52: Tariff nameBillcode | C52: Tx zone | D52: Voltage | E52: Billcode | H52: Voltage | K52: VAT incl | M52: VAT incl | O52: VAT incl
A53: Gen-DUoS urban | B53: NEGenDUoSU | C53: 0 | D53: 1 | E53: =B53&C53&D53&IF($A$2="Non-municipal","N",IF($A$2="Municiple","Y","error")) -> NEGenDUoSU01N | H53: < 500V | J53: ='Megaflex inc'!J30 -> 16.65 | K53: =ROUND(J53 * (1 + VAT), 2) -> 19.15 | L53: ='Megaflex inc'!L30 -> 31.57 | M53: =ROUND(L53 * (1 + VAT), 2) -> 36.31 | N53: ='Megaflex inc'!N30 -> 0 | O53: =ROUND(N53 * (1 + VAT), 2) -> 0
A54: Gen-DUoS urban | B54: NEGenDUoSU | C54: 0 | D54: 2 | E54: =B54&C54&D54&IF($A$2="Non-municipal","N",IF($A$2="Municiple","Y","error")) -> NEGenDUoSU02N | H54: ≥ 500V & < 66kV | J54: ='Megaflex inc'!J31 -> 15.27 | K54: =ROUND(J54 * (1 + VAT), 2) -> 17.56 | L54: ='Megaflex inc'!L31 -> 28.96 | M54: =ROUND(L54 * (1 + VAT), 2) -> 33.3 | N54: ='Megaflex inc'!N31 -> 0 | O54: =ROUND(N54 * (1 + VAT), 2) -> 0
A55: Gen-DUoS urban | B55: NEGenDUoSU | C55: 0 | D55: 3 | E55: NEGenDUoSU03N | H55: ≥ 66kV & ≤ 132kV | J55: ='Megaflex inc'!J32 -> 5.45 | K55: =ROUND(J55 * (1 + VAT), 2) -> 6.27 | L55: ='Megaflex inc'!L32 -> 10.1 | M55: =ROUND(L55 * (1 + VAT), 2) -> 11.62 | N55: ='Megaflex inc'!N32 -> 13.45 | O55: =ROUND(N55 * (1 + VAT), 2) -> 15.47
A56: Gen-DUoS urban | B56: NEGenDUoSU | C56: 0 | D56: 4 | E56: =B56&C56&D56&IF($A$2="Non-municipal","N",IF($A$2="Municiple","Y","error")) -> NEGenDUoSU04N | H56: > 132kV | J56: ='Megaflex inc'!J33 -> 0 | K56: =ROUND(J56 * (1 + VAT), 2) -> 0 | L56: ='Megaflex inc'!L33 -> 0 | M56: =ROUND(L56 * (1 + VAT), 2) -> 0 | N56: ='Megaflex inc'!N33 -> 13.45 | O56: =ROUND(N56 * (1 + VAT), 2) -> 15.47
H59: DUoS network charges ruralp loads
J60: Network capacity charge [R/kVA/m] | L60: Network demand charge [c/kWh]
A62: Tariff | B62: Tariff nameBillcode | C62: Tx zone | D62: Voltage | E62: Billcode | H62: Voltage | K62: VAT incl | M62: VAT incl
A63: Gen-DUoS rural | B63: NEGenDUoSR | C63: 0 | D63: 1 | E63: =B63&C63&D63&IF($A$2="Non-municipal","N",IF($A$2="Municiple","Y","error")) -> NEGenDUoSR01N | H63: < 500V | J63: ='Ruraflex inc'!U8 -> 17.51 | K63: =ROUND(J63 * (1 + VAT), 2) -> 20.14 | L63: ='Ruraflex inc'!R28 -> 24.93 | M63: =ROUND(L63 * (1 + VAT), 2) -> 28.67
A64: Gen-DUoS rural | B64: NEGenDUoSR | C64: 0 | D64: 2 | E64: =B64&C64&D64&IF($A$2="Non-municipal","N",IF($A$2="Municiple","Y","error")) -> NEGenDUoSR02N | H64: ≥ 500V & ≤ 22kV | J64: ='Ruraflex inc'!U9 -> 16.05 | K64: =ROUND(J64 * (1 + VAT), 2) -> 18.46 | L64: ='Ruraflex inc'!R29 -> 21.86 | M64: =ROUND(L64 * (1 + VAT), 2) -> 25.14
H67: DUoS network charges for generators
J68: Network capacity charge [R/kW/m]
A70: Tariff | B70: Tariff nameBillcode | C70: Tx zone | D70: Voltage | E70: Billcode | H70: Voltage | K70: VAT incl
A71: Gen-DUoS urban | B71: NEGenDUoSU | C71: 0 | D71: 1 | E71: =B71&C71&D71&IF($A$2="Non-municipal","N",IF($A$2="Municiple","Y","error")) -> NEGenDUoSU01N | H71: < 500V
A72: Gen-DUoS urban | B72: NEGenDUoSU | C72: 0 | D72: 2 | E72: =B72&C72&D72&IF($A$2="Non-municipal","N",IF($A$2="Municiple","Y","error")) -> NEGenDUoSU02N | H72: ≥ 500V & < 66kV
A73: Gen-DUoS urban | B73: NEGenDUoSU | C73: 0 | D73: 3 | E73: NEGenDUoSU03N | H73: ≥ 66kV & ≤ 132kV | J73: 13.47 | K73: =ROUND(J73 * (1 + VAT), 2) -> 15.49
H76: DUoS electrification and rural network subsidy charge [c/kWh] | R76: DUoS electrification and rural network subsidy charge [c/kWh]
J78: Rural network subsidy charge [c/kWh] | L78: Electrification networks subsidy charge [c/kWh] | N78: Total electrification and rural network subsidy charge [c/kWh] | R78: Tariff | T78: Electrification and rural network subsidy charge [c/kWh]
A80: Tariff | B80: Tariff nameBillcode | C80: Tx zone | D80: Voltage | E80: Billcode | H80: Tariff | K80: VAT incl | M80: VAT incl | O80: VAT incl | U80: VAT incl
H81: Megaflex, Miniflex, Nightsave Urban Large, Nightsave Urban Small, Businessrate | R81: Megaflex, Miniflex, Nightsave Urban Large, Nightsave Urban Small, Businessrate
A82: Megaflex | B82: Me | C82: 0 | D82: 1 | E82: =B82&C82&D82&IF($A$2="Non-municipal","N",IF($A$2="Municiple","Y","error")) -> Me01N | J82: 4.94 | K82: =ROUND(J82 * (1 + VAT), 2) -> 5.68 | L82: 2.51 | M82: =ROUND(L82 * (1 + VAT), 2) -> 2.89 | N82: =SUM(J82, L82) -> 7.45 | O82: =ROUND(N82 * (1 + VAT), 2) -> 8.57 | T82: 7.45 | U82: =ROUND(T82 * (1 + VAT), 2) -> 8.57
A83: 0.6637010676
A84: 0.3362989324
H87: DUoS service and administration charges (urbanp )
H88: Customer categories utilised capacity / maximum export capacity | J88: Service charge [R/account/day] | L88: Administration charge [R/POD/day]
H91: [kVA or MVA = loads]
A92: Tariff | B92: Tariff nameBillcode | C92: Tx zone | D92: Voltage | E92: Billcode | H92: [kW or MW = generators] | K92: VAT incl | M92: VAT incl
A93: Miniflex | B93: Mi | C93: 0 | D93: 1 | E93: =B93&C93&D93&IF($A$2="Non-municipal","N",IF($A$2="Municiple","Y","error")) -> Mi01N | H93: ≤ 100 kVA/kW | J93: 13.6 | K93: =ROUND(J93 * (1 + VAT), 2) -> 15.64 | L93: 2.99 | M93: =ROUND(L93 * (1 + VAT), 2) -> 3.44
A94: Miniflex | B94: Mi | C94: 0 | D94: 1 | E94: =B94&C94&D94&IF($A$2="Non-municipal","N",IF($A$2="Municiple","Y","error")) -> Mi01N | H94: > 100 kVA/kW & ≤ 500 kVA/kW | J94: 62.12 | K94: =ROUND(J94 * (1 + VAT), 2) -> 71.44 | L94: 17.42 | M94: =ROUND(L94 * (1 + VAT), 2) -> 20.03
A95: Miniflex | B95: Mi | C95: 0 | D95: 1 | E95: Mi01N | H95: > 500 kVA/kW & ≤ 1 MVA/MW | J95: 191.16 | K95: =ROUND(J95 * (1 + VAT), 2) -> 219.83 | L95: 34.6 | M95: =ROUND(L95 * (1 + VAT), 2) -> 39.79
A96: Miniflex | B96: Mi | C96: 0 | D96: 1 | E96: Mi01N | H96: > 1 MVA/MW | J96: 191.16 | K96: =ROUND(J96 * (1 + VAT), 2) -> 219.83 | L96: 86.15 | M96: =ROUND(L96 * (1 + VAT), 2) -> 99.07
A97: Miniflex | B97: Mi | C97: 0 | D97: 1 | E97: Mi01N | H97: Key customers or Transmission connected | J97: 3745.97 | K97: =ROUND(J97 * (1 + VAT), 2) -> 4307.87 | L97: 119.64 | M97: =ROUND(L97 * (1 + VAT), 2) -> 137.59
H100: DUoS service and administration charges (ruralp)
H101: Customer categories utilised capacity / maximum export capacity | J101: Service charge [R/account/day] | L101: Administration charge [R/POD/day]
H104: [kVA or MVA = loads]
A105: Tariff | B105: Tariff nameBillcode | C105: Tx zone | D105: Voltage | E105: Billcode | H105: [kW or MW = generators] | K105: VAT incl | M105: VAT incl
A106: Ruraflex | B106: Ru | C106: 0 | D106: 1 | E106: =B106&C106&D106&IF($A$2="Non-municipal","N",IF($A$2="Municiple","Y","error")) -> Ru01N | H106: ≤ 100 kVA/kW | J106: 17.23 | K106: =ROUND(J106 * (1 + VAT), 2) -> 19.81 | L106: 4.89 | M106: =ROUND(L106 * (1 + VAT), 2) -> 5.62
A107: Ruraflex | B107: Ru | C107: 0 | D107: 1 | E107: =B107&C107&D107&IF($A$2="Non-municipal","N",IF($A$2="Municiple","Y","error")) -> Ru01N | H107: > 100 kVA/kW & ≤ 500 kVA/kW | J107: 58.75 | K107: =ROUND(J107 * (1 + VAT), 2) -> 67.56 | L107: 27.24 | M107: =ROUND(L107 * (1 + VAT), 2) -> 31.33
A108: Ruraflex | B108: Ru | C108: 0 | D108: 1 | E108: Ru01N | H108: > 500 kVA/kW & ≤ 1 MVA/MW | J108: 180.75 | K108: =ROUND(J108 * (1 + VAT), 2) -> 207.86 | L108: 41.81 | M108: =ROUND(L108 * (1 + VAT), 2) -> 48.08
A109: Ruraflex | B109: Ru | C109: 0 | D109: 1 | E109: Ru01N | H109: > 1 MVA/MW | J109: 180.75 | K109: =ROUND(J109 * (1 + VAT), 2) -> 207.86 | L109: 77.58 | M109: =ROUND(L109 * (1 + VAT), 2) -> 89.22
A110: Ruraflex | B110: Ru | C110: 0 | D110: 1 | E110: Ru01N | H110: Key customers | J110: 3542.53 | K110: =ROUND(J110 * (1 + VAT), 2) -> 4073.91 | L110: 77.58 | M110: =ROUND(L110 * (1 + VAT), 2) -> 89.22
H113: Distribution loss factors | L113: Transmission loss factors for loads
A114: Tariff | B114: Tariff nameBillcode | C114: Tx zone | D114: Voltage | E114: Billcode | H114: Voltage | I114: Urbanp loss factor | J114: Ruralp loss factor | L114: Distance from Johannesburg | M114: Zone | N114: Loss factor
A115: Distribution loss factor - Urban | B115: DxLossUrb | C115: 0 | D115: 1 | E115: =B115&C115&D115&IF($A$2="Non-municipal","N",IF($A$2="Municiple","Y","error")) -> DxLossUrb01N | H115: < 500V | I115: 1.1111 | J115: 1.1527 | L115: ≤ 300km | M115: 0 | N115: 1.0107
A116: Distribution loss factor - Urban | B116: DxLossUrb | C116: 0 | D116: 2 | E116: =B116&C116&D116&IF($A$2="Non-municipal","N",IF($A$2="Municiple","Y","error")) -> DxLossUrb02N | H116: ≥ 500V & < 66kV | I116: 1.0957 | J116: 1.1412 | L116: > 300km & ≤ 600km | M116: 1 | N116: 1.0208
A117: Distribution loss factor - Urban | B117: DxLossUrb | C117: 0 | D117: 3 | E117: DxLossUrb03N | H117: ≥ 66kV & ≤ 132kV | I117: 1.0611 | L117: > 600km & ≤ 900km | M117: 2 | N117: 1.031
A118: Distribution loss factor - Urban | B118: DxLossUrb | C118: 0 | D118: 4 | E118: DxLossUrb04N | H118: > 132kV | I118: 1 | L118: > 900km | M118: 3 | N118: 1.0413
A120: Distribution loss factor - Rural | B120: DxLossRur | C120: 0 | D120: 1 | E120: =B120&C120&D120&IF($A$2="Non-municipal","N",IF($A$2="Municiple","Y","error")) -> DxLossRur01N
A121: Distribution loss factor - Rural | B121: DxLossRur | C121: 0 | D121: 2 | E121: =B121&C121&D121&IF($A$2="Non-municipal","N",IF($A$2="Municiple","Y","error")) -> DxLossRur02N
A124: Transmission loss factor | B124: TxLoss | C124: 0 | D124: 4 | E124: =B124&C124&D124&IF($A$2="Non-municipal","N",IF($A$2="Municiple","Y","error")) -> TxLoss04N
A125: Transmission loss factor | B125: TxLoss | C125: 1 | D125: 4 | E125: =B125&C125&D125&IF($A$2="Non-municipal","N",IF($A$2="Municiple","Y","error")) -> TxLoss14N
A126: Transmission loss factor | B126: TxLoss | C126: 2 | D126: 4 | E126: TxLoss24N
A127: Transmission loss factor | B127: TxLoss | C127: 3 | D127: 4 | E127: TxLoss34N

Sheet Loss Factors
N1: Back to menu | AL1: 0.15
N2: Loss factors
A3: Non-municipal
N4: Distribution loss factors | R4: Transmission loss factors for loads
A5: Tariff | B5: Tariff nameBillcode | C5: Tx zone | D5: Voltage | E5: Billcode | G5: Tariff | H5: Tariff nameBillcode | I5: Tx zone | J5: Voltage | K5: Billcode | N5: Voltage | O5: Urban loss factor | P5: Rural loss factor | R5: Distance from Johannesburg | S5: Zone | T5: Loss factor
A6: Distribution loss factor - Urban | B6: DxLossUrb | C6: 0 | D6: 1 | E6: =B6&C6&D6&IF($A$3="Non-municipal","N",IF($A$3="Municiple","Y","error")) -> DxLossUrb01N | G6: Transmission loss factor | H6: TxLoss | I6: 0 | J6: 4 | K6: =H6&I6&J6&IF($A$3="Non-municipal","N",IF($A$3="Municiple","Y","error")) -> TxLoss04N | N6: < 500V | O6: 1.1111 | P6: 1.1527 | R6: ≤ 300km | S6: 0 | T6: 1.0107
A7: Distribution loss factor - Urban | B7: DxLossUrb | C7: 0 | D7: 2 | E7: =B7&C7&D7&IF($A$3="Non-municipal","N",IF($A$3="Municiple","Y","error")) -> DxLossUrb02N | G7: Transmission loss factor | H7: TxLoss | I7: 1 | J7: 4 | K7: =H7&I7&J7&IF($A$3="Non-municipal","N",IF($A$3="Municiple","Y","error")) -> TxLoss14N | N7: ≥ 500V & < 66kV | O7: 1.0957 | P7: 1.1412 | R7: > 300km & ≤ 600km | S7: 1 | T7: 1.0208
A8: Distribution loss factor - Urban | B8: DxLossUrb | C8: 0 | D8: 3 | E8: =B8&C8&D8&IF($A$3="Non-municipal","N",IF($A$3="Municiple","Y","error")) -> DxLossUrb03N | G8: Transmission loss factor | H8: TxLoss | I8: 2 | J8: 4 | K8: =H8&I8&J8&IF($A$3="Non-municipal","N",IF($A$3="Municiple","Y","error")) -> TxLoss24N | N8: ≥ 66kV & ≤ 132kV | O8: 1.0611 | R8: > 600km & ≤ 900km | S8: 2 | T8: 1.031
A9: Distribution loss factor - Urban | B9: DxLossUrb | C9: 0 | D9: 4 | E9: =B9&C9&D9&IF($A$3="Non-municipal","N",IF($A$3="Municiple","Y","error")) -> DxLossUrb04N | G9: Transmission loss factor | H9: TxLoss | I9: 3 | J9: 4 | K9: =H9&I9&J9&IF($A$3="Non-municipal","N",IF($A$3="Municiple","Y","error")) -> TxLoss34N | N9: > 132kV/Transmission connected | O9: 1 | R9: > 900km | S9: 3 | T9: 1.0413
A11: Distribution loss factor - Rural | B11: DxLossRur | C11: 0 | D11: 1 | E11: =B11&C11&D11&IF($A$3="Non-municipal","N",IF($A$3="Municiple","Y","error")) -> DxLossRur01N | P11: 2012/13
A12: Distribution loss factor - Rural | B12: DxLossRur | C12: 0 | D12: 2 | E12: =B12&C12&D12&IF($A$3="Non-municipal","N",IF($A$3="Municiple","Y","error")) -> DxLossRur02N | N12: Loss factors for Transmission connected generators | P12: Loss factor
A13: Tariff | B13: Tariff nameBillcode | C13: Tx zone | D13: Voltage | E13: Billcode
A14: TUoS network charges for Transmission connected generators | B14: GenTUOS | C14: Cape | D14: 4 | E14: =B14&C14&D14&IF($A$3="Non-municipal","N",IF($A$3="Municiple","Y","error")) -> GenTUOSCape4N | O14: Cape | P14: 0.971
A15: TUoS network charges for Transmission connected generators | B15: GenTUOS | C15: Karoo | D15: 4 | E15: GenTUOSKaroo4N | O15: Karoo | P15: 0.995
A16: TUoS network charges for Transmission connected generators | B16: GenTUOS | C16: Kwazulu-Natal | D16: 4 | E16: GenTUOSKwazulu-Natal4N | O16: Kwazulu-Natal | P16: 1.004
A17: TUoS network charges for Transmission connected generators | B17: GenTUOS | C17: Vaal | D17: 4 | E17: GenTUOSVaal4N | O17: Vaal | P17: 1.02
A18: TUoS network charges for Transmission connected generators | B18: GenTUOS | C18: Waterburg | D18: 4 | E18: GenTUOSWaterburg4N | O18: Waterburg | P18: 1.023
A19: TUoS network charges for Transmission connected generators | B19: GenTUOS | C19: Mpumalanga | D19: 4 | E19: GenTUOSMpumalanga4N | O19: Mpumalanga | P19: 1.021

Sheet Reconciliaton
B2: Generator reconciliations
C4: Wheeling | G4: Energy add back
C5: Tariff name | D5: Tariff rate | E5: Source | G5: Tariff name | H5: Tariff rate | I5: Source
C6: Gen-wheeling non Munic urban | D6: Energy: | E6: WEPS energy rate excluding losses | G6: Gen-purchase- urban | H6: Energy: | I6: WEPS energy rate excluding losses
D7: Affordability subsidy: | E7: same as WEPS | H7: Affordability subsidy: | I7: same as WEPS
D8: Admin charge: | E8: same as WEPS | H8: Admin charge: | I8: same as WEPS
D9: Other components: | E9: not applicable | H9: Other components: | I9: not applicable
C10: Gen-wheeling non Munic rural | D10: Energy: | E10: WEPS energy rate excluding losses | G10: Gen-purchase-rural | H10: Energy: | I10: WEPS energy rate excluding losses
D11: Admin charge: | E11: same as Ruraflex | H11: Admin charge: | I11: same as Ruraflex
D12: Other components: | E12: not applicable | H12: Other components: | I12: not applicable
C13: Gen-wheeling Munic urban | D13: Energy (Local): | E13: WEPS energy rate excluding losses (Local) | G13: Gen-purchase Munic urban | H13: Energy: | I13: WEPS energy rate excluding losses(Local)
D14: Admin charge: | E14: same as WEPS (local) | H14: Admin charge: | I14: same as WEPS (Local)
D15: Other components: | E15: not applicable | H15: Other components: | I15: not applicable
C16: Gen-wheeling Munic rural | D16: Energy (Local): | E16: WEPS energy rate excluding losses (Local) | G16: Gen-purchase Munic rural | H16: Energy: | I16: WEPS energy rate excluding losses(Local)
D17: Admin charge: | E17: same as same as Ruraflex (local) | H17: Admin charge: | I17: same as Ruraflex (Local)
D18: Other components: | E18: not applicable | H18: Other components: | I18: not applicable
C21: Offset
C22: Tariff name | D22: Tariff rate | E22: Source
C23: Gen-offset urban | D23: Energy: | E23: WEPS energy rate including losses (per Tx and voltage zone)
D24: Affordability subsidy: | E24: same as WEPS
D25: Admin charge: | E25: same as WEPS
D26: Other components: | E26: not applicable
C27: Gen-offset rural | D27: Energy: | E27: Ruraflex energy rate (per Tx and voltage zone)
D28: Affordability subsidy: | E28: same as WEPS
D29: Admin charge: | E29: same as WEPS
D30: Other components: | E30: not applicable
